date,department/service,beneficiary,amount,summary of purpose,category,transaction number,SAP vendor number
01.10.2020,COMMUNITIES,WILSON SOLICITORS LLP,850.00,NO RECOURSE TO PUBLIC FUNDS,LEGAL FEES & COURT COSTS,5902435560,1000084191
01.10.2020,COMMUNITIES,WILSON SOLICITORS LLP,"2,175.00",NO RECOURSE TO PUBLIC FUNDS,LEGAL FEES & COURT COSTS,5902434184,1000084191
01.10.2020,CUSTOMER EXPERIENCE HGF,IMPERIAL COLLEGE PROJECTS LTD,336.00,CORONER'S,PROFESSIONAL FEES,5902435555,1000080106
01.10.2020,CUSTOMER EXPERIENCE HGF,IMPERIAL COLLEGE PROJECTS LTD,336.00,CORONER'S,PROFESSIONAL FEES,5902435557,1000080106
01.10.2020,CUSTOMER EXPERIENCE HGF,IMPERIAL COLLEGE PROJECTS LTD,344.00,CORONER'S,PROFESSIONAL FEES,5902435553,1000080106
01.10.2020,CUSTOMER EXPERIENCE HGF,IMPERIAL COLLEGE PROJECTS LTD,344.00,CORONER'S,PROFESSIONAL FEES,5902435556,1000080106
01.10.2020,CUSTOMER EXPERIENCE HGF,IMPERIAL COLLEGE PROJECTS LTD,388.00,CORONER'S,PROFESSIONAL FEES,5902435551,1000080106
01.10.2020,CUSTOMER EXPERIENCE HGF,TAAKSVALE HOUSING LTD,"10,540.00",RAPID REHOUSING,EXTERNAL AGENCIES AND BODIES,5902435631,1000073665
01.10.2020,ENVIRONMENT DIRECTORATE,MC PRODUCTS UK LTD,260.00,TEAMS 1 TO 12,"CLOTHING, UNIFORMS & LAUNDRY",5902435056,1000080166
01.10.2020,HOUSING HRA,SALTASH ENTERPRISES LTD,"12,951.72",CAPITAL PS (HRA),CONSTRUCTION MAIN CONTRACT -CERTIFICATED,2103150136,4013605
01.10.2020,HOUSING HRA,LASER SURVEYS LIMITED,"1,950.00",CAPITAL PS (HRA),CONSTRUCTION FEES  - EXTERNAL,5902435108,1000051587
01.10.2020,HOUSING HRA,L H BRIDGE LTD,"8,070.00",CAPITAL PS (HRA),CONST'N MAIN CONTRACT - NON CERTIFICATED,2103146994,3000001167
01.10.2020,LEISURE DIRECTORATE,EDWARDES (CAMBERWELL) LTD,375.00,DULWICH AREA TEAM,OTHER R&M,5902434965,11060365
01.10.2020,LEISURE DIRECTORATE,ASKEWS & HOLTS LIBRARY SERVICES LTD,684.78,STOCK SERVICES,BOOKS & PUBLICATIONS,5902435178,1494168
01.10.2020,LEISURE DIRECTORATE,ASKEWS & HOLTS LIBRARY SERVICES LTD,"6,720.40",STOCK SERVICES,BOOKS & PUBLICATIONS,5902435176,1494168
01.10.2020,MODERNISATION HGF,SAP (UK) LTD,409.48,APPLICATIONS,SOFTWARE,5902435627,1000002550
01.10.2020,NEW BUILD,CALFORD SEADEN LLP,418.00,DEVELOPMENT DELIVERY,PROFESSIONAL FEES,5902435111,1061592
01.10.2020,SBS OPERATIONS,AKW MEDI-CARE LTD,322.04,SBS AIDS AND ADAPTATIONS,MATERIALS,5902435498,1000047103
02.10.2020,ADULT SOCIAL CARE,SUPREME CARE SERVICES LTD,534.10,DISCHARGE TO ACCESS,HOMECARE - C&V,2103152252,1000059416
02.10.2020,ADULT SOCIAL CARE,SUPREME CARE SERVICES LTD,702.36,DISCHARGE TO ACCESS,HOMECARE - C&V,2103152342,1000059416
02.10.2020,ADULT SOCIAL CARE,SUPREME CARE SERVICES LTD,801.87,DISCHARGE TO ACCESS,HOMECARE - C&V,2103152503,1000059416
02.10.2020,ADULT SOCIAL CARE,SUPREME CARE SERVICES LTD,845.80,DISCHARGE TO ACCESS,HOMECARE - C&V,2103152537,1000059416
02.10.2020,ADULT SOCIAL CARE,SUPREME CARE SERVICES LTD,"1,434.62",DISCHARGE TO ACCESS,HOMECARE - C&V,2103152246,1000059416
02.10.2020,ADULT SOCIAL CARE,SUPREME CARE SERVICES LTD,"2,727.21",DISCHARGE TO ACCESS,HOMECARE - C&V,2103152396,1000059416
02.10.2020,ADULT SOCIAL CARE,SUPREME CARE SERVICES LTD,423.16,LD LTS 18-64,HOMECARE - C&V,2103152344,1000059416
02.10.2020,ADULT SOCIAL CARE,CARE DIRECT UK LTD,330.96,LD LTS 18-64,SUPPORTED LIVING,2103152189,1000066322
02.10.2020,ADULT SOCIAL CARE,CARE DIRECT UK LTD,330.96,LD LTS 18-64,SUPPORTED LIVING,2103152192,1000066322
02.10.2020,ADULT SOCIAL CARE,CARE DIRECT UK LTD,399.91,LD LTS 18-64,SUPPORTED LIVING,2103152196,1000066322
02.10.2020,ADULT SOCIAL CARE,BRISEN COMPANY LTD,286.60,LD LTS 18-64,SUPPORTED LIVING,2103152562,1000083000
02.10.2020,ADULT SOCIAL CARE,BRISEN COMPANY LTD,"1,428.00",LD LTS 18-64,SUPPORTED LIVING,2103152557,1000083000
02.10.2020,ADULT SOCIAL CARE,BRISEN COMPANY LTD,"8,234.48",LD LTS 18-64,SUPPORTED LIVING,2103152560,1000083000
02.10.2020,ADULT SOCIAL CARE,SUPREME CARE SERVICES LTD,729.98,LD LTS 65+,HOMECARE - C&V,2103152481,1000059416
02.10.2020,ADULT SOCIAL CARE,SUPREME CARE SERVICES LTD,969.37,LD LTS 65+,HOMECARE - C&V,2103152228,1000059416
02.10.2020,ADULT SOCIAL CARE,SUPREME CARE SERVICES LTD,469.23,MEM LTS 18-64,HOMECARE - C&V,2103152421,1000059416
02.10.2020,ADULT SOCIAL CARE,SUPREME CARE SERVICES LTD,366.52,MEM LTS 65+,HOMECARE - C&V,2103152257,1000059416
02.10.2020,ADULT SOCIAL CARE,SUPREME CARE SERVICES LTD,376.67,MEM LTS 65+,HOMECARE - C&V,2103152395,1000059416
02.10.2020,ADULT SOCIAL CARE,SUPREME CARE SERVICES LTD,469.23,MEM LTS 65+,HOMECARE - C&V,2103152422,1000059416
02.10.2020,ADULT SOCIAL CARE,SUPREME CARE SERVICES LTD,518.64,MEM LTS 65+,HOMECARE - C&V,2103152244,1000059416
02.10.2020,ADULT SOCIAL CARE,SUPREME CARE SERVICES LTD,589.23,MEM LTS 65+,HOMECARE - C&V,2103152242,1000059416
02.10.2020,ADULT SOCIAL CARE,SUPREME CARE SERVICES LTD,632.75,MEM LTS 65+,HOMECARE - C&V,2103152409,1000059416
02.10.2020,ADULT SOCIAL CARE,SUPREME CARE SERVICES LTD,785.60,MEM LTS 65+,HOMECARE - C&V,2103152524,1000059416
02.10.2020,ADULT SOCIAL CARE,SUPREME CARE SERVICES LTD,789.98,MEM LTS 65+,HOMECARE - C&V,2103152430,1000059416
02.10.2020,ADULT SOCIAL CARE,SUPREME CARE SERVICES LTD,"1,081.68",MEM LTS 65+,HOMECARE - C&V,2103152315,1000059416
02.10.2020,ADULT SOCIAL CARE,SUPREME CARE SERVICES LTD,"1,108.08",MEM LTS 65+,HOMECARE - C&V,2103152523,1000059416
02.10.2020,ADULT SOCIAL CARE,SUPREME CARE SERVICES LTD,"1,256.49",MEM LTS 65+,HOMECARE - C&V,2103152532,1000059416
02.10.2020,ADULT SOCIAL CARE,SUPREME CARE SERVICES LTD,284.30,MEM STS 65+,HOMECARE - IC,2103152243,1000059416
02.10.2020,ADULT SOCIAL CARE,SUPREME CARE SERVICES LTD,269.94,MH LTS 18-64,HOMECARE - C&V,2103152229,1000059416
02.10.2020,ADULT SOCIAL CARE,SUPREME CARE SERVICES LTD,445.95,MH LTS 18-64,HOMECARE - C&V,2103152507,1000059416
02.10.2020,ADULT SOCIAL CARE,SUPREME CARE SERVICES LTD,580.30,MH LTS 18-64,HOMECARE - C&V,2103152506,1000059416
02.10.2020,ADULT SOCIAL CARE,SUPREME CARE SERVICES LTD,855.12,MH LTS 18-64,HOMECARE - C&V,2103152281,1000059416
02.10.2020,ADULT SOCIAL CARE,SUPREME CARE SERVICES LTD,261.88,MH LTS 65+,HOMECARE - C&V,2103152279,1000059416
02.10.2020,ADULT SOCIAL CARE,SUPREME CARE SERVICES LTD,380.04,MH LTS 65+,HOMECARE - C&V,2103152473,1000059416
02.10.2020,ADULT SOCIAL CARE,SUPREME CARE SERVICES LTD,400.80,MH LTS 65+,HOMECARE - C&V,2103152359,1000059416
02.10.2020,ADULT SOCIAL CARE,SUPREME CARE SERVICES LTD,523.49,MH LTS 65+,HOMECARE - C&V,2103152544,1000059416
02.10.2020,ADULT SOCIAL CARE,SUPREME CARE SERVICES LTD,628.16,MH LTS 65+,HOMECARE - C&V,2103152235,1000059416
02.10.2020,ADULT SOCIAL CARE,SUPREME CARE SERVICES LTD,709.34,MH LTS 65+,HOMECARE - C&V,2103152368,1000059416
02.10.2020,ADULT SOCIAL CARE,SUPREME CARE SERVICES LTD,733.11,MH LTS 65+,HOMECARE - C&V,2103152262,1000059416
02.10.2020,ADULT SOCIAL CARE,SUPREME CARE SERVICES LTD,897.78,MH LTS 65+,HOMECARE - C&V,2103152367,1000059416
02.10.2020,ADULT SOCIAL CARE,OFFICE DEPOT UK LTD,"1,769.23",ORIENT ST � RESPITE,STATIONERY,5902435948,1109426
02.10.2020,ADULT SOCIAL CARE,SUPREME CARE SERVICES LTD,261.01,PHY LTS 18-64,HOMECARE - C&V,2103152493,1000059416
02.10.2020,ADULT SOCIAL CARE,SUPREME CARE SERVICES LTD,279.24,PHY LTS 18-64,HOMECARE - C&V,2103152529,1000059416
02.10.2020,ADULT SOCIAL CARE,SUPREME CARE SERVICES LTD,289.95,PHY LTS 18-64,HOMECARE - C&V,2103152237,1000059416
02.10.2020,ADULT SOCIAL CARE,SUPREME CARE SERVICES LTD,314.16,PHY LTS 18-64,HOMECARE - C&V,2103152512,1000059416
02.10.2020,ADULT SOCIAL CARE,SUPREME CARE SERVICES LTD,322.96,PHY LTS 18-64,HOMECARE - C&V,2103152501,1000059416
02.10.2020,ADULT SOCIAL CARE,SUPREME CARE SERVICES LTD,355.62,PHY LTS 18-64,HOMECARE - C&V,2103152515,1000059416
02.10.2020,ADULT SOCIAL CARE,SUPREME CARE SERVICES LTD,371.70,PHY LTS 18-64,HOMECARE - C&V,2103152443,1000059416
02.10.2020,ADULT SOCIAL CARE,SUPREME CARE SERVICES LTD,380.28,PHY LTS 18-64,HOMECARE - C&V,2103152419,1000059416
02.10.2020,ADULT SOCIAL CARE,SUPREME CARE SERVICES LTD,427.56,PHY LTS 18-64,HOMECARE - C&V,2103152249,1000059416
02.10.2020,ADULT SOCIAL CARE,SUPREME CARE SERVICES LTD,483.28,PHY LTS 18-64,HOMECARE - C&V,2103152414,1000059416
02.10.2020,ADULT SOCIAL CARE,SUPREME CARE SERVICES LTD,497.87,PHY LTS 18-64,HOMECARE - C&V,2103152474,1000059416
02.10.2020,ADULT SOCIAL CARE,SUPREME CARE SERVICES LTD,506.31,PHY LTS 18-64,HOMECARE - C&V,2103152543,1000059416
02.10.2020,ADULT SOCIAL CARE,SUPREME CARE SERVICES LTD,546.06,PHY LTS 18-64,HOMECARE - C&V,2103152324,1000059416
02.10.2020,ADULT SOCIAL CARE,SUPREME CARE SERVICES LTD,575.84,PHY LTS 18-64,HOMECARE - C&V,2103152442,1000059416
02.10.2020,ADULT SOCIAL CARE,SUPREME CARE SERVICES LTD,597.87,PHY LTS 18-64,HOMECARE - C&V,2103152296,1000059416
02.10.2020,ADULT SOCIAL CARE,SUPREME CARE SERVICES LTD,663.38,PHY LTS 18-64,HOMECARE - C&V,2103152521,1000059416
02.10.2020,ADULT SOCIAL CARE,SUPREME CARE SERVICES LTD,680.07,PHY LTS 18-64,HOMECARE - C&V,2103152383,1000059416
02.10.2020,ADULT SOCIAL CARE,SUPREME CARE SERVICES LTD,695.56,PHY LTS 18-64,HOMECARE - C&V,2103152297,1000059416
02.10.2020,ADULT SOCIAL CARE,SUPREME CARE SERVICES LTD,698.20,PHY LTS 18-64,HOMECARE - C&V,2103152294,1000059416
02.10.2020,ADULT SOCIAL CARE,SUPREME CARE SERVICES LTD,741.77,PHY LTS 18-64,HOMECARE - C&V,2103152382,1000059416
02.10.2020,ADULT SOCIAL CARE,SUPREME CARE SERVICES LTD,776.40,PHY LTS 18-64,HOMECARE - C&V,2103152403,1000059416
02.10.2020,ADULT SOCIAL CARE,SUPREME CARE SERVICES LTD,799.98,PHY LTS 18-64,HOMECARE - C&V,2103152486,1000059416
02.10.2020,ADULT SOCIAL CARE,SUPREME CARE SERVICES LTD,868.51,PHY LTS 18-64,HOMECARE - C&V,2103152299,1000059416
02.10.2020,ADULT SOCIAL CARE,SUPREME CARE SERVICES LTD,870.37,PHY LTS 18-64,HOMECARE - C&V,2103152275,1000059416
02.10.2020,ADULT SOCIAL CARE,SUPREME CARE SERVICES LTD,912.07,PHY LTS 18-64,HOMECARE - C&V,2103152462,1000059416
02.10.2020,ADULT SOCIAL CARE,SUPREME CARE SERVICES LTD,917.61,PHY LTS 18-64,HOMECARE - C&V,2103152550,1000059416
02.10.2020,ADULT SOCIAL CARE,SUPREME CARE SERVICES LTD,929.26,PHY LTS 18-64,HOMECARE - C&V,2103152491,1000059416
02.10.2020,ADULT SOCIAL CARE,SUPREME CARE SERVICES LTD,942.62,PHY LTS 18-64,HOMECARE - C&V,2103152426,1000059416
02.10.2020,ADULT SOCIAL CARE,SUPREME CARE SERVICES LTD,"1,012.68",PHY LTS 18-64,HOMECARE - C&V,2103152348,1000059416
02.10.2020,ADULT SOCIAL CARE,SUPREME CARE SERVICES LTD,"1,056.33",PHY LTS 18-64,HOMECARE - C&V,2103152520,1000059416
02.10.2020,ADULT SOCIAL CARE,SUPREME CARE SERVICES LTD,"1,197.22",PHY LTS 18-64,HOMECARE - C&V,2103152455,1000059416
02.10.2020,ADULT SOCIAL CARE,SUPREME CARE SERVICES LTD,"1,352.76",PHY LTS 18-64,HOMECARE - C&V,2103152385,1000059416
02.10.2020,ADULT SOCIAL CARE,SUPREME CARE SERVICES LTD,"1,440.03",PHY LTS 18-64,HOMECARE - C&V,2103152470,1000059416
02.10.2020,ADULT SOCIAL CARE,SUPREME CARE SERVICES LTD,"1,527.40",PHY LTS 18-64,HOMECARE - C&V,2103152509,1000059416
02.10.2020,ADULT SOCIAL CARE,SUPREME CARE SERVICES LTD,"1,692.79",PHY LTS 18-64,HOMECARE - C&V,2103152259,1000059416
02.10.2020,ADULT SOCIAL CARE,SUPREME CARE SERVICES LTD,"1,915.50",PHY LTS 18-64,HOMECARE - C&V,2103152343,1000059416
02.10.2020,ADULT SOCIAL CARE,SUPREME CARE SERVICES LTD,"2,020.72",PHY LTS 18-64,HOMECARE - C&V,2103152351,1000059416
02.10.2020,ADULT SOCIAL CARE,SUPREME CARE SERVICES LTD,"2,071.71",PHY LTS 18-64,HOMECARE - C&V,2103152366,1000059416
02.10.2020,ADULT SOCIAL CARE,SUPREME CARE SERVICES LTD,"3,402.59",PHY LTS 18-64,HOMECARE - C&V,2103152454,1000059416
02.10.2020,ADULT SOCIAL CARE,SUPREME CARE SERVICES LTD,"4,255.85",PHY LTS 18-64,HOMECARE - C&V,2103152456,1000059416
02.10.2020,ADULT SOCIAL CARE,SUPREME CARE SERVICES LTD,257.00,PHY LTS 65+,HOMECARE - C&V,2103152250,1000059416
02.10.2020,ADULT SOCIAL CARE,SUPREME CARE SERVICES LTD,260.00,PHY LTS 65+,HOMECARE - C&V,2103152448,1000059416
02.10.2020,ADULT SOCIAL CARE,SUPREME CARE SERVICES LTD,260.00,PHY LTS 65+,HOMECARE - C&V,2103152471,1000059416
02.10.2020,ADULT SOCIAL CARE,SUPREME CARE SERVICES LTD,260.59,PHY LTS 65+,HOMECARE - C&V,2103152451,1000059416
02.10.2020,ADULT SOCIAL CARE,SUPREME CARE SERVICES LTD,265.52,PHY LTS 65+,HOMECARE - C&V,2103152420,1000059416
02.10.2020,ADULT SOCIAL CARE,SUPREME CARE SERVICES LTD,274.92,PHY LTS 65+,HOMECARE - C&V,2103152436,1000059416
02.10.2020,ADULT SOCIAL CARE,SUPREME CARE SERVICES LTD,283.65,PHY LTS 65+,HOMECARE - C&V,2103152477,1000059416
02.10.2020,ADULT SOCIAL CARE,SUPREME CARE SERVICES LTD,294.94,PHY LTS 65+,HOMECARE - C&V,2103152453,1000059416
02.10.2020,ADULT SOCIAL CARE,SUPREME CARE SERVICES LTD,301.08,PHY LTS 65+,HOMECARE - C&V,2103152497,1000059416
02.10.2020,ADULT SOCIAL CARE,SUPREME CARE SERVICES LTD,311.72,PHY LTS 65+,HOMECARE - C&V,2103152492,1000059416
02.10.2020,ADULT SOCIAL CARE,SUPREME CARE SERVICES LTD,315.80,PHY LTS 65+,HOMECARE - C&V,2103152290,1000059416
02.10.2020,ADULT SOCIAL CARE,SUPREME CARE SERVICES LTD,323.52,PHY LTS 65+,HOMECARE - C&V,2103152498,1000059416
02.10.2020,ADULT SOCIAL CARE,SUPREME CARE SERVICES LTD,331.61,PHY LTS 65+,HOMECARE - C&V,2103152304,1000059416
02.10.2020,ADULT SOCIAL CARE,SUPREME CARE SERVICES LTD,344.72,PHY LTS 65+,HOMECARE - C&V,2103152334,1000059416
02.10.2020,ADULT SOCIAL CARE,SUPREME CARE SERVICES LTD,354.98,PHY LTS 65+,HOMECARE - C&V,2103152410,1000059416
02.10.2020,ADULT SOCIAL CARE,SUPREME CARE SERVICES LTD,357.78,PHY LTS 65+,HOMECARE - C&V,2103152376,1000059416
02.10.2020,ADULT SOCIAL CARE,SUPREME CARE SERVICES LTD,358.66,PHY LTS 65+,HOMECARE - C&V,2103152247,1000059416
02.10.2020,ADULT SOCIAL CARE,SUPREME CARE SERVICES LTD,362.25,PHY LTS 65+,HOMECARE - C&V,2103152354,1000059416
02.10.2020,ADULT SOCIAL CARE,SUPREME CARE SERVICES LTD,364.12,PHY LTS 65+,HOMECARE - C&V,2103152429,1000059416
02.10.2020,ADULT SOCIAL CARE,SUPREME CARE SERVICES LTD,366.52,PHY LTS 65+,HOMECARE - C&V,2103152274,1000059416
02.10.2020,ADULT SOCIAL CARE,SUPREME CARE SERVICES LTD,366.57,PHY LTS 65+,HOMECARE - C&V,2103152306,1000059416
02.10.2020,ADULT SOCIAL CARE,SUPREME CARE SERVICES LTD,368.19,PHY LTS 65+,HOMECARE - C&V,2103152495,1000059416
02.10.2020,ADULT SOCIAL CARE,SUPREME CARE SERVICES LTD,370.88,PHY LTS 65+,HOMECARE - C&V,2103152236,1000059416
02.10.2020,ADULT SOCIAL CARE,SUPREME CARE SERVICES LTD,370.98,PHY LTS 65+,HOMECARE - C&V,2103152224,1000059416
02.10.2020,ADULT SOCIAL CARE,SUPREME CARE SERVICES LTD,379.58,PHY LTS 65+,HOMECARE - C&V,2103152253,1000059416
02.10.2020,ADULT SOCIAL CARE,SUPREME CARE SERVICES LTD,379.67,PHY LTS 65+,HOMECARE - C&V,2103152480,1000059416
02.10.2020,ADULT SOCIAL CARE,SUPREME CARE SERVICES LTD,388.48,PHY LTS 65+,HOMECARE - C&V,2103152388,1000059416
02.10.2020,ADULT SOCIAL CARE,SUPREME CARE SERVICES LTD,392.76,PHY LTS 65+,HOMECARE - C&V,2103152533,1000059416
02.10.2020,ADULT SOCIAL CARE,SUPREME CARE SERVICES LTD,397.04,PHY LTS 65+,HOMECARE - C&V,2103152238,1000059416
02.10.2020,ADULT SOCIAL CARE,SUPREME CARE SERVICES LTD,401.42,PHY LTS 65+,HOMECARE - C&V,2103152466,1000059416
02.10.2020,ADULT SOCIAL CARE,SUPREME CARE SERVICES LTD,401.54,PHY LTS 65+,HOMECARE - C&V,2103152475,1000059416
02.10.2020,ADULT SOCIAL CARE,SUPREME CARE SERVICES LTD,405.88,PHY LTS 65+,HOMECARE - C&V,2103152267,1000059416
02.10.2020,ADULT SOCIAL CARE,SUPREME CARE SERVICES LTD,416.04,PHY LTS 65+,HOMECARE - C&V,2103152332,1000059416
02.10.2020,ADULT SOCIAL CARE,SUPREME CARE SERVICES LTD,436.36,PHY LTS 65+,HOMECARE - C&V,2103152302,1000059416
02.10.2020,ADULT SOCIAL CARE,SUPREME CARE SERVICES LTD,449.40,PHY LTS 65+,HOMECARE - C&V,2103152298,1000059416
02.10.2020,ADULT SOCIAL CARE,SUPREME CARE SERVICES LTD,456.70,PHY LTS 65+,HOMECARE - C&V,2103152225,1000059416
02.10.2020,ADULT SOCIAL CARE,SUPREME CARE SERVICES LTD,465.83,PHY LTS 65+,HOMECARE - C&V,2103152371,1000059416
02.10.2020,ADULT SOCIAL CARE,SUPREME CARE SERVICES LTD,471.23,PHY LTS 65+,HOMECARE - C&V,2103152271,1000059416
02.10.2020,ADULT SOCIAL CARE,SUPREME CARE SERVICES LTD,471.78,PHY LTS 65+,HOMECARE - C&V,2103152264,1000059416
02.10.2020,ADULT SOCIAL CARE,SUPREME CARE SERVICES LTD,480.41,PHY LTS 65+,HOMECARE - C&V,2103152541,1000059416
02.10.2020,ADULT SOCIAL CARE,SUPREME CARE SERVICES LTD,484.53,PHY LTS 65+,HOMECARE - C&V,2103152522,1000059416
02.10.2020,ADULT SOCIAL CARE,SUPREME CARE SERVICES LTD,497.37,PHY LTS 65+,HOMECARE - C&V,2103152460,1000059416
02.10.2020,ADULT SOCIAL CARE,SUPREME CARE SERVICES LTD,497.84,PHY LTS 65+,HOMECARE - C&V,2103152375,1000059416
02.10.2020,ADULT SOCIAL CARE,SUPREME CARE SERVICES LTD,505.18,PHY LTS 65+,HOMECARE - C&V,2103152513,1000059416
02.10.2020,ADULT SOCIAL CARE,SUPREME CARE SERVICES LTD,506.26,PHY LTS 65+,HOMECARE - C&V,2103152489,1000059416
02.10.2020,ADULT SOCIAL CARE,SUPREME CARE SERVICES LTD,509.07,PHY LTS 65+,HOMECARE - C&V,2103152464,1000059416
02.10.2020,ADULT SOCIAL CARE,SUPREME CARE SERVICES LTD,516.77,PHY LTS 65+,HOMECARE - C&V,2103152472,1000059416
02.10.2020,ADULT SOCIAL CARE,SUPREME CARE SERVICES LTD,517.80,PHY LTS 65+,HOMECARE - C&V,2103152328,1000059416
02.10.2020,ADULT SOCIAL CARE,SUPREME CARE SERVICES LTD,520.63,PHY LTS 65+,HOMECARE - C&V,2103152386,1000059416
02.10.2020,ADULT SOCIAL CARE,SUPREME CARE SERVICES LTD,532.29,PHY LTS 65+,HOMECARE - C&V,2103152374,1000059416
02.10.2020,ADULT SOCIAL CARE,SUPREME CARE SERVICES LTD,536.59,PHY LTS 65+,HOMECARE - C&V,2103152428,1000059416
02.10.2020,ADULT SOCIAL CARE,SUPREME CARE SERVICES LTD,554.14,PHY LTS 65+,HOMECARE - C&V,2103152483,1000059416
02.10.2020,ADULT SOCIAL CARE,SUPREME CARE SERVICES LTD,558.67,PHY LTS 65+,HOMECARE - C&V,2103152412,1000059416
02.10.2020,ADULT SOCIAL CARE,SUPREME CARE SERVICES LTD,580.36,PHY LTS 65+,HOMECARE - C&V,2103152316,1000059416
02.10.2020,ADULT SOCIAL CARE,SUPREME CARE SERVICES LTD,584.57,PHY LTS 65+,HOMECARE - C&V,2103152389,1000059416
02.10.2020,ADULT SOCIAL CARE,SUPREME CARE SERVICES LTD,591.24,PHY LTS 65+,HOMECARE - C&V,2103152365,1000059416
02.10.2020,ADULT SOCIAL CARE,SUPREME CARE SERVICES LTD,592.90,PHY LTS 65+,HOMECARE - C&V,2103152552,1000059416
02.10.2020,ADULT SOCIAL CARE,SUPREME CARE SERVICES LTD,594.64,PHY LTS 65+,HOMECARE - C&V,2103152322,1000059416
02.10.2020,ADULT SOCIAL CARE,SUPREME CARE SERVICES LTD,597.90,PHY LTS 65+,HOMECARE - C&V,2103152435,1000059416
02.10.2020,ADULT SOCIAL CARE,SUPREME CARE SERVICES LTD,600.09,PHY LTS 65+,HOMECARE - C&V,2103152496,1000059416
02.10.2020,ADULT SOCIAL CARE,SUPREME CARE SERVICES LTD,602.04,PHY LTS 65+,HOMECARE - C&V,2103152363,1000059416
02.10.2020,ADULT SOCIAL CARE,SUPREME CARE SERVICES LTD,602.22,PHY LTS 65+,HOMECARE - C&V,2103152280,1000059416
02.10.2020,ADULT SOCIAL CARE,SUPREME CARE SERVICES LTD,602.23,PHY LTS 65+,HOMECARE - C&V,2103152404,1000059416
02.10.2020,ADULT SOCIAL CARE,SUPREME CARE SERVICES LTD,603.96,PHY LTS 65+,HOMECARE - C&V,2103152323,1000059416
02.10.2020,ADULT SOCIAL CARE,SUPREME CARE SERVICES LTD,606.55,PHY LTS 65+,HOMECARE - C&V,2103152417,1000059416
02.10.2020,ADULT SOCIAL CARE,SUPREME CARE SERVICES LTD,606.59,PHY LTS 65+,HOMECARE - C&V,2103152254,1000059416
02.10.2020,ADULT SOCIAL CARE,SUPREME CARE SERVICES LTD,608.62,PHY LTS 65+,HOMECARE - C&V,2103152528,1000059416
02.10.2020,ADULT SOCIAL CARE,SUPREME CARE SERVICES LTD,609.82,PHY LTS 65+,HOMECARE - C&V,2103152380,1000059416
02.10.2020,ADULT SOCIAL CARE,SUPREME CARE SERVICES LTD,618.60,PHY LTS 65+,HOMECARE - C&V,2103152508,1000059416
02.10.2020,ADULT SOCIAL CARE,SUPREME CARE SERVICES LTD,619.66,PHY LTS 65+,HOMECARE - C&V,2103152255,1000059416
02.10.2020,ADULT SOCIAL CARE,SUPREME CARE SERVICES LTD,628.40,PHY LTS 65+,HOMECARE - C&V,2103152463,1000059416
02.10.2020,ADULT SOCIAL CARE,SUPREME CARE SERVICES LTD,632.68,PHY LTS 65+,HOMECARE - C&V,2103152502,1000059416
02.10.2020,ADULT SOCIAL CARE,SUPREME CARE SERVICES LTD,649.71,PHY LTS 65+,HOMECARE - C&V,2103152381,1000059416
02.10.2020,ADULT SOCIAL CARE,SUPREME CARE SERVICES LTD,650.24,PHY LTS 65+,HOMECARE - C&V,2103152407,1000059416
02.10.2020,ADULT SOCIAL CARE,SUPREME CARE SERVICES LTD,653.22,PHY LTS 65+,HOMECARE - C&V,2103152458,1000059416
02.10.2020,ADULT SOCIAL CARE,SUPREME CARE SERVICES LTD,663.40,PHY LTS 65+,HOMECARE - C&V,2103152358,1000059416
02.10.2020,ADULT SOCIAL CARE,SUPREME CARE SERVICES LTD,665.07,PHY LTS 65+,HOMECARE - C&V,2103152314,1000059416
02.10.2020,ADULT SOCIAL CARE,SUPREME CARE SERVICES LTD,667.64,PHY LTS 65+,HOMECARE - C&V,2103152277,1000059416
02.10.2020,ADULT SOCIAL CARE,SUPREME CARE SERVICES LTD,672.03,PHY LTS 65+,HOMECARE - C&V,2103152535,1000059416
02.10.2020,ADULT SOCIAL CARE,SUPREME CARE SERVICES LTD,672.20,PHY LTS 65+,HOMECARE - C&V,2103152379,1000059416
02.10.2020,ADULT SOCIAL CARE,SUPREME CARE SERVICES LTD,674.96,PHY LTS 65+,HOMECARE - C&V,2103152318,1000059416
02.10.2020,ADULT SOCIAL CARE,SUPREME CARE SERVICES LTD,684.07,PHY LTS 65+,HOMECARE - C&V,2103152326,1000059416
02.10.2020,ADULT SOCIAL CARE,SUPREME CARE SERVICES LTD,685.06,PHY LTS 65+,HOMECARE - C&V,2103152276,1000059416
02.10.2020,ADULT SOCIAL CARE,SUPREME CARE SERVICES LTD,716.38,PHY LTS 65+,HOMECARE - C&V,2103152408,1000059416
02.10.2020,ADULT SOCIAL CARE,SUPREME CARE SERVICES LTD,722.34,PHY LTS 65+,HOMECARE - C&V,2103152310,1000059416
02.10.2020,ADULT SOCIAL CARE,SUPREME CARE SERVICES LTD,729.67,PHY LTS 65+,HOMECARE - C&V,2103152240,1000059416
02.10.2020,ADULT SOCIAL CARE,SUPREME CARE SERVICES LTD,733.04,PHY LTS 65+,HOMECARE - C&V,2103152482,1000059416
02.10.2020,ADULT SOCIAL CARE,SUPREME CARE SERVICES LTD,740.53,PHY LTS 65+,HOMECARE - C&V,2103152309,1000059416
02.10.2020,ADULT SOCIAL CARE,SUPREME CARE SERVICES LTD,741.90,PHY LTS 65+,HOMECARE - C&V,2103152465,1000059416
02.10.2020,ADULT SOCIAL CARE,SUPREME CARE SERVICES LTD,748.63,PHY LTS 65+,HOMECARE - C&V,2103152439,1000059416
02.10.2020,ADULT SOCIAL CARE,SUPREME CARE SERVICES LTD,748.76,PHY LTS 65+,HOMECARE - C&V,2103152468,1000059416
02.10.2020,ADULT SOCIAL CARE,SUPREME CARE SERVICES LTD,750.66,PHY LTS 65+,HOMECARE - C&V,2103152548,1000059416
02.10.2020,ADULT SOCIAL CARE,SUPREME CARE SERVICES LTD,754.90,PHY LTS 65+,HOMECARE - C&V,2103152390,1000059416
02.10.2020,ADULT SOCIAL CARE,SUPREME CARE SERVICES LTD,755.81,PHY LTS 65+,HOMECARE - C&V,2103152360,1000059416
02.10.2020,ADULT SOCIAL CARE,SUPREME CARE SERVICES LTD,765.36,PHY LTS 65+,HOMECARE - C&V,2103152424,1000059416
02.10.2020,ADULT SOCIAL CARE,SUPREME CARE SERVICES LTD,768.00,PHY LTS 65+,HOMECARE - C&V,2103152525,1000059416
02.10.2020,ADULT SOCIAL CARE,SUPREME CARE SERVICES LTD,768.00,PHY LTS 65+,HOMECARE - C&V,2103152545,1000059416
02.10.2020,ADULT SOCIAL CARE,SUPREME CARE SERVICES LTD,785.62,PHY LTS 65+,HOMECARE - C&V,2103152467,1000059416
02.10.2020,ADULT SOCIAL CARE,SUPREME CARE SERVICES LTD,789.23,PHY LTS 65+,HOMECARE - C&V,2103152413,1000059416
02.10.2020,ADULT SOCIAL CARE,SUPREME CARE SERVICES LTD,821.18,PHY LTS 65+,HOMECARE - C&V,2103152504,1000059416
02.10.2020,ADULT SOCIAL CARE,SUPREME CARE SERVICES LTD,841.13,PHY LTS 65+,HOMECARE - C&V,2103152345,1000059416
02.10.2020,ADULT SOCIAL CARE,SUPREME CARE SERVICES LTD,842.12,PHY LTS 65+,HOMECARE - C&V,2103152433,1000059416
02.10.2020,ADULT SOCIAL CARE,SUPREME CARE SERVICES LTD,845.80,PHY LTS 65+,HOMECARE - C&V,2103152538,1000059416
02.10.2020,ADULT SOCIAL CARE,SUPREME CARE SERVICES LTD,846.71,PHY LTS 65+,HOMECARE - C&V,2103152547,1000059416
02.10.2020,ADULT SOCIAL CARE,SUPREME CARE SERVICES LTD,847.67,PHY LTS 65+,HOMECARE - C&V,2103152411,1000059416
02.10.2020,ADULT SOCIAL CARE,SUPREME CARE SERVICES LTD,853.06,PHY LTS 65+,HOMECARE - C&V,2103152269,1000059416
02.10.2020,ADULT SOCIAL CARE,SUPREME CARE SERVICES LTD,855.38,PHY LTS 65+,HOMECARE - C&V,2103152450,1000059416
02.10.2020,ADULT SOCIAL CARE,SUPREME CARE SERVICES LTD,855.40,PHY LTS 65+,HOMECARE - C&V,2103152293,1000059416
02.10.2020,ADULT SOCIAL CARE,SUPREME CARE SERVICES LTD,859.76,PHY LTS 65+,HOMECARE - C&V,2103152295,1000059416
02.10.2020,ADULT SOCIAL CARE,SUPREME CARE SERVICES LTD,864.16,PHY LTS 65+,HOMECARE - C&V,2103152427,1000059416
02.10.2020,ADULT SOCIAL CARE,SUPREME CARE SERVICES LTD,907.80,PHY LTS 65+,HOMECARE - C&V,2103152327,1000059416
02.10.2020,ADULT SOCIAL CARE,SUPREME CARE SERVICES LTD,914.60,PHY LTS 65+,HOMECARE - C&V,2103152487,1000059416
02.10.2020,ADULT SOCIAL CARE,SUPREME CARE SERVICES LTD,925.20,PHY LTS 65+,HOMECARE - C&V,2103152399,1000059416
02.10.2020,ADULT SOCIAL CARE,SUPREME CARE SERVICES LTD,964.43,PHY LTS 65+,HOMECARE - C&V,2103152459,1000059416
02.10.2020,ADULT SOCIAL CARE,SUPREME CARE SERVICES LTD,966.56,PHY LTS 65+,HOMECARE - C&V,2103152330,1000059416
02.10.2020,ADULT SOCIAL CARE,SUPREME CARE SERVICES LTD,969.08,PHY LTS 65+,HOMECARE - C&V,2103152226,1000059416
02.10.2020,ADULT SOCIAL CARE,SUPREME CARE SERVICES LTD,969.74,PHY LTS 65+,HOMECARE - C&V,2103152530,1000059416
02.10.2020,ADULT SOCIAL CARE,SUPREME CARE SERVICES LTD,973.77,PHY LTS 65+,HOMECARE - C&V,2103152245,1000059416
02.10.2020,ADULT SOCIAL CARE,SUPREME CARE SERVICES LTD,977.48,PHY LTS 65+,HOMECARE - C&V,2103152319,1000059416
02.10.2020,ADULT SOCIAL CARE,SUPREME CARE SERVICES LTD,994.96,PHY LTS 65+,HOMECARE - C&V,2103152536,1000059416
02.10.2020,ADULT SOCIAL CARE,SUPREME CARE SERVICES LTD,999.00,PHY LTS 65+,HOMECARE - C&V,2103152392,1000059416
02.10.2020,ADULT SOCIAL CARE,SUPREME CARE SERVICES LTD,"1,003.80",PHY LTS 65+,HOMECARE - C&V,2103152387,1000059416
02.10.2020,ADULT SOCIAL CARE,SUPREME CARE SERVICES LTD,"1,009.66",PHY LTS 65+,HOMECARE - C&V,2103152301,1000059416
02.10.2020,ADULT SOCIAL CARE,SUPREME CARE SERVICES LTD,"1,012.15",PHY LTS 65+,HOMECARE - C&V,2103152534,1000059416
02.10.2020,ADULT SOCIAL CARE,SUPREME CARE SERVICES LTD,"1,031.39",PHY LTS 65+,HOMECARE - C&V,2103152415,1000059416
02.10.2020,ADULT SOCIAL CARE,SUPREME CARE SERVICES LTD,"1,051.09",PHY LTS 65+,HOMECARE - C&V,2103152288,1000059416
02.10.2020,ADULT SOCIAL CARE,SUPREME CARE SERVICES LTD,"1,077.34",PHY LTS 65+,HOMECARE - C&V,2103152519,1000059416
02.10.2020,ADULT SOCIAL CARE,SUPREME CARE SERVICES LTD,"1,094.09",PHY LTS 65+,HOMECARE - C&V,2103152317,1000059416
02.10.2020,ADULT SOCIAL CARE,SUPREME CARE SERVICES LTD,"1,099.68",PHY LTS 65+,HOMECARE - C&V,2103152405,1000059416
02.10.2020,ADULT SOCIAL CARE,SUPREME CARE SERVICES LTD,"1,140.04",PHY LTS 65+,HOMECARE - C&V,2103152555,1000059416
02.10.2020,ADULT SOCIAL CARE,SUPREME CARE SERVICES LTD,"1,142.24",PHY LTS 65+,HOMECARE - C&V,2103152278,1000059416
02.10.2020,ADULT SOCIAL CARE,SUPREME CARE SERVICES LTD,"1,145.52",PHY LTS 65+,HOMECARE - C&V,2103152406,1000059416
02.10.2020,ADULT SOCIAL CARE,SUPREME CARE SERVICES LTD,"1,156.66",PHY LTS 65+,HOMECARE - C&V,2103152352,1000059416
02.10.2020,ADULT SOCIAL CARE,SUPREME CARE SERVICES LTD,"1,160.04",PHY LTS 65+,HOMECARE - C&V,2103152393,1000059416
02.10.2020,ADULT SOCIAL CARE,SUPREME CARE SERVICES LTD,"1,160.87",PHY LTS 65+,HOMECARE - C&V,2103152401,1000059416
02.10.2020,ADULT SOCIAL CARE,SUPREME CARE SERVICES LTD,"1,169.64",PHY LTS 65+,HOMECARE - C&V,2103152239,1000059416
02.10.2020,ADULT SOCIAL CARE,SUPREME CARE SERVICES LTD,"1,173.18",PHY LTS 65+,HOMECARE - C&V,2103152248,1000059416
02.10.2020,ADULT SOCIAL CARE,SUPREME CARE SERVICES LTD,"1,173.96",PHY LTS 65+,HOMECARE - C&V,2103152372,1000059416
02.10.2020,ADULT SOCIAL CARE,SUPREME CARE SERVICES LTD,"1,182.47",PHY LTS 65+,HOMECARE - C&V,2103152457,1000059416
02.10.2020,ADULT SOCIAL CARE,SUPREME CARE SERVICES LTD,"1,194.22",PHY LTS 65+,HOMECARE - C&V,2103152364,1000059416
02.10.2020,ADULT SOCIAL CARE,SUPREME CARE SERVICES LTD,"1,198.34",PHY LTS 65+,HOMECARE - C&V,2103152449,1000059416
02.10.2020,ADULT SOCIAL CARE,SUPREME CARE SERVICES LTD,"1,198.63",PHY LTS 65+,HOMECARE - C&V,2103152488,1000059416
02.10.2020,ADULT SOCIAL CARE,SUPREME CARE SERVICES LTD,"1,221.92",PHY LTS 65+,HOMECARE - C&V,2103152378,1000059416
02.10.2020,ADULT SOCIAL CARE,SUPREME CARE SERVICES LTD,"1,221.92",PHY LTS 65+,HOMECARE - C&V,2103152517,1000059416
02.10.2020,ADULT SOCIAL CARE,SUPREME CARE SERVICES LTD,"1,239.36",PHY LTS 65+,HOMECARE - C&V,2103152340,1000059416
02.10.2020,ADULT SOCIAL CARE,SUPREME CARE SERVICES LTD,"1,261.15",PHY LTS 65+,HOMECARE - C&V,2103152384,1000059416
02.10.2020,ADULT SOCIAL CARE,SUPREME CARE SERVICES LTD,"1,265.53",PHY LTS 65+,HOMECARE - C&V,2103152289,1000059416
02.10.2020,ADULT SOCIAL CARE,SUPREME CARE SERVICES LTD,"1,276.39",PHY LTS 65+,HOMECARE - C&V,2103152516,1000059416
02.10.2020,ADULT SOCIAL CARE,SUPREME CARE SERVICES LTD,"1,326.40",PHY LTS 65+,HOMECARE - C&V,2103152303,1000059416
02.10.2020,ADULT SOCIAL CARE,SUPREME CARE SERVICES LTD,"1,326.56",PHY LTS 65+,HOMECARE - C&V,2103152441,1000059416
02.10.2020,ADULT SOCIAL CARE,SUPREME CARE SERVICES LTD,"1,388.19",PHY LTS 65+,HOMECARE - C&V,2103152265,1000059416
02.10.2020,ADULT SOCIAL CARE,SUPREME CARE SERVICES LTD,"1,439.82",PHY LTS 65+,HOMECARE - C&V,2103152398,1000059416
02.10.2020,ADULT SOCIAL CARE,SUPREME CARE SERVICES LTD,"1,470.55",PHY LTS 65+,HOMECARE - C&V,2103152283,1000059416
02.10.2020,ADULT SOCIAL CARE,SUPREME CARE SERVICES LTD,"1,523.17",PHY LTS 65+,HOMECARE - C&V,2103152292,1000059416
02.10.2020,ADULT SOCIAL CARE,SUPREME CARE SERVICES LTD,"1,535.88",PHY LTS 65+,HOMECARE - C&V,2103152273,1000059416
02.10.2020,ADULT SOCIAL CARE,SUPREME CARE SERVICES LTD,"1,609.96",PHY LTS 65+,HOMECARE - C&V,2103152234,1000059416
02.10.2020,ADULT SOCIAL CARE,SUPREME CARE SERVICES LTD,"1,729.90",PHY LTS 65+,HOMECARE - C&V,2103152505,1000059416
02.10.2020,ADULT SOCIAL CARE,SUPREME CARE SERVICES LTD,"1,854.21",PHY LTS 65+,HOMECARE - C&V,2103152272,1000059416
02.10.2020,ADULT SOCIAL CARE,SUPREME CARE SERVICES LTD,"1,994.73",PHY LTS 65+,HOMECARE - C&V,2103152336,1000059416
02.10.2020,ADULT SOCIAL CARE,SUPREME CARE SERVICES LTD,"2,171.64",PHY LTS 65+,HOMECARE - C&V,2103152423,1000059416
02.10.2020,ADULT SOCIAL CARE,SUPREME CARE SERVICES LTD,"2,183.87",PHY LTS 65+,HOMECARE - C&V,2103152479,1000059416
02.10.2020,ADULT SOCIAL CARE,SUPREME CARE SERVICES LTD,"2,190.92",PHY LTS 65+,HOMECARE - C&V,2103152256,1000059416
02.10.2020,ADULT SOCIAL CARE,SUPREME CARE SERVICES LTD,"2,255.65",PHY LTS 65+,HOMECARE - C&V,2103152305,1000059416
02.10.2020,ADULT SOCIAL CARE,SUPREME CARE SERVICES LTD,"2,262.48",PHY LTS 65+,HOMECARE - C&V,2103152542,1000059416
02.10.2020,ADULT SOCIAL CARE,SUPREME CARE SERVICES LTD,"2,284.03",PHY LTS 65+,HOMECARE - C&V,2103152546,1000059416
02.10.2020,ADULT SOCIAL CARE,SUPREME CARE SERVICES LTD,"2,443.35",PHY LTS 65+,HOMECARE - C&V,2103152258,1000059416
02.10.2020,ADULT SOCIAL CARE,SUPREME CARE SERVICES LTD,"2,488.20",PHY LTS 65+,HOMECARE - C&V,2103152346,1000059416
02.10.2020,ADULT SOCIAL CARE,SUPREME CARE SERVICES LTD,"2,518.57",PHY LTS 65+,HOMECARE - C&V,2103152329,1000059416
02.10.2020,ADULT SOCIAL CARE,SUPREME CARE SERVICES LTD,"2,617.83",PHY LTS 65+,HOMECARE - C&V,2103152556,1000059416
02.10.2020,ADULT SOCIAL CARE,SUPREME CARE SERVICES LTD,"2,678.73",PHY LTS 65+,HOMECARE - C&V,2103152356,1000059416
02.10.2020,ADULT SOCIAL CARE,SUPREME CARE SERVICES LTD,"2,700.64",PHY LTS 65+,HOMECARE - C&V,2103152312,1000059416
02.10.2020,ADULT SOCIAL CARE,SUPREME CARE SERVICES LTD,"2,701.66",PHY LTS 65+,HOMECARE - C&V,2103152444,1000059416
02.10.2020,ADULT SOCIAL CARE,SUPREME CARE SERVICES LTD,"2,776.91",PHY LTS 65+,HOMECARE - C&V,2103152518,1000059416
02.10.2020,ADULT SOCIAL CARE,SUPREME CARE SERVICES LTD,"2,828.97",PHY LTS 65+,HOMECARE - C&V,2103152499,1000059416
02.10.2020,ADULT SOCIAL CARE,SUPREME CARE SERVICES LTD,"2,975.38",PHY LTS 65+,HOMECARE - C&V,2103152391,1000059416
02.10.2020,ADULT SOCIAL CARE,SUPREME CARE SERVICES LTD,"3,054.26",PHY LTS 65+,HOMECARE - C&V,2103152394,1000059416
02.10.2020,ADULT SOCIAL CARE,SUPREME CARE SERVICES LTD,"3,939.48",PHY LTS 65+,HOMECARE - C&V,2103152350,1000059416
02.10.2020,ADULT SOCIAL CARE,CARE DIRECT UK LTD,559.13,PHY LTS 65+,HOMECARE - SPOT,2103152195,1000066322
02.10.2020,ADULT SOCIAL CARE,CARE DIRECT UK LTD,559.13,PHY LTS 65+,HOMECARE - SPOT,2103152197,1000066322
02.10.2020,ADULT SOCIAL CARE,CARE DIRECT UK LTD,559.13,PHY LTS 65+,HOMECARE - SPOT,2103152198,1000066322
02.10.2020,ADULT SOCIAL CARE,CARE DIRECT UK LTD,621.25,PHY LTS 65+,HOMECARE - SPOT,2103152191,1000066322
02.10.2020,ADULT SOCIAL CARE,CARE DIRECT UK LTD,621.25,PHY LTS 65+,HOMECARE - SPOT,2103152200,1000066322
02.10.2020,ADULT SOCIAL CARE,CARE DIRECT UK LTD,621.25,PHY LTS 65+,HOMECARE - SPOT,2103152201,1000066322
02.10.2020,ADULT SOCIAL CARE,WESTMINSTER HOMECARE LTD,553.71,PHY LTS 65+,HOMECARE - SPOT,2103152561,1000075287
02.10.2020,ADULT SOCIAL CARE,SNOWBALL CARE UK LTD,912.00,PHY LTS 65+,HOMECARE - SPOT,2103152559,1000081483
02.10.2020,ADULT SOCIAL CARE,SNOWBALL CARE UK LTD,"1,696.00",PHY LTS 65+,HOMECARE - SPOT,2103152563,1000081483
02.10.2020,ADULT SOCIAL CARE,SUPREME CARE SERVICES LTD,264.21,PHY STS 65+,HOMECARE - IC,2103152307,1000059416
02.10.2020,ADULT SOCIAL CARE,SUPREME CARE SERVICES LTD,302.73,PHY STS 65+,HOMECARE - IC,2103152291,1000059416
02.10.2020,ADULT SOCIAL CARE,SUPREME CARE SERVICES LTD,593.23,PHY STS 65+,HOMECARE - IC,2103152331,1000059416
02.10.2020,ADULT SOCIAL CARE,SUPREME CARE SERVICES LTD,"1,527.40",PHY STS 65+,HOMECARE - IC,2103152510,1000059416
02.10.2020,ADULT SOCIAL CARE,SUPREME CARE SERVICES LTD,261.87,SEN LTS 65+,HOMECARE - C&V,2103152270,1000059416
02.10.2020,ADULT SOCIAL CARE,SUPREME CARE SERVICES LTD,881.23,SEN LTS 65+,HOMECARE - C&V,2103152357,1000059416
02.10.2020,ADULT SOCIAL CARE,SUPREME CARE SERVICES LTD,"2,593.22",SEN LTS 65+,HOMECARE - C&V,2103152485,1000059416
02.10.2020,ADULT SOCIAL CARE,SUPREME CARE SERVICES LTD,366.52,SOCIAL ISOLATION,HOMECARE - C&V,2103152531,1000059416
02.10.2020,ADULT SOCIAL CARE,SUPREME CARE SERVICES LTD,670.52,SOCIAL ISOLATION,HOMECARE - C&V,2103152446,1000059416
02.10.2020,ADULT SOCIAL CARE,SUPREME CARE SERVICES LTD,"2,199.68",SOCIAL ISOLATION,HOMECARE - C&V,2103152434,1000059416
02.10.2020,ADULT SOCIAL CARE,SUPREME CARE SERVICES LTD,"3,268.71",SOCIAL ISOLATION,HOMECARE - C&V,2103152416,1000059416
02.10.2020,ADULT SOCIAL CARE,SUPREME CARE SERVICES LTD,345.16,SUB LTS 18-64,HOMECARE - C&V,2103152287,1000059416
02.10.2020,ADULT SOCIAL CARE,SUPREME CARE SERVICES LTD,750.56,SUB LTS 18-64,HOMECARE - C&V,2103152333,1000059416
02.10.2020,CENTRAL FUNCTIONS,STANBURY BUILDING SERVICES LTD,850.00,COMMERCIAL PROPERTIES,BUILDING R&M,2103152636,3000001967
02.10.2020,CENTRAL FUNCTIONS,COMPLETE SERVICES LONDON LTD,"4,800.00",COMMERCIAL PROPERTIES,BUILDING R&M,2103152156,3000002160
02.10.2020,CHIEF EXECUTIVE,BROOKS ART C.I.C.,"7,000.00",CAPITAL PS (REGEN),CONSTRUCTION FEES  - EXTERNAL,5902435147,1000084821
02.10.2020,CHILDREN AND ADULT,PDC CONSTRUCTION SERVICES LTD,"1,600.00",CAPITAL PS (EDUCATION),CONSTRUCTION SITE COSTS,2103152155,3000001841
02.10.2020,CHILDREN AND ADULT,ARVI CONSTRUCTION LTD,"25,000.00",CAPITAL PS (EDUCATION),CONSTRUCTION MAIN CONTRACT,2103150085,3000002133
02.10.2020,CHILDREN AND ADULT,COTTRELL AND VERMEULEN ARCH LTD,500.00,CAPITAL PS (SOC SERV),CONSTRUCTION FEES - ARCHITECT,5902434816,1000012119
02.10.2020,CHILDREN AND ADULT,KIER FACILITIES SERVICES LTD,"21,898.60",CAPITAL PS (SOC SERV),CONSTRUCTION MAIN CONTRACT,2103152624,3000001990
02.10.2020,CHILDREN AND ADULT,ZFA ACCOMMODATION LTD,"1,116.00",TEMP ACCOM FOR IH,EXTERNAL AGENCIES AND BODIES,5902435995,1000082620
02.10.2020,CHILDREN AND ADULT,ZFA ACCOMMODATION LTD,"1,116.00",TEMP ACCOM FOR IH,EXTERNAL AGENCIES AND BODIES,5902435997,1000082620
02.10.2020,CHILDREN AND ADULT,ZFA ACCOMMODATION LTD,"1,767.00",TEMP ACCOM FOR IH,EXTERNAL AGENCIES AND BODIES,5902435993,1000082620
02.10.2020,CHILDREN AND ADULT,ZFA ACCOMMODATION LTD,"1,767.00",TEMP ACCOM FOR IH,EXTERNAL AGENCIES AND BODIES,5902435998,1000082620
02.10.2020,CHILDREN AND FAMILIES,JUST FOR KIDS LAW LTD,"1,250.00",C&F GENERAL TRAINING,TRAINING,5902435163,1000085122
02.10.2020,CHILDREN AND FAMILIES,REDACTED PERSONAL DATA,300.00,CARELEAVER UNIV SUPP,CLIENT TRANSPORT,REDACTED,REDACTED
02.10.2020,CHILDREN AND FAMILIES,REDACTED PERSONAL DATA,700.00,CARELEAVER UNIV SUPP,OTHER PAYMENTS FOR CLIENTS,REDACTED,REDACTED
02.10.2020,CHILDREN AND FAMILIES,REDACTED PERSONAL DATA,300.00,CARELEAVER UNIV SUPP,CLIENT TRANSPORT,REDACTED,REDACTED
02.10.2020,CHILDREN AND FAMILIES,REDACTED PERSONAL DATA,700.00,CARELEAVER UNIV SUPP,OTHER PAYMENTS FOR CLIENTS,REDACTED,REDACTED
02.10.2020,CHILDREN AND FAMILIES,AIDHOUR LIMITED,258.00,CHILD PROTECTION UNIT,PROFESSIONAL FEES,5902435939,1000057345
02.10.2020,CHILDREN AND FAMILIES,AIDHOUR LIMITED,387.00,CHILD PROTECTION UNIT,PROFESSIONAL FEES,5902435937,1000057345
02.10.2020,CHILDREN AND FAMILIES,AIDHOUR LIMITED,516.00,CHILD PROTECTION UNIT,PROFESSIONAL FEES,5902435933,1000057345
02.10.2020,CHILDREN AND FAMILIES,AIDHOUR LIMITED,586.00,CHILD PROTECTION UNIT,PROFESSIONAL FEES,5902435931,1000057345
02.10.2020,CHILDREN AND FAMILIES,REDACTED PERSONAL DATA,671.00,DISABILITY & HIV,PAYMENTS TO CARERS,REDACTED,REDACTED
02.10.2020,CHILDREN AND FAMILIES,REDACTED PERSONAL DATA,300.00,DISABILITY & HIV,ADDITIONAL PAYMENTS TO AGENCIES/CARERS,REDACTED,REDACTED
02.10.2020,CHILDREN AND FAMILIES,REDACTED PERSONAL DATA,"1,220.00",DISABILITY & HIV,PAYMENTS TO CARERS,REDACTED,REDACTED
02.10.2020,CHILDREN AND FAMILIES,REDACTED PERSONAL DATA,"2,056.14",DISABILITY & HIV,PAYMENTS TO CARERS,REDACTED,REDACTED
02.10.2020,CHILDREN AND FAMILIES,REDACTED PERSONAL DATA,"2,056.14",DISABILITY & HIV,PAYMENTS TO CARERS,REDACTED,REDACTED
02.10.2020,CHILDREN AND FAMILIES,REDACTED PERSONAL DATA,300.00,DISABILITY & HIV,ADDITIONAL PAYMENTS TO AGENCIES/CARERS,REDACTED,REDACTED
02.10.2020,CHILDREN AND FAMILIES,REDACTED PERSONAL DATA,300.00,DISABILITY & HIV,ADDITIONAL PAYMENTS TO AGENCIES/CARERS,REDACTED,REDACTED
02.10.2020,CHILDREN AND FAMILIES,REDACTED PERSONAL DATA,"-2,642.00",DISABILITY & HIV,PAYMENTS TO CARERS,REDACTED,REDACTED
02.10.2020,CHILDREN AND FAMILIES,REDACTED PERSONAL DATA,"4,514.00",DISABILITY & HIV,PAYMENTS TO CARERS,REDACTED,REDACTED
02.10.2020,CHILDREN AND FAMILIES,REDACTED PERSONAL DATA,400.00,DISABILITY & HIV,ADDITIONAL PAYMENTS TO AGENCIES/CARERS,REDACTED,REDACTED
02.10.2020,CHILDREN AND FAMILIES,REDACTED PERSONAL DATA,"2,989.28",DISABILITY & HIV,PAYMENTS TO CARERS,REDACTED,REDACTED
02.10.2020,CHILDREN AND FAMILIES,REDACTED PERSONAL DATA,"-3,000.57",DISABILITY & HIV,PAYMENTS TO CARERS,REDACTED,REDACTED
02.10.2020,CHILDREN AND FAMILIES,REDACTED PERSONAL DATA,"3,000.00",DISABILITY & HIV,PAYMENTS TO CARERS,REDACTED,REDACTED
02.10.2020,CHILDREN AND FAMILIES,REDACTED PERSONAL DATA,750.00,DISABILITY & HIV,PAYMENTS TO CARERS,REDACTED,REDACTED
02.10.2020,CHILDREN AND FAMILIES,PURPLE PEBBLES(CHILD CARE) SERVICES,300.00,FE SUPPORT,CLIENT TRANSPORT,5902435987,1000070705
02.10.2020,CHILDREN AND FAMILIES,IASPIRE CARE SERVICES LTD,300.00,FE SUPPORT,CLIENT TRANSPORT,5902436049,1000081500
02.10.2020,CHILDREN AND FAMILIES,IASPIRE CARE SERVICES LTD,300.00,FE SUPPORT,CLIENT TRANSPORT,5902436050,1000081500
02.10.2020,CHILDREN AND FAMILIES,IASPIRE CARE SERVICES LTD,300.00,FE SUPPORT,CLIENT TRANSPORT,5902436051,1000081500
02.10.2020,CHILDREN AND FAMILIES,IASPIRE CARE SERVICES LTD,300.00,FE SUPPORT,CLIENT TRANSPORT,5902436052,1000081500
02.10.2020,CHILDREN AND FAMILIES,IASPIRE CARE SERVICES LTD,400.00,FE SUPPORT,COUNCIL TAX REBATES,5902436052,1000081500
02.10.2020,CHILDREN AND FAMILIES,REDACTED PERSONAL DATA,300.00,FE SUPPORT,CLIENT TRANSPORT,REDACTED,REDACTED
02.10.2020,CHILDREN AND FAMILIES,REDACTED PERSONAL DATA,300.00,FE SUPPORT,CLIENT TRANSPORT,REDACTED,REDACTED
02.10.2020,CHILDREN AND FAMILIES,REDACTED PERSONAL DATA,300.00,FE SUPPORT,CLIENT TRANSPORT,REDACTED,REDACTED
02.10.2020,CHILDREN AND FAMILIES,REDACTED PERSONAL DATA,300.00,FE SUPPORT,CLIENT TRANSPORT,REDACTED,REDACTED
02.10.2020,CHILDREN AND FAMILIES,REDACTED PERSONAL DATA,890.00,FRIENDS &FAMILY FOST,PAYMENTS TO CARERS,REDACTED,REDACTED
02.10.2020,CHILDREN AND FAMILIES,REDACTED PERSONAL DATA,350.00,FRIENDS &FAMILY FOST,PAYMENTS TO CARERS,REDACTED,REDACTED
02.10.2020,CHILDREN AND FAMILIES,REDACTED PERSONAL DATA,"2,000.00",LEAVING CARE GRANT,OTHER PAYMENTS FOR CLIENTS,REDACTED,REDACTED
02.10.2020,CHILDREN AND FAMILIES,HM PRISON & PROBATION SERVICE,"14,043.00",REMAND - YDA STC & SCH,RESIDENTIAL CARE,5902435283,1000083827
02.10.2020,CHILDREN AND FAMILIES,HM PRISON & PROBATION SERVICE,"14,043.00",REMAND - YDA STC & SCH,RESIDENTIAL CARE,5902435297,1000083827
02.10.2020,CHILDREN AND FAMILIES,HM PRISON & PROBATION SERVICE,"9,951.00",REMAND - YDA YOI,RESIDENTIAL CARE,5902435291,1000083827
02.10.2020,CHILDREN AND FAMILIES,HM PRISON & PROBATION SERVICE,"9,951.00",REMAND - YDA YOI,RESIDENTIAL CARE,5902435294,1000083827
02.10.2020,CHILDREN AND FAMILIES,LOOK AHEAD CARE AND SUPPORT LTD,"1,530.34",SEMI-IND CARELEAVERS,EXTERNAL AGENCIES AND BODIES,2103152587,1000047299
02.10.2020,CHILDREN AND FAMILIES,LOOK AHEAD CARE AND SUPPORT LTD,"2,424.42",SEMI-IND CARELEAVERS,EXTERNAL AGENCIES AND BODIES,2103152593,1000047299
02.10.2020,CHILDREN AND FAMILIES,PURPLE PEBBLES(CHILD CARE) SERVICES,-953.33,SEMI-IND CARELEAVERS,COSTS RECOVERED,2103152623,1000070705
02.10.2020,CHILDREN AND FAMILIES,PURPLE PEBBLES(CHILD CARE) SERVICES,-894.99,SEMI-IND CARELEAVERS,COSTS RECOVERED,2103152618,1000070705
02.10.2020,CHILDREN AND FAMILIES,PURPLE PEBBLES(CHILD CARE) SERVICES,-894.99,SEMI-IND CARELEAVERS,COSTS RECOVERED,2103152620,1000070705
02.10.2020,CHILDREN AND FAMILIES,PURPLE PEBBLES(CHILD CARE) SERVICES,-875.00,SEMI-IND CARELEAVERS,COSTS RECOVERED,2103152617,1000070705
02.10.2020,CHILDREN AND FAMILIES,PURPLE PEBBLES(CHILD CARE) SERVICES,-697.75,SEMI-IND CARELEAVERS,COSTS RECOVERED,2103152619,1000070705
02.10.2020,CHILDREN AND FAMILIES,PURPLE PEBBLES(CHILD CARE) SERVICES,-449.99,SEMI-IND CARELEAVERS,COSTS RECOVERED,2103152621,1000070705
02.10.2020,CHILDREN AND FAMILIES,PURPLE PEBBLES(CHILD CARE) SERVICES,-449.99,SEMI-IND CARELEAVERS,COSTS RECOVERED,2103152622,1000070705
02.10.2020,CHILDREN AND FAMILIES,PURPLE PEBBLES(CHILD CARE) SERVICES,642.86,SEMI-IND CARELEAVERS,EXTERNAL AGENCIES AND BODIES,2103152613,1000070705
02.10.2020,CHILDREN AND FAMILIES,PURPLE PEBBLES(CHILD CARE) SERVICES,"1,607.14",SEMI-IND CARELEAVERS,EXTERNAL AGENCIES AND BODIES,2103152600,1000070705
02.10.2020,CHILDREN AND FAMILIES,PURPLE PEBBLES(CHILD CARE) SERVICES,"1,650.00",SEMI-IND CARELEAVERS,EXTERNAL AGENCIES AND BODIES,2103152582,1000070705
02.10.2020,CHILDREN AND FAMILIES,PURPLE PEBBLES(CHILD CARE) SERVICES,"1,660.71",SEMI-IND CARELEAVERS,EXTERNAL AGENCIES AND BODIES,2103152615,1000070705
02.10.2020,CHILDREN AND FAMILIES,PURPLE PEBBLES(CHILD CARE) SERVICES,"1,928.57",SEMI-IND CARELEAVERS,EXTERNAL AGENCIES AND BODIES,2103152591,1000070705
02.10.2020,CHILDREN AND FAMILIES,PURPLE PEBBLES(CHILD CARE) SERVICES,"1,928.57",SEMI-IND CARELEAVERS,EXTERNAL AGENCIES AND BODIES,2103152605,1000070705
02.10.2020,CHILDREN AND FAMILIES,PURPLE PEBBLES(CHILD CARE) SERVICES,"1,982.14",SEMI-IND CARELEAVERS,EXTERNAL AGENCIES AND BODIES,2103152607,1000070705
02.10.2020,CHILDREN AND FAMILIES,PURPLE PEBBLES(CHILD CARE) SERVICES,"2,035.71",SEMI-IND CARELEAVERS,EXTERNAL AGENCIES AND BODIES,2103152588,1000070705
02.10.2020,CHILDREN AND FAMILIES,PURPLE PEBBLES(CHILD CARE) SERVICES,"2,400.00",SEMI-IND CARELEAVERS,EXTERNAL AGENCIES AND BODIES,2103152586,1000070705
02.10.2020,CHILDREN AND FAMILIES,PURPLE PEBBLES(CHILD CARE) SERVICES,"2,507.14",SEMI-IND CARELEAVERS,EXTERNAL AGENCIES AND BODIES,2103152609,1000070705
02.10.2020,CHILDREN AND FAMILIES,CREATING LIFESTYLES LTD,"16,080.00",SEMI-IND CARELEAVERS,EXTERNAL AGENCIES AND BODIES,2103152594,1000075830
02.10.2020,CHILDREN AND FAMILIES,CREATING LIFESTYLES LTD,"16,080.00",SEMI-IND CARELEAVERS,EXTERNAL AGENCIES AND BODIES,2103152606,1000075830
02.10.2020,CHILDREN AND FAMILIES,REDACTED PERSONAL DATA,490.00,SEMI-IND CARELEAVERS,OTHER PAYMENTS FOR CLIENTS,REDACTED,REDACTED
02.10.2020,CHILDREN AND FAMILIES,REDACTED PERSONAL DATA,425.00,SEMI-IND CARELEAVERS,RESIDENTIAL CARE,REDACTED,REDACTED
02.10.2020,CHILDREN AND FAMILIES,REDACTED PERSONAL DATA,490.00,SEMI-IND CARELEAVERS,OTHER PAYMENTS FOR CLIENTS,REDACTED,REDACTED
02.10.2020,CHILDREN AND FAMILIES,REDACTED PERSONAL DATA,490.00,SEMI-IND CARELEAVERS,RESIDENTIAL CARE,REDACTED,REDACTED
02.10.2020,CHILDREN AND FAMILIES,ST CHRISTOPHER FELLOWSHIP,"5,571.30",SEMI-IND LAC 16-17,EXTERNAL AGENCIES AND BODIES,2103152573,1000045269
02.10.2020,CHILDREN AND FAMILIES,PURPLE PEBBLES(CHILD CARE) SERVICES,"1,885.71",SEMI-IND LAC 16-17,EXTERNAL AGENCIES AND BODIES,2103152566,1000070705
02.10.2020,CHILDREN AND FAMILIES,RELA SUPPORT SERVICES LTD,"11,681.42",SEMI-IND LAC 16-17,EXTERNAL AGENCIES AND BODIES,2103152577,1000073128
02.10.2020,CHILDREN AND FAMILIES,RELA SUPPORT SERVICES LTD,"14,742.00",SEMI-IND LAC 16-17,EXTERNAL AGENCIES AND BODIES,2103152572,1000073128
02.10.2020,CHILDREN AND FAMILIES,TEENS CRISIS UK,893.00,SEMI-IND LAC 16-17,OTHER PAYMENTS FOR CLIENTS,2103152616,1000078214
02.10.2020,CHILDREN AND FAMILIES,BRIGHT YOUNG FUTURES LTD,"1,909.99",SEMI-IND LAC 16-17,EXTERNAL AGENCIES AND BODIES,2103152578,1000083958
02.10.2020,CHILDREN AND FAMILIES,BRIGHT YOUNG FUTURES LTD,"4,887.13",SEMI-IND LAC 16-17,EXTERNAL AGENCIES AND BODIES,2103152571,1000083958
02.10.2020,CHILDREN AND FAMILIES,CHILDREN OF COLOUR,"1,285.71",STAYPUT- FOST CARERS,EXTERNAL AGENCIES AND BODIES,2103152583,1000044955
02.10.2020,CHILDREN AND FAMILIES,CHILDREN OF COLOUR,"1,285.71",STAYPUT- FOST CARERS,EXTERNAL AGENCIES AND BODIES,2103152603,1000044955
02.10.2020,CHILDREN AND FAMILIES,COMPASS FOSTERING LONDON LTD,"2,142.90",STAYPUT- FOST CARERS,EXTERNAL AGENCIES AND BODIES,2103152590,1000057908
02.10.2020,CHILDREN AND FAMILIES,REDACTED PERSONAL DATA,"1,100.00",TEAM C,OTHER PAYMENTS FOR CLIENTS,REDACTED,REDACTED
02.10.2020,CHILDREN AND FAMILIES,LOOK AHEAD CARE AND SUPPORT LTD,"2,136.30",UASC CARELEAVERS,EXTERNAL AGENCIES AND BODIES,2103152611,1000047299
02.10.2020,CHILDREN AND FAMILIES,LOOK AHEAD CARE AND SUPPORT LTD,"2,207.51",UASC CARELEAVERS,EXTERNAL AGENCIES AND BODIES,2103152592,1000047299
02.10.2020,CHILDREN AND FAMILIES,LOOK AHEAD CARE AND SUPPORT LTD,"2,815.79",UASC CARELEAVERS,EXTERNAL AGENCIES AND BODIES,2103152581,1000047299
02.10.2020,CHILDREN AND FAMILIES,PURPLE PEBBLES(CHILD CARE) SERVICES,350.00,UASC CARELEAVERS,EXTERNAL AGENCIES AND BODIES,2103152612,1000070705
02.10.2020,CHILDREN AND FAMILIES,PURPLE PEBBLES(CHILD CARE) SERVICES,"1,542.86",UASC CARELEAVERS,EXTERNAL AGENCIES AND BODIES,2103152614,1000070705
02.10.2020,CHILDREN AND FAMILIES,PURPLE PEBBLES(CHILD CARE) SERVICES,"1,564.29",UASC CARELEAVERS,EXTERNAL AGENCIES AND BODIES,2103152596,1000070705
02.10.2020,CHILDREN AND FAMILIES,PURPLE PEBBLES(CHILD CARE) SERVICES,"1,692.86",UASC CARELEAVERS,EXTERNAL AGENCIES AND BODIES,2103152597,1000070705
02.10.2020,CHILDREN AND FAMILIES,PURPLE PEBBLES(CHILD CARE) SERVICES,"1,692.86",UASC CARELEAVERS,EXTERNAL AGENCIES AND BODIES,2103152602,1000070705
02.10.2020,CHILDREN AND FAMILIES,PURPLE PEBBLES(CHILD CARE) SERVICES,"1,714.29",UASC CARELEAVERS,EXTERNAL AGENCIES AND BODIES,2103152608,1000070705
02.10.2020,CHILDREN AND FAMILIES,PURPLE PEBBLES(CHILD CARE) SERVICES,"1,757.14",UASC CARELEAVERS,EXTERNAL AGENCIES AND BODIES,2103152604,1000070705
02.10.2020,CHILDREN AND FAMILIES,PURPLE PEBBLES(CHILD CARE) SERVICES,"1,821.43",UASC CARELEAVERS,EXTERNAL AGENCIES AND BODIES,2103152598,1000070705
02.10.2020,CHILDREN AND FAMILIES,PURPLE PEBBLES(CHILD CARE) SERVICES,"1,842.86",UASC CARELEAVERS,EXTERNAL AGENCIES AND BODIES,2103152589,1000070705
02.10.2020,CHILDREN AND FAMILIES,PURPLE PEBBLES(CHILD CARE) SERVICES,"1,928.57",UASC CARELEAVERS,EXTERNAL AGENCIES AND BODIES,2103152601,1000070705
02.10.2020,CHILDREN AND FAMILIES,PURPLE PEBBLES(CHILD CARE) SERVICES,"2,025.00",UASC CARELEAVERS,EXTERNAL AGENCIES AND BODIES,2103152595,1000070705
02.10.2020,CHILDREN AND FAMILIES,PURPLE PEBBLES(CHILD CARE) SERVICES,350.00,UASC CARELEAVERS,OTHER PAYMENTS FOR CLIENTS,2103152585,1000070705
02.10.2020,CHILDREN AND FAMILIES,PURPLE PEBBLES(CHILD CARE) SERVICES,"1,885.71",UASC LAC 16-17,EXTERNAL AGENCIES AND BODIES,2103152564,1000070705
02.10.2020,CHILDREN AND FAMILIES,PURPLE PEBBLES(CHILD CARE) SERVICES,"1,885.71",UASC LAC 16-17,EXTERNAL AGENCIES AND BODIES,2103152565,1000070705
02.10.2020,CHILDREN AND FAMILIES,PURPLE PEBBLES(CHILD CARE) SERVICES,"1,885.71",UASC LAC 16-17,EXTERNAL AGENCIES AND BODIES,2103152569,1000070705
02.10.2020,CHILDREN AND FAMILIES,PURPLE PEBBLES(CHILD CARE) SERVICES,"1,917.86",UASC LAC 16-17,EXTERNAL AGENCIES AND BODIES,2103152570,1000070705
02.10.2020,CHILDREN AND FAMILIES,PURPLE PEBBLES(CHILD CARE) SERVICES,"1,928.57",UASC LAC 16-17,EXTERNAL AGENCIES AND BODIES,2103152575,1000070705
02.10.2020,CHILDREN AND FAMILIES,PURPLE PEBBLES(CHILD CARE) SERVICES,"1,992.86",UASC LAC 16-17,EXTERNAL AGENCIES AND BODIES,2103152567,1000070705
02.10.2020,CHILDREN AND FAMILIES,PURPLE PEBBLES(CHILD CARE) SERVICES,280.00,UASC LAC 16-17,OTHER PAYMENTS FOR CLIENTS,2103152568,1000070705
02.10.2020,CHILDREN AND FAMILIES,PURPLE PEBBLES(CHILD CARE) SERVICES,280.00,UASC LAC 16-17,OTHER PAYMENTS FOR CLIENTS,2103152576,1000070705
02.10.2020,CHILDREN AND FAMILIES,PURPLE PEBBLES(CHILD CARE) SERVICES,280.00,UASC LAC 16-17,OTHER PAYMENTS FOR CLIENTS,2103152580,1000070705
02.10.2020,CHILDREN'S SERVICES,RSM RISK ASSURANCE SERVICES LLP,"2,660.00",ALC MANAGEMENT AND SUPPORT,PAYMENTS FOR FINANCIAL SERVICES,5902435986,1000050690
02.10.2020,CHILDREN'S SERVICES,FLEET TUTORS,585.00,PUPIL PREMIUM CURRENT YEAR,EXTERNAL AGENCIES AND BODIES,5902436030,1000044820
02.10.2020,CHILDREN'S SERVICES,FLEET TUTORS,"2,129.00",PUPIL PREMIUM CURRENT YEAR,EXTERNAL AGENCIES AND BODIES,5902436033,1000044820
02.10.2020,CHILDREN'S SERVICES,FLEET TUTORS,"2,475.00",PUPIL PREMIUM CURRENT YEAR,EXTERNAL AGENCIES AND BODIES,5902436031,1000044820
02.10.2020,CHILDREN'S SERVICES,ALLPAY LTD (0-25),"50,000.00",SCH TRANS - CONTRACT COST,OTHER PAYMENTS FOR CLIENTS,5902435917,1000083062
02.10.2020,COMMUNITIES,BESTWAY WHOLESALE LTD,709.28,C19 COMMUNITY HUB,CATERING MATERIALS & SUPPLIES,5902435901,1000084515
02.10.2020,COMMUNITIES,KENNINGTON PARK HSE MGMT CO-OP,956.00,KENNINGTON PK CO-OP,M&M ALLOWANCE CO-OPS,5902434830,1000056189
02.10.2020,COMMUNITIES,SUPREME CARE SERVICES LTD,442.43,NO RECOURSE TO PUBLIC FUNDS,HOMECARE - C&V,2103152452,1000059416
02.10.2020,COMMUNITIES,WILSON SOLICITORS LLP,"1,700.00",NO RECOURSE TO PUBLIC FUNDS,LEGAL FEES & COURT COSTS,5902435562,1000084191
02.10.2020,COMMUNITIES,GROSVENOR PARK SHELTERED UNIT,"1,300.00",RESIDENTS PARTICIPATION FUND,GRANTS,5902434820,1000069842
02.10.2020,COMMUNITIES,KEETONS SHELTERED HOUSING,"1,300.00",RESIDENTS PARTICIPATION FUND,GRANTS,5902436004,1000080223
02.10.2020,COMMUNITIES,MOTHER GOOSE NURSERIES - GREENDALE FIELDS LTD,"3,000.00",SOUTH,GRANTS,5902436016,1000025888
02.10.2020,COMMUNITIES,BDO LLP,"9,900.00",TENANT MGT INITITIVES,DISCRETIONARY AWARDS AND FEES,5902436010,1000057898
02.10.2020,COMMUNITIES,ST FAITHS COMMUNITY CENTRE,"5,000.00",VCS GRANTS,GRANTS,5902435952,1039446
02.10.2020,COMMUNITIES,AGE UK LEWISHAM & SOUTHWARK,"4,500.00",VCS GRANTS,GRANTS,5902435953,1507154
02.10.2020,COMMUNITIES,TIME & TALENTS ASSOCIATION,"4,500.00",VCS GRANTS,GRANTS,5902435954,1757632
02.10.2020,COMMUNITIES,LONDON WILDLIFE TRUST,"7,500.00",VCS GRANTS,GRANTS,5902435955,1832374
02.10.2020,COMMUNITIES,SOUTHWARK CITIZENS ADVICE,"5,600.00",VCS GRANTS,GRANTS,5902435956,1874379
02.10.2020,COMMUNITIES,SOMALI INTEGRATION & DEVELOPMENT ASSOCIATION,"14,000.00",VCS GRANTS,GRANTS,5902435957,11048946
02.10.2020,COMMUNITIES,BEDE HSE,"4,500.00",VCS GRANTS,GRANTS,5902435959,11248731
02.10.2020,COMMUNITIES,CAMBRIDGE HOUSE & TALBOT,"4,500.00",VCS GRANTS,GRANTS,5902435960,11248874
02.10.2020,COMMUNITIES,PECAN LTD,"6,500.00",VCS GRANTS,GRANTS,5902435962,11263114
02.10.2020,COMMUNITIES,PECAN LTD,"7,250.00",VCS GRANTS,GRANTS,5902435961,11263114
02.10.2020,COMMUNITIES,SURREY DOCKS FARM PROVIDENT SOCIETY,"10,000.00",VCS GRANTS,GRANTS,5902435963,1000000958
02.10.2020,COMMUNITIES,AAINA WOMEN GROUP,"8,018.25",VCS GRANTS,GRANTS,5902435964,1000002442
02.10.2020,COMMUNITIES,BANKSIDE OPEN SPACES TRUST,"4,208.00",VCS GRANTS,GRANTS,5902435965,1000018290
02.10.2020,COMMUNITIES,SOUTHWARK PENSIONERS CENTRE,"25,855.25",VCS GRANTS,GRANTS,5902435966,1000027831
02.10.2020,COMMUNITIES,SWK DAY CTR FOR ASYLUM SEEKERS,"11,330.25",VCS GRANTS,GRANTS,5902435967,1000040491
02.10.2020,COMMUNITIES,SOUTHWARK EVERY WOMAN'S CENTRE,"5,250.00",VCS GRANTS,GRANTS,5902435968,1000042216
02.10.2020,COMMUNITIES,FUTURE MEN,"4,000.00",VCS GRANTS,GRANTS,5902435969,1000046010
02.10.2020,COMMUNITIES,THE MANNA CENTRE,"13,750.00",VCS GRANTS,GRANTS,5902435970,1000048508
02.10.2020,COMMUNITIES,MENTAL FIGHT CLUB,"2,250.00",VCS GRANTS,GRANTS,5902435971,1000051170
02.10.2020,COMMUNITIES,CRYSTAL PALACE COMM DEV TRUST,"3,000.00",VCS GRANTS,GRANTS,5902435972,1000054200
02.10.2020,COMMUNITIES,LATIN AMERICAN DISABLED PEOPLE PROJECT,"4,500.00",VCS GRANTS,GRANTS,5902435973,1000058588
02.10.2020,COMMUNITIES,LATIN AMERICAN WOMEN'S RIGHTS SERVICES,"4,500.00",VCS GRANTS,GRANTS,5902435975,1000068356
02.10.2020,COMMUNITIES,PAXTON GREEN TIME BANK,"3,937.50",VCS GRANTS,GRANTS,5902435977,1000070648
02.10.2020,COMMUNITIES,BLACKFRIARS SETTLEMENT,"4,500.00",VCS GRANTS,GRANTS,5902435978,1000071456
02.10.2020,COMMUNITIES,PEMBROKE COLLEGE SETTLEMENT,"4,500.00",VCS GRANTS,GRANTS,5902435979,1000073444
02.10.2020,COMMUNITIES,BERMONDSEY COMMUNITY KITCHEN,"3,750.00",VCS GRANTS,GRANTS,5902435981,1000075477
02.10.2020,COMMUNITIES,THE BIKE PROJECT,"3,750.00",VCS GRANTS,GRANTS,5902435982,1000077217
02.10.2020,COMMUNITIES,SOUTHWARK TRAVELLERS' ACTION,"5,750.00",VCS GRANTS,GRANTS,5902435983,1000077795
02.10.2020,CUSTOMER EXPERIENCE HGF,ZFA ACCOMMODATION LTD,"2,132.00",COVID-19 SUPPORT,EXTERNAL AGENCIES AND BODIES,5902435920,1000082620
02.10.2020,CUSTOMER EXPERIENCE HGF,ZFA ACCOMMODATION LTD,"38,119.50",COVID-19 SUPPORT,EXTERNAL AGENCIES AND BODIES,5902435923,1000082620
02.10.2020,CUSTOMER EXPERIENCE HGF,RUTH APPLEBY ALIS,262.50,HOUSING OPTIONS,TRAINING,5902435919,1000084741
02.10.2020,ENVIRONMENT AND LEISURE,RYE HILL ESTATE T&RA,"1,980.00",CAPITAL PS (LEISURE),CAPITAL GRANTS,5902436055,1000042261
02.10.2020,ENVIRONMENT AND LEISURE,ELIMHOUSE COMMUNITY ASSOCIATION,"2,425.00",CAPITAL PS (LEISURE),CONSTRUCTION FEES - INTERNAL,5902436043,1000076454
02.10.2020,ENVIRONMENT AND LEISURE,PILGRIM'S WAY PRIMARY SCHOOL,"4,900.00",CAPITAL PS (LEISURE),CAPITAL GRANTS,5902435770,5001000054
02.10.2020,ENVIRONMENT AND LEISURE,ASH&HARPER LTD,"8,190.00",CAPITAL PS (REGEN),CONSTRUCTION FEES  - EXTERNAL,5902435949,1000085534
02.10.2020,ENVIRONMENT DIRECTORATE,CLOSE BROTHERS VEHICLE HIRE LTD,-331.20,COMMERCIAL VEH CTRL A/C,HIRED VEHICLES,5902436141,1000074394
02.10.2020,ENVIRONMENT DIRECTORATE,CLOSE BROTHERS VEHICLE HIRE LTD,331.20,COMMERCIAL VEH CTRL A/C,HIRED VEHICLES,5902436140,1000074394
02.10.2020,ENVIRONMENT DIRECTORATE,DAWSONGROUP VANS LTD,390.74,COMMERCIAL VEH CTRL A/C,HIRED VEHICLES,5902436023,1000082230
02.10.2020,ENVIRONMENT DIRECTORATE,LEEDS COMMERCIAL LIMITED T/A LC VEHICLE HIRE,285.00,COMMERCIAL VEH CTRL A/C,HIRED VEHICLES,5902436013,1000082730
02.10.2020,ENVIRONMENT DIRECTORATE,LEEDS COMMERCIAL LIMITED T/A LC VEHICLE HIRE,"1,305.40",COMMERCIAL VEH CTRL A/C,HIRED VEHICLES,5902436014,1000082730
02.10.2020,ENVIRONMENT DIRECTORATE,IMPERIAL JANITORIAL SUPPLIES LTD,"1,227.10",ESTATE CLEANING-GENERAL,MATERIALS,5902435943,1000038126
02.10.2020,ENVIRONMENT DIRECTORATE,PACE ACCIDENT REPAIRS CENTRE LTD,380.00,FLEET INSURANCE WORKS,TRANSPORT INSURANCE COSTS,5902436037,1000069899
02.10.2020,ENVIRONMENT DIRECTORATE,PACE ACCIDENT REPAIRS CENTRE LTD,380.00,FLEET INSURANCE WORKS,TRANSPORT INSURANCE COSTS,5902436038,1000069899
02.10.2020,ENVIRONMENT DIRECTORATE,PACE ACCIDENT REPAIRS CENTRE LTD,380.00,FLEET INSURANCE WORKS,TRANSPORT INSURANCE COSTS,5902436039,1000069899
02.10.2020,ENVIRONMENT DIRECTORATE,ARMADILLO MARKETING LTD,"20,898.99",PUBLIC LIGHTING,OTHER CONTRACTORS,2103152642,3000002113
02.10.2020,ENVIRONMENT DIRECTORATE,ELLIOT ENVIRONMENTAL LTD,400.00,STREET CLEANING-GENERAL,OTHER CONTRACTORS,5902435889,1000047392
02.10.2020,ENVIRONMENT DIRECTORATE,TYCO INTEGRATED FIRE & SECURITY,363.88,TOWN CENTRE CCTV,OTHER CONTRACTORS,5902435548,1000077948
02.10.2020,HOUSING,OCO LIMITED,"138,474.17",PAYMENTS CONTROL ACCOUNT - OCO,I-WORLD CONTRACTORS HOLDING ACCOUNT,5902435951,1006066
02.10.2020,HOUSING,SMITH & BYFORD LTD,"113,765.58",SMITH AND BYFORD,I-WORLD CONTRACTORS HOLDING ACCOUNT,5902435958,11212119
02.10.2020,HOUSING GENERAL FUND,PINNACLE BUILDING SERVICES,"8,300.00",CAPITAL PS (HOUSING GF),CAPITAL GRANTS,5902435152,1000082308
02.10.2020,HOUSING GENERAL FUND,INFINITY NETWORKS LTD,"3,867.00",CAPITAL PS (REGEN),CONSTRUCTION MAIN CONTRACT,5902436035,1000035571
02.10.2020,HOUSING HRA,T LOUGHMAN AND CO LIMITED,"6,422.56",CAPITAL PS (HRA),CONSTRUCTION FEES  - EXTERNAL,2103152625,4013329
02.10.2020,HOUSING HRA,SWITCH 2 ENERGY LIMTED,"1,500.00",CAPITAL PS (HRA),CONSTRUCTION FEES  - EXTERNAL,5902435905,1000085578
02.10.2020,HOUSING HRA,SWITCH 2 ENERGY LIMTED,"1,500.00",CAPITAL PS (HRA),CONSTRUCTION FEES  - EXTERNAL,5902435905,1000085578
02.10.2020,HOUSING HRA,PARS LTD,"2,474.00",CAPITAL PS (HRA),CONST'N MAIN CONTRACT - NON CERTIFICATED,2103152154,3000001275
02.10.2020,LEISURE DIRECTORATE,NPOWER,253.38,BRANDON LIBRARY,ELECTRICITY,5902434894,1000055441
02.10.2020,LEISURE DIRECTORATE,CASTLE WATER LTD,"1,270.93",CEMETERIES,WATER,5902435887,1000078867
02.10.2020,LEISURE DIRECTORATE,UNIFIED CONSULTANCY LTD,569.00,CEMETERIES,OP LEASE/HIRE CHARGES:PLANT/EQUIP/FURNIT,5902435896,1000081827
02.10.2020,LEISURE DIRECTORATE,F G MARSHALL LTD,313.57,CREMATORIUM,MATERIALS,5902435886,1002639
02.10.2020,LEISURE DIRECTORATE,ARGOS BUSINESS SOLUTIONS LTD,375.97,CREMATORIUM,OTHER R&M,5902435913,1000001734
02.10.2020,LEISURE DIRECTORATE,RIGBY TAYLOR LTD,680.55,DULWICH AREA TEAM,OTHER R&M,5902436000,1000059369
02.10.2020,LEISURE DIRECTORATE,S&C SLATTER LTD,"3,283.00",DULWICH AREA TEAM,OTHER R&M,5902436040,1000082863
02.10.2020,LEISURE DIRECTORATE,SPORTS AND LEISURE MANAGEMENT LTD,"-104,184.00",FACILITIES MANAGEMENT,OTHER CONTRACTORS,5902428496,1000077862
02.10.2020,LEISURE DIRECTORATE,SPORTS AND LEISURE MANAGEMENT LTD,"101,184.00",FACILITIES MANAGEMENT,OTHER CONTRACTORS,5902428507,1000077862
02.10.2020,LEISURE DIRECTORATE,NPOWER LTD,311.09,GROVE VALE LIBRARY,ELECTRICITY,5902434889,1000078994
02.10.2020,LEISURE DIRECTORATE,LEE SANITATION LTD,393.43,SDM BUDGET,MATERIALS,5902435288,1000057169
02.10.2020,MODERNISATION HGF,WAGNER UK LIMITED,296.00,160 TOOLEY ST.,BUILDING R&M,5902435893,1000047101
02.10.2020,MODERNISATION HGF,VIRGIN MEDIA,"7,756.71",IT MANAGEMENT,DATA COMMUNICATIONS,5902435921,1000026457
02.10.2020,MODERNISATION HGF,J2 GLOBAL CANADA,"1,254.00",IT MANAGEMENT,DATA COMMUNICATIONS,5902435906,1000070066
02.10.2020,MODERNISATION HGF,INFINITY NETWORKS LTD,445.00,QUEENS RD 1 (BLOCK F),BUILDING R&M,5902436003,1000035571
02.10.2020,PLANNING AND TRANSPORT,KYBOCORP LTD,351.00,DEVELOPMENT CONTROL ADMINSTRATION,COMPUTER MAINTENANCE,5902434821,1000074513
02.10.2020,PUBLIC HEALTH,SPORTS AND LEISURE MANAGEMENT LTD,"12,500.00",HEALTH INTERVENTIONS,EXTERNAL AGENCIES AND BODIES,5902436019,1000077862
02.10.2020,REGENERATION,NATHAN LICHFIELD & PARTNERS,750.00,BLACKFRIARS ROAD PROJECT,PROFESSIONAL FEES,5902434831,1000043324
02.10.2020,RESIDENT SERVICES,KNOWLEDGE EXCHANGE GROUP LTD,325.00,CENTRAL AREA RUNNING COSTS,TRAINING,5902435932,1000081232
02.10.2020,RESIDENT SERVICES,VALLEY PROVINCIAL GROUP LLP,"19,449.18",GREAT ESTATES,BUILDING R&M,2103150296,3000001895
02.10.2020,RESIDENT SERVICES,EURO HOTELS (THORNTON HEATH) LTD,695.50,TA PLACEMENTS,EXTERNAL AGENCIES AND BODIES,5902435318,1000057571
02.10.2020,RESIDENT SERVICES,EURO HOTELS (THORNTON HEATH) LTD,909.50,TA PLACEMENTS,EXTERNAL AGENCIES AND BODIES,5902435281,1000057571
02.10.2020,RESIDENT SERVICES,EURO HOTELS (THORNTON HEATH) LTD,"1,658.50",TA PLACEMENTS,EXTERNAL AGENCIES AND BODIES,5902435296,1000057571
02.10.2020,RESIDENT SERVICES,EMS EVENTS LTD,"1,965.00",WALWORTH EAST,OFFICE EXPENSES,5902435984,1000057494
02.10.2020,SBS SUPPORT,TRINITY FIRE & SECURITY SYSTEMS LTD,905.95,DEPOT COSTS,MEDICAL / HEALTH & SAFETY SERVICES,5902435588,1000083229
02.10.2020,SOUTHWARK BUILDING SERVICES,PPG ARCHITECTURAL COATINGS,445.20,STORES/LOGISTICS,CREDITORS -GR/IR CLEARING ACCOUNT,5902435505,11063178
02.10.2020,SOUTHWARK BUILDING SERVICES,PPG ARCHITECTURAL COATINGS,445.20,STORES/LOGISTICS,CREDITORS -GR/IR CLEARING ACCOUNT,5902435505,11063178
03.10.2020,CHIEF EXECUTIVE,RED R DESIGN,"1,480.00",CAPITAL PS (REGEN),CONSTR'N SUB CONTRACT - NON CERTIFICATED,5902435636,1000035984
03.10.2020,CHILDREN AND FAMILIES,SYED & QUINN LTD,400.00,SSCP TRAINING,TRAINING,5902434950,1000029554
03.10.2020,CUSTOMER EXPERIENCE HGF,HIAM ALI LTD,"7,034.60",CORONER'S,PROFESSIONAL FEES,5902435397,1000084044
03.10.2020,ENVIRONMENT AND LEISURE,RH WROUGHT IRON,"1,385.00",CAPITAL PS (LEISURE),CONSTRUCTION,2103150137,3000000680
03.10.2020,LEISURE DIRECTORATE,QUADRON SERVICES LIMITED,"9,500.64",CEMETERIES,GROUNDS MAINTENANCE,5902435892,1000066528
03.10.2020,LEISURE DIRECTORATE,UNIFIED CONSULTANCY LTD,"2,405.00",CEMETERIES,OP LEASE/HIRE CHARGES:PLANT/EQUIP/FURNIT,5902435897,1000081827
03.10.2020,LEISURE DIRECTORATE,R H WROUGHT IRON MANUFACTURERS,"1,335.00",FACILITIES MAINTENANCE,OTHER R&M,5902435040,1000015848
03.10.2020,MODERNISATION HGF,INTERSERVE (FACILITIES MANAGEMENT),"46,433.23",FM SERVICES BY INTERSERVE,SECURITY SERVICES,5902435228,1000070792
03.10.2020,SOUTHWARK BUILDING SERVICES,PPG ARCHITECTURAL COATINGS,964.80,STORES/LOGISTICS,CREDITORS -GR/IR CLEARING ACCOUNT,5902435508,11063178
04.10.2020,CHILDREN AND ADULT,HAMPSHIRE ENVIRONMENTAL SERVICES LTD,950.00,CAPITAL PS (EDUCATION),CONSTRUCTION MAIN CONTRACT,2103152637,3000002161
04.10.2020,CHILDREN AND FAMILIES,LONDON BUBBLE THEATRE COMPANY,"8,571.00",YOS MGMT & SUPPORT,EXTERNAL AGENCIES AND BODIES,5902435301,11022517
04.10.2020,CUSTOMER EXPERIENCE HGF,IMPERIAL COLLEGE PROJECTS LTD,356.00,CORONER'S,PROFESSIONAL FEES,5902435576,1000080106
04.10.2020,CUSTOMER EXPERIENCE HGF,IMPERIAL COLLEGE PROJECTS LTD,356.00,CORONER'S,PROFESSIONAL FEES,5902435579,1000080106
04.10.2020,CUSTOMER EXPERIENCE HGF,IMPERIAL COLLEGE PROJECTS LTD,360.00,CORONER'S,PROFESSIONAL FEES,5902435567,1000080106
04.10.2020,CUSTOMER EXPERIENCE HGF,IMPERIAL COLLEGE PROJECTS LTD,484.00,CORONER'S,PROFESSIONAL FEES,5902435572,1000080106
04.10.2020,CUSTOMER EXPERIENCE HGF,IMPERIAL COLLEGE PROJECTS LTD,516.00,CORONER'S,PROFESSIONAL FEES,5902435568,1000080106
04.10.2020,CUSTOMER EXPERIENCE HGF,IMPERIAL COLLEGE PROJECTS LTD,632.00,CORONER'S,PROFESSIONAL FEES,5902435565,1000080106
04.10.2020,ENVIRONMENT AND LEISURE,CONWAY AECOM LTD,"1,043.46",CAPITAL PS (LEISURE),CONSTR'N SUB CONTRACT - NON CERTIFICATED,5902435358,1000071205
04.10.2020,ENVIRONMENT AND LEISURE,CENTRE FOR ACCESSIBLE ENVIRONMENTS,692.50,CAPITAL PS (LEISURE),CONSTRUCTION,5902435398,1000084909
04.10.2020,ENVIRONMENT DIRECTORATE,CONWAY AECOM LTD,"2,900.80",FLOOD RISK MANAGEMENT,HIGHWAYS TERM CONTRACT,5902435251,1000071205
04.10.2020,ENVIRONMENT DIRECTORATE,CONWAY AECOM LTD,"6,035.89",FLOOD RISK MANAGEMENT,HIGHWAYS TERM CONTRACT,5902435262,1000071205
04.10.2020,ENVIRONMENT DIRECTORATE,CONWAY AECOM LTD,"14,520.00",FLOOD RISK MANAGEMENT,HIGHWAYS TERM CONTRACT,5902435256,1000071205
04.10.2020,ENVIRONMENT DIRECTORATE,SOUTHWARK NEWSPAPER LTD,432.00,HIGHWAYS DEVELOPMENT,MARKETING & PUBLICITY SERVICES,5902435269,1556957
04.10.2020,ENVIRONMENT DIRECTORATE,SOUTHWARK NEWSPAPER LTD,468.00,HIGHWAYS DEVELOPMENT,MARKETING & PUBLICITY SERVICES,5902435267,1556957
04.10.2020,ENVIRONMENT DIRECTORATE,SOUTHWARK NEWSPAPER LTD,768.00,HIGHWAYS DEVELOPMENT,MARKETING & PUBLICITY SERVICES,5902435268,1556957
04.10.2020,ENVIRONMENT DIRECTORATE,CONWAY AECOM LTD,"5,644.25",PARKING OVERHEADS,OTHER CONTRACTORS,5902435275,1000071205
04.10.2020,ENVIRONMENT DIRECTORATE,CONWAY AECOM LTD,"10,001.25",PARKING OVERHEADS,OTHER CONTRACTORS,5902435271,1000071205
04.10.2020,ENVIRONMENT DIRECTORATE,CONWAY AECOM LTD,"13,905.15",SECTION 278 & 38,OTHER CONTRACTORS,5902435638,1000071205
04.10.2020,ENVIRONMENT DIRECTORATE,SOUTHWARK NEWSPAPER LTD,336.00,STREET WORKS OVERHEADS,MARKETING & PUBLICITY SERVICES,5902435359,1556957
04.10.2020,ENVIRONMENT DIRECTORATE,SOUTHWARK NEWSPAPER LTD,360.00,STREET WORKS OVERHEADS,MARKETING & PUBLICITY SERVICES,5902435360,1556957
04.10.2020,ENVIRONMENT DIRECTORATE,SOUTHWARK NEWSPAPER LTD,444.00,STREET WORKS OVERHEADS,MARKETING & PUBLICITY SERVICES,5902435362,1556957
04.10.2020,ENVIRONMENT DIRECTORATE,CONWAY AECOM LTD,"5,688.00",TRANSPORT PROJECTS,OTHER CONTRACTORS,5902435320,1000071205
04.10.2020,EXCHEQUER SERVICES,ARCH CONSULTING,800.00,FC&P QUALITY & PERFORMANCE,OFFICE EXPENSES,5902436042,1000056829
04.10.2020,EXCHEQUER SERVICES,ARCH CONSULTING,"7,000.00",FC&P QUALITY & PERFORMANCE,OFFICE EXPENSES,5902436042,1000056829
04.10.2020,EXCHEQUER SERVICES,ARCH CONSULTING,"7,000.00",FC&P QUALITY & PERFORMANCE,OFFICE EXPENSES,5902436042,1000056829
04.10.2020,HOUSING,SILK & MACKMAN SERVICES LTD,"59,190.89",ENG CONTRACTS (NORTH),I-WORLD CONTRACTORS HOLDING ACCOUNT,5902435891,1000035282
04.10.2020,LEISURE DIRECTORATE,NSS SECURITY SYSTEMS LTD,405.00,GROVE VALE LIBRARY,EQUIPMENT PURCHASE & REPAIR,5902435641,1000083915
04.10.2020,LEISURE DIRECTORATE,ROCABA PACKAGING LTD,492.55,LIBRARIES DEVELOPMENT,OFFICE EXPENSES,5902435350,1000054133
04.10.2020,PLANNING AND TRANSPORT,SOUTHWARK NEWSPAPER LTD,504.00,DEVELOPMENT CONTROL ADMINSTRATION,MARKETING & PUBLICITY SERVICES,5902435199,1556957
04.10.2020,PLANNING AND TRANSPORT,CONWAY AECOM LTD,"2,261.34",TRANSPORT POLICY AND PROGRAMS,CONSULTANTS SERVICES,5902435843,1000071205
04.10.2020,PLANNING AND TRANSPORT,CONWAY AECOM LTD,"5,531.04",TRANSPORT POLICY AND PROGRAMS,CONSULTANTS SERVICES,5902435844,1000071205
05.10.2020,ADULT SOCIAL CARE,REDACTED PERSONAL DATA,279.85,APPOINTEESHIPS,OTHER PAYMENTS FOR CLIENTS,REDACTED,REDACTED
05.10.2020,ADULT SOCIAL CARE,KENT HOMEFINDING & FOSTERING LTD,"5,000.14",DISABILITIES LAC,EXTERNAL AGENCIES AND BODIES,2103152724,1000033978
05.10.2020,ADULT SOCIAL CARE,HELP ME GROW FOSTERING SERVICES LTD,"5,571.30",DISABILITIES LAC,EXTERNAL AGENCIES AND BODIES,2103152708,1000079302
05.10.2020,ADULT SOCIAL CARE,KEYS PCE LTD,"22,385.71",DISABILITIES LAC,RESIDENTIAL CARE,2103152692,1000080090
05.10.2020,ADULT SOCIAL CARE,KEYS PCE LTD,"39,175.00",DISABILITIES LAC,RESIDENTIAL CARE,2103152694,1000080090
05.10.2020,ADULT SOCIAL CARE,AMELIA'S HOUSE LIMITED,"7,500.00",DISABILITIES LAC,RESIDENTIAL CARE,2103152691,1000083007
05.10.2020,ADULT SOCIAL CARE,THE BEECHES UK LTD,"9,884.29",DISABILITIES LAC,RESIDENTIAL CARE,2103152690,1000083173
05.10.2020,ADULT SOCIAL CARE,BROADLANDS HALL LIMITED,"9,940.00",DISABILITIES LAC,EXTERNAL AGENCIES AND BODIES,2103152688,1000084303
05.10.2020,ADULT SOCIAL CARE,BROADLANDS HALL LIMITED,"7,900.00",DISABILITIES LAC,RESIDENTIAL CARE,2103152687,1000084303
05.10.2020,ADULT SOCIAL CARE,THAMES HOMECARE SERVICE LTD,367.94,DISCHARGE TO ACCESS,HOMECARE - C&V,2103152812,1000079295
05.10.2020,ADULT SOCIAL CARE,THAMES HOMECARE SERVICE LTD,536.02,DISCHARGE TO ACCESS,HOMECARE - C&V,2103152813,1000079295
05.10.2020,ADULT SOCIAL CARE,BEDE CAFE PROJECT,260.00,LD LTS 18-64,DAYCARE,2103152896,1553877
05.10.2020,ADULT SOCIAL CARE,BEDE CAFE PROJECT,260.00,LD LTS 18-64,DAYCARE,2103152901,1553877
05.10.2020,ADULT SOCIAL CARE,BEDE CAFE PROJECT,280.00,LD LTS 18-64,DAYCARE,2103152873,1553877
05.10.2020,ADULT SOCIAL CARE,BEDE CAFE PROJECT,280.00,LD LTS 18-64,DAYCARE,2103152894,1553877
05.10.2020,ADULT SOCIAL CARE,BEDE CAFE PROJECT,332.00,LD LTS 18-64,DAYCARE,2103152888,1553877
05.10.2020,ADULT SOCIAL CARE,BEDE CAFE PROJECT,464.00,LD LTS 18-64,DAYCARE,2103152880,1553877
05.10.2020,ADULT SOCIAL CARE,BEDE CAFE PROJECT,464.00,LD LTS 18-64,DAYCARE,2103152889,1553877
05.10.2020,ADULT SOCIAL CARE,BEDE CAFE PROJECT,464.00,LD LTS 18-64,DAYCARE,2103152899,1553877
05.10.2020,ADULT SOCIAL CARE,BEDE CAFE PROJECT,492.00,LD LTS 18-64,DAYCARE,2103152866,1553877
05.10.2020,ADULT SOCIAL CARE,BEDE CAFE PROJECT,502.00,LD LTS 18-64,DAYCARE,2103152887,1553877
05.10.2020,ADULT SOCIAL CARE,BEDE CAFE PROJECT,520.00,LD LTS 18-64,DAYCARE,2103152867,1553877
05.10.2020,ADULT SOCIAL CARE,BEDE CAFE PROJECT,616.00,LD LTS 18-64,DAYCARE,2103152883,1553877
05.10.2020,ADULT SOCIAL CARE,BEDE CAFE PROJECT,673.60,LD LTS 18-64,DAYCARE,2103152892,1553877
05.10.2020,ADULT SOCIAL CARE,BEDE CAFE PROJECT,696.00,LD LTS 18-64,DAYCARE,2103152877,1553877
05.10.2020,ADULT SOCIAL CARE,BEDE CAFE PROJECT,724.00,LD LTS 18-64,DAYCARE,2103152876,1553877
05.10.2020,ADULT SOCIAL CARE,BEDE CAFE PROJECT,840.00,LD LTS 18-64,DAYCARE,2103152879,1553877
05.10.2020,ADULT SOCIAL CARE,BEDE CAFE PROJECT,860.00,LD LTS 18-64,DAYCARE,2103152897,1553877
05.10.2020,ADULT SOCIAL CARE,BEDE CAFE PROJECT,928.00,LD LTS 18-64,DAYCARE,2103152869,1553877
05.10.2020,ADULT SOCIAL CARE,BEDE CAFE PROJECT,928.00,LD LTS 18-64,DAYCARE,2103152882,1553877
05.10.2020,ADULT SOCIAL CARE,BEDE CAFE PROJECT,928.00,LD LTS 18-64,DAYCARE,2103152885,1553877
05.10.2020,ADULT SOCIAL CARE,BEDE CAFE PROJECT,928.00,LD LTS 18-64,DAYCARE,2103152900,1553877
05.10.2020,ADULT SOCIAL CARE,BEDE CAFE PROJECT,956.00,LD LTS 18-64,DAYCARE,2103152898,1553877
05.10.2020,ADULT SOCIAL CARE,BEDE CAFE PROJECT,"1,012.00",LD LTS 18-64,DAYCARE,2103152895,1553877
05.10.2020,ADULT SOCIAL CARE,BEDE CAFE PROJECT,"1,040.00",LD LTS 18-64,DAYCARE,2103152865,1553877
05.10.2020,ADULT SOCIAL CARE,BEDE CAFE PROJECT,"1,080.00",LD LTS 18-64,DAYCARE,2103152881,1553877
05.10.2020,ADULT SOCIAL CARE,BEDE CAFE PROJECT,"1,160.00",LD LTS 18-64,DAYCARE,2103152886,1553877
05.10.2020,ADULT SOCIAL CARE,BEDE CAFE PROJECT,"1,188.00",LD LTS 18-64,DAYCARE,2103152871,1553877
05.10.2020,ADULT SOCIAL CARE,BEDE CAFE PROJECT,"1,320.00",LD LTS 18-64,DAYCARE,2103152874,1553877
05.10.2020,ADULT SOCIAL CARE,BEDE CAFE PROJECT,"2,920.00",LD LTS 18-64,DAYCARE,2103152870,1553877
05.10.2020,ADULT SOCIAL CARE,MEDACS HOMECARE,"1,734.00",LD LTS 18-64,HOMECARE - C&V,2103152835,11287415
05.10.2020,ADULT SOCIAL CARE,MEDACS HOMECARE,740.16,LD LTS 18-64,SUPPORTED LIVING,2103152832,11287415
05.10.2020,ADULT SOCIAL CARE,SHARE COMMUNITY LTD,780.00,LD LTS 18-64,DAYCARE,2103152860,1000062408
05.10.2020,ADULT SOCIAL CARE,SHARE COMMUNITY LTD,780.00,LD LTS 18-64,DAYCARE,2103152861,1000062408
05.10.2020,ADULT SOCIAL CARE,SHARE COMMUNITY LTD,780.00,LD LTS 18-64,DAYCARE,2103152862,1000062408
05.10.2020,ADULT SOCIAL CARE,SHARE COMMUNITY LTD,780.00,LD LTS 18-64,DAYCARE,2103152863,1000062408
05.10.2020,ADULT SOCIAL CARE,BEDE CAFE PROJECT,478.40,LD LTS 65+,DAYCARE,2103152893,1553877
05.10.2020,ADULT SOCIAL CARE,BEDE CAFE PROJECT,280.00,MH LTS 18-64,DAYCARE,2103152878,1553877
05.10.2020,ADULT SOCIAL CARE,THAMES HOMECARE SERVICE LTD,322.52,MH LTS 18-64,HOMECARE - SPOT,2103152764,1000079295
05.10.2020,ADULT SOCIAL CARE,THAMES HOMECARE SERVICE LTD,472.42,MH LTS 65+,HOMECARE - SPOT,2103152755,1000079295
05.10.2020,ADULT SOCIAL CARE,THAMES HOMECARE SERVICE LTD,508.76,MH LTS 65+,HOMECARE - SPOT,2103152800,1000079295
05.10.2020,ADULT SOCIAL CARE,MEDACS HOMECARE,838.10,PHY LTS 18-64,SUPPORTED LIVING,2103152830,11287415
05.10.2020,ADULT SOCIAL CARE,THAMES HOMECARE SERVICE LTD,685.92,PHY LTS 18-64,HOMECARE - C&V,2103152778,1000079295
05.10.2020,ADULT SOCIAL CARE,THAMES HOMECARE SERVICE LTD,286.18,PHY LTS 18-64,HOMECARE - SPOT,2103152768,1000079295
05.10.2020,ADULT SOCIAL CARE,THAMES HOMECARE SERVICE LTD,327.06,PHY LTS 18-64,HOMECARE - SPOT,2103152771,1000079295
05.10.2020,ADULT SOCIAL CARE,THAMES HOMECARE SERVICE LTD,349.77,PHY LTS 18-64,HOMECARE - SPOT,2103152767,1000079295
05.10.2020,ADULT SOCIAL CARE,THAMES HOMECARE SERVICE LTD,386.11,PHY LTS 18-64,HOMECARE - SPOT,2103152765,1000079295
05.10.2020,ADULT SOCIAL CARE,THAMES HOMECARE SERVICE LTD,572.36,PHY LTS 18-64,HOMECARE - SPOT,2103152753,1000079295
05.10.2020,ADULT SOCIAL CARE,THAMES HOMECARE SERVICE LTD,572.36,PHY LTS 18-64,HOMECARE - SPOT,2103152789,1000079295
05.10.2020,ADULT SOCIAL CARE,THAMES HOMECARE SERVICE LTD,635.95,PHY LTS 18-64,HOMECARE - SPOT,2103152770,1000079295
05.10.2020,ADULT SOCIAL CARE,THAMES HOMECARE SERVICE LTD,649.58,PHY LTS 18-64,HOMECARE - SPOT,2103152769,1000079295
05.10.2020,ADULT SOCIAL CARE,THAMES HOMECARE SERVICE LTD,726.80,PHY LTS 18-64,HOMECARE - SPOT,2103152826,1000079295
05.10.2020,ADULT SOCIAL CARE,THAMES HOMECARE SERVICE LTD,799.48,PHY LTS 18-64,HOMECARE - SPOT,2103152781,1000079295
05.10.2020,ADULT SOCIAL CARE,THAMES HOMECARE SERVICE LTD,844.91,PHY LTS 18-64,HOMECARE - SPOT,2103152777,1000079295
05.10.2020,ADULT SOCIAL CARE,LONDON CARE LTD,"3,532.20",PHY LTS 65+,HOMECARE - C&V,2103152864,1000003398
05.10.2020,ADULT SOCIAL CARE,THAMES HOMECARE SERVICE LTD,-272.55,PHY LTS 65+,HOMECARE - C&V,2103152814,1000079295
05.10.2020,ADULT SOCIAL CARE,THAMES HOMECARE SERVICE LTD,645.04,PHY LTS 65+,HOMECARE - C&V,2103152774,1000079295
05.10.2020,ADULT SOCIAL CARE,THAMES HOMECARE SERVICE LTD,681.38,PHY LTS 65+,HOMECARE - C&V,2103152801,1000079295
05.10.2020,ADULT SOCIAL CARE,THAMES HOMECARE SERVICE LTD,763.14,PHY LTS 65+,HOMECARE - C&V,2103152762,1000079295
05.10.2020,ADULT SOCIAL CARE,THAMES HOMECARE SERVICE LTD,254.38,PHY LTS 65+,HOMECARE - SPOT,2103152825,1000079295
05.10.2020,ADULT SOCIAL CARE,THAMES HOMECARE SERVICE LTD,268.01,PHY LTS 65+,HOMECARE - SPOT,2103152803,1000079295
05.10.2020,ADULT SOCIAL CARE,THAMES HOMECARE SERVICE LTD,272.55,PHY LTS 65+,HOMECARE - SPOT,2103152785,1000079295
05.10.2020,ADULT SOCIAL CARE,THAMES HOMECARE SERVICE LTD,286.18,PHY LTS 65+,HOMECARE - SPOT,2103152795,1000079295
05.10.2020,ADULT SOCIAL CARE,THAMES HOMECARE SERVICE LTD,317.98,PHY LTS 65+,HOMECARE - SPOT,2103152752,1000079295
05.10.2020,ADULT SOCIAL CARE,THAMES HOMECARE SERVICE LTD,349.77,PHY LTS 65+,HOMECARE - SPOT,2103152823,1000079295
05.10.2020,ADULT SOCIAL CARE,THAMES HOMECARE SERVICE LTD,413.37,PHY LTS 65+,HOMECARE - SPOT,2103152793,1000079295
05.10.2020,ADULT SOCIAL CARE,THAMES HOMECARE SERVICE LTD,413.37,PHY LTS 65+,HOMECARE - SPOT,2103152796,1000079295
05.10.2020,ADULT SOCIAL CARE,THAMES HOMECARE SERVICE LTD,508.76,PHY LTS 65+,HOMECARE - SPOT,2103152811,1000079295
05.10.2020,ADULT SOCIAL CARE,THAMES HOMECARE SERVICE LTD,572.36,PHY LTS 65+,HOMECARE - SPOT,2103152805,1000079295
05.10.2020,ADULT SOCIAL CARE,THAMES HOMECARE SERVICE LTD,572.36,PHY LTS 65+,HOMECARE - SPOT,2103152820,1000079295
05.10.2020,ADULT SOCIAL CARE,THAMES HOMECARE SERVICE LTD,576.90,PHY LTS 65+,HOMECARE - SPOT,2103152790,1000079295
05.10.2020,ADULT SOCIAL CARE,THAMES HOMECARE SERVICE LTD,608.70,PHY LTS 65+,HOMECARE - SPOT,2103152757,1000079295
05.10.2020,ADULT SOCIAL CARE,THAMES HOMECARE SERVICE LTD,635.95,PHY LTS 65+,HOMECARE - SPOT,2103152763,1000079295
05.10.2020,ADULT SOCIAL CARE,THAMES HOMECARE SERVICE LTD,640.49,PHY LTS 65+,HOMECARE - SPOT,2103152806,1000079295
05.10.2020,ADULT SOCIAL CARE,THAMES HOMECARE SERVICE LTD,663.21,PHY LTS 65+,HOMECARE - SPOT,2103152809,1000079295
05.10.2020,ADULT SOCIAL CARE,THAMES HOMECARE SERVICE LTD,699.55,PHY LTS 65+,HOMECARE - SPOT,2103152784,1000079295
05.10.2020,ADULT SOCIAL CARE,THAMES HOMECARE SERVICE LTD,699.55,PHY LTS 65+,HOMECARE - SPOT,2103152798,1000079295
05.10.2020,ADULT SOCIAL CARE,THAMES HOMECARE SERVICE LTD,713.17,PHY LTS 65+,HOMECARE - SPOT,2103152804,1000079295
05.10.2020,ADULT SOCIAL CARE,THAMES HOMECARE SERVICE LTD,799.48,PHY LTS 65+,HOMECARE - SPOT,2103152775,1000079295
05.10.2020,ADULT SOCIAL CARE,THAMES HOMECARE SERVICE LTD,"1,044.78",PHY LTS 65+,HOMECARE - SPOT,2103152791,1000079295
05.10.2020,ADULT SOCIAL CARE,THAMES HOMECARE SERVICE LTD,"1,480.86",PHY LTS 65+,HOMECARE - SPOT,2103152821,1000079295
05.10.2020,ADULT SOCIAL CARE,SAGECARE LTD,"2,214.15",PHY LTS 65+,HOMECARE - C&V,2103152827,1000080924
05.10.2020,ADULT SOCIAL CARE,THAMES HOMECARE SERVICE LTD,"27,300.00",REABLEMENT CONTRACT,HOMECARE - C&V,5902436173,1000079295
05.10.2020,ADULT SOCIAL CARE,THAMES HOMECARE SERVICE LTD,304.35,SEN LTS 65+,HOMECARE - SPOT,2103152819,1000079295
05.10.2020,ADULT SOCIAL CARE,BEDE CAFE PROJECT,"1,024.00",SOCIAL ISOLATION,DAYCARE,2103152875,1553877
05.10.2020,ADULT SOCIAL CARE,MEDACS HOMECARE,461.76,SPECIALIST CARE,SECTION 17 PAYMENTS TO AGENCIES/CARERS,2103152656,11287415
05.10.2020,ADULT SOCIAL CARE,MEDACS HOMECARE,808.08,SPECIALIST CARE,SECTION 17 PAYMENTS TO AGENCIES/CARERS,2103152657,11287415
05.10.2020,ADULT SOCIAL CARE,MEDACS HOMECARE,"1,010.16",SPECIALIST CARE,SECTION 17 PAYMENTS TO AGENCIES/CARERS,2103152655,11287415
05.10.2020,ADULT SOCIAL CARE,MEDACS HOMECARE,"1,096.68",SPECIALIST CARE,SECTION 17 PAYMENTS TO AGENCIES/CARERS,2103152660,11287415
05.10.2020,ADULT SOCIAL CARE,MEDACS HOMECARE,"1,385.28",SPECIALIST CARE,SECTION 17 PAYMENTS TO AGENCIES/CARERS,2103152658,11287415
05.10.2020,ADULT SOCIAL CARE,CONTACT PROFESSIONALS,266.00,SPECIALIST CARE,SECTION 17 PAYMENTS TO AGENCIES/CARERS,2103152674,1000057263
05.10.2020,ADULT SOCIAL CARE,CONTACT PROFESSIONALS,399.00,SPECIALIST CARE,SECTION 17 PAYMENTS TO AGENCIES/CARERS,2103152670,1000057263
05.10.2020,ADULT SOCIAL CARE,CONTACT PROFESSIONALS,399.00,SPECIALIST CARE,SECTION 17 PAYMENTS TO AGENCIES/CARERS,2103152676,1000057263
05.10.2020,ADULT SOCIAL CARE,CONTACT PROFESSIONALS,399.00,SPECIALIST CARE,SECTION 17 PAYMENTS TO AGENCIES/CARERS,2103152684,1000057263
05.10.2020,ADULT SOCIAL CARE,CONTACT PROFESSIONALS,532.00,SPECIALIST CARE,SECTION 17 PAYMENTS TO AGENCIES/CARERS,2103152673,1000057263
05.10.2020,ADULT SOCIAL CARE,CONTACT PROFESSIONALS,532.00,SPECIALIST CARE,SECTION 17 PAYMENTS TO AGENCIES/CARERS,2103152680,1000057263
05.10.2020,ADULT SOCIAL CARE,CONTACT PROFESSIONALS,570.00,SPECIALIST CARE,SECTION 17 PAYMENTS TO AGENCIES/CARERS,2103152669,1000057263
05.10.2020,ADULT SOCIAL CARE,CONTACT PROFESSIONALS,665.00,SPECIALIST CARE,SECTION 17 PAYMENTS TO AGENCIES/CARERS,2103152662,1000057263
05.10.2020,ADULT SOCIAL CARE,CONTACT PROFESSIONALS,798.00,SPECIALIST CARE,SECTION 17 PAYMENTS TO AGENCIES/CARERS,2103152663,1000057263
05.10.2020,ADULT SOCIAL CARE,CONTACT PROFESSIONALS,931.00,SPECIALIST CARE,SECTION 17 PAYMENTS TO AGENCIES/CARERS,2103152678,1000057263
05.10.2020,ADULT SOCIAL CARE,CONTACT PROFESSIONALS,"1,064.00",SPECIALIST CARE,SECTION 17 PAYMENTS TO AGENCIES/CARERS,2103152685,1000057263
05.10.2020,ADULT SOCIAL CARE,PECULIAR CARE HOMES LTD,430.80,SPECIALIST CARE,SECTION 17 PAYMENTS TO AGENCIES/CARERS,2103152675,1000076991
05.10.2020,ADULT SOCIAL CARE,PECULIAR CARE HOMES LTD,897.50,SPECIALIST CARE,SECTION 17 PAYMENTS TO AGENCIES/CARERS,2103152671,1000076991
05.10.2020,ADULT SOCIAL CARE,PECULIAR CARE HOMES LTD,"7,933.90",SPECIALIST CARE,SECTION 17 PAYMENTS TO AGENCIES/CARERS,2103152683,1000076991
05.10.2020,ADULT SOCIAL CARE,HCP STAFFING SERVICES LTD,273.00,SPECIALIST CARE,SECTION 17 PAYMENTS TO AGENCIES/CARERS,2103152667,1000078329
05.10.2020,ADULT SOCIAL CARE,POTTON KARE SERVICES LTD,342.00,SPECIALIST CARE,SECTION 17 PAYMENTS TO AGENCIES/CARERS,2103152661,1000080630
05.10.2020,ADULT SOCIAL CARE,PECULIAR CARE HOMES LTD,"1,561.65",TRANSITIONS 14-18YRS,SECTION 17 PAYMENTS TO AGENCIES/CARERS,2103152666,1000076991
05.10.2020,ASSET MANAGEMENT,J F BATULA SOLICITORS,500.00,DISREPAIR,LEGAL FEES & COURT COSTS,5902436161,1000085529
05.10.2020,ASSET MANAGEMENT,T BROWN & SONS (HEATING) LTD,"9,497.00",ENG CONTRACTS (NORTH),HEATING -DISTRICT SERVICE (CONTRACT SUM),5902435625,1000040191
05.10.2020,ASSET MANAGEMENT,VEOLIA ES SOUTHWARK LTD,"6,848.20",ENG CONTRACTS (SOUTH),HEATING - DISTRICT SYSTEM REPAIR,5902436109,1000056979
05.10.2020,CENTRAL FUNCTIONS,BRESLIN CONSTRUCTION LTD,"4,600.00",COMMERCIAL PROPERTIES,BUILDING R&M,2103152905,3000001948
05.10.2020,CHIEF EXECUTIVE,4 FUTURES LIMITED,"-567,300.00",CAPITAL PS (LEISURE),CONSTRUCTION FEES,5902434361,1000060908
05.10.2020,CHIEF EXECUTIVE,4 FUTURES LIMITED,"691,338.00",CAPITAL PS (LEISURE),CONSTRUCTION FEES,5902434353,1000060908
05.10.2020,CHIEF EXECUTIVE,THE BLUE BERMONDSEY BID CO LTD,"2,924.37",CAPITAL PS (REGEN),CONSTRUCTION FEES,5902436156,1000070135
05.10.2020,CHIEF EXECUTIVE,ADVANCED TRANSPORT RESEARCH LTD,"1,650.00",CAPITAL PS (REGEN),CONSTR'N SUB CONTRACT - NON CERTIFICATED,5902435322,1000070527
05.10.2020,CHIEF EXECUTIVE,ADVANCED TRANSPORT RESEARCH LTD,330.00,CAPITAL PS (REGEN),CONSTRUCTION,5902435385,1000070527
05.10.2020,CHIEF EXECUTIVE,ADVANCED TRANSPORT RESEARCH LTD,910.00,CAPITAL PS (REGEN),CONSTRUCTION,5902435385,1000070527
05.10.2020,CHILDREN AND FAMILIES,THE ANNA FREUD CENTRE,975.00,ADOPTION SUPP FUND,EXTERNAL AGENCIES AND BODIES,5902436157,1000017805
05.10.2020,CHILDREN AND FAMILIES,BODY & SOUL,"2,742.50",ADOPTION SUPP FUND,EXTERNAL AGENCIES AND BODIES,5902436128,1000081239
05.10.2020,CHILDREN AND FAMILIES,ALICE MALLORIE THERAPY SERVICE,440.00,ADOPTION SUPP FUND,PROFESSIONAL FEES,5902436127,1000085491
05.10.2020,CHILDREN AND FAMILIES,AIDHOUR LIMITED,258.00,CHILD PROTECTION UNIT,PROFESSIONAL FEES,5902436138,1000057345
05.10.2020,CHILDREN AND FAMILIES,OWNLIFE RESIDENTIAL LTD,"18,000.00",CHILDREN�S RESID,RESIDENTIAL CARE,2103152689,1000085398
05.10.2020,CHILDREN AND FAMILIES,OWNLIFE RESIDENTIAL LTD,"18,000.00",CHILDREN�S RESID,RESIDENTIAL CARE,2103152695,1000085398
05.10.2020,CHILDREN AND FAMILIES,SUNLIGHT CHILDREN'S CARE,"19,403.07",CHILDREN�S RESID,EXTERNAL AGENCIES AND BODIES,2103152693,1000085523
05.10.2020,CHILDREN AND FAMILIES,INTERPRETING DIRECT CO (UK) LTD,"2,660.40",FINANCE,TRANSLATION SERVICES,5902436164,1000070133
05.10.2020,CHILDREN AND FAMILIES,ETHELBERT SPECIALIST HOMES,"3,559.46",FRIENDS & FAMILY FOSTERING,EXTERNAL AGENCIES AND BODIES,2103152697,1796129
05.10.2020,CHILDREN AND FAMILIES,ETHELBERT SPECIALIST HOMES,"3,559.46",FRIENDS & FAMILY FOSTERING,EXTERNAL AGENCIES AND BODIES,2103152735,1796129
05.10.2020,CHILDREN AND FAMILIES,ETHELBERT SPECIALIST HOMES,"3,559.46",FRIENDS & FAMILY FOSTERING,EXTERNAL AGENCIES AND BODIES,2103152747,1796129
05.10.2020,CHILDREN AND FAMILIES,HEATH FARM FAMILY SOLUTION (FOSTERING),"5,009.40",FRIENDS & FAMILY FOSTERING,EXTERNAL AGENCIES AND BODIES,2103152726,11271268
05.10.2020,CHILDREN AND FAMILIES,CORE ASSETS FOSTERING LTD,"3,696.00",FRIENDS & FAMILY FOSTERING,EXTERNAL AGENCIES AND BODIES,2103152742,11288002
05.10.2020,CHILDREN AND FAMILIES,KENT HOMEFINDING & FOSTERING LTD,"2,943.00",FRIENDS & FAMILY FOSTERING,EXTERNAL AGENCIES AND BODIES,2103152711,1000033978
05.10.2020,CHILDREN AND FAMILIES,KENT HOMEFINDING & FOSTERING LTD,"3,415.50",FRIENDS & FAMILY FOSTERING,EXTERNAL AGENCIES AND BODIES,2103152696,1000033978
05.10.2020,CHILDREN AND FAMILIES,KENT HOMEFINDING & FOSTERING LTD,"3,450.00",FRIENDS & FAMILY FOSTERING,EXTERNAL AGENCIES AND BODIES,2103152745,1000033978
05.10.2020,CHILDREN AND FAMILIES,KASPER FOSTERING,"3,578.70",FRIENDS & FAMILY FOSTERING,EXTERNAL AGENCIES AND BODIES,2103152719,1000036628
05.10.2020,CHILDREN AND FAMILIES,KASPER FOSTERING,"4,727.10",FRIENDS & FAMILY FOSTERING,EXTERNAL AGENCIES AND BODIES,2103152738,1000036628
05.10.2020,CHILDREN AND FAMILIES,FUTURES FOR CHILDREN LIMITED,"6,497.40",FRIENDS & FAMILY FOSTERING,EXTERNAL AGENCIES AND BODIES,2103152714,1000041984
05.10.2020,CHILDREN AND FAMILIES,CHILDREN OF COLOUR,"-5,028.55",FRIENDS & FAMILY FOSTERING,EXTERNAL AGENCIES AND BODIES,2103152706,1000044955
05.10.2020,CHILDREN AND FAMILIES,CHILDREN OF COLOUR,"-5,028.55",FRIENDS & FAMILY FOSTERING,EXTERNAL AGENCIES AND BODIES,2103152725,1000044955
05.10.2020,CHILDREN AND FAMILIES,CHILDREN OF COLOUR,"3,444.00",FRIENDS & FAMILY FOSTERING,EXTERNAL AGENCIES AND BODIES,2103152734,1000044955
05.10.2020,CHILDREN AND FAMILIES,CHILDREN OF COLOUR,"4,714.27",FRIENDS & FAMILY FOSTERING,EXTERNAL AGENCIES AND BODIES,2103152722,1000044955
05.10.2020,CHILDREN AND FAMILIES,CHILDREN OF COLOUR,"4,714.27",FRIENDS & FAMILY FOSTERING,EXTERNAL AGENCIES AND BODIES,2103152743,1000044955
05.10.2020,CHILDREN AND FAMILIES,CAPSTONE FOSTER CARE (SOUTH EAST) LTD,-303.55,FRIENDS & FAMILY FOSTERING,EXTERNAL AGENCIES AND BODIES,2103141050,1000050353
05.10.2020,CHILDREN AND FAMILIES,CAPSTONE FOSTER CARE (SOUTH EAST) LTD,"6,385.80",FRIENDS & FAMILY FOSTERING,EXTERNAL AGENCIES AND BODIES,2103152713,1000050353
05.10.2020,CHILDREN AND FAMILIES,DIVERSE CARE (UK) LTD,"4,819.50",FRIENDS & FAMILY FOSTERING,EXTERNAL AGENCIES AND BODIES,2103152709,1000055636
05.10.2020,CHILDREN AND FAMILIES,COMPASS FOSTERING LONDON LTD,"2,611.80",FRIENDS & FAMILY FOSTERING,EXTERNAL AGENCIES AND BODIES,2103152731,1000057908
05.10.2020,CHILDREN AND FAMILIES,COMPASS FOSTERING LONDON LTD,"2,611.80",FRIENDS & FAMILY FOSTERING,EXTERNAL AGENCIES AND BODIES,2103152749,1000057908
05.10.2020,CHILDREN AND FAMILIES,COMPASS FOSTERING LONDON LTD,"2,678.70",FRIENDS & FAMILY FOSTERING,EXTERNAL AGENCIES AND BODIES,2103152750,1000057908
05.10.2020,CHILDREN AND FAMILIES,COMPASS FOSTERING LONDON LTD,"2,970.30",FRIENDS & FAMILY FOSTERING,EXTERNAL AGENCIES AND BODIES,2103152712,1000057908
05.10.2020,CHILDREN AND FAMILIES,COMPASS FOSTERING LONDON LTD,"2,970.30",FRIENDS & FAMILY FOSTERING,EXTERNAL AGENCIES AND BODIES,2103152730,1000057908
05.10.2020,CHILDREN AND FAMILIES,COMPASS FOSTERING LONDON LTD,"2,978.70",FRIENDS & FAMILY FOSTERING,EXTERNAL AGENCIES AND BODIES,2103152736,1000057908
05.10.2020,CHILDREN AND FAMILIES,CHILDREN FIRST FOSTERING AGENCY LTD,"3,852.90",FRIENDS & FAMILY FOSTERING,EXTERNAL AGENCIES AND BODIES,2103152710,1000060081
05.10.2020,CHILDREN AND FAMILIES,FOLLOWING WHISPERS FAMILY SERVICE LTD,"6,642.90",FRIENDS & FAMILY FOSTERING,EXTERNAL AGENCIES AND BODIES,2103152721,1000065611
05.10.2020,CHILDREN AND FAMILIES,ANCHOR FOSTERCARE,"3,732.30",FRIENDS & FAMILY FOSTERING,EXTERNAL AGENCIES AND BODIES,2103152702,1000065675
05.10.2020,CHILDREN AND FAMILIES,ANCHOR FOSTERCARE,"4,148.70",FRIENDS & FAMILY FOSTERING,EXTERNAL AGENCIES AND BODIES,2103152740,1000065675
05.10.2020,CHILDREN AND FAMILIES,FOSTERCARE UK LTD,"6,385.80",FRIENDS & FAMILY FOSTERING,EXTERNAL AGENCIES AND BODIES,2103152699,1000073002
05.10.2020,CHILDREN AND FAMILIES,COMPASS FOSTERING SOUTH LTD,"3,201.39",FRIENDS & FAMILY FOSTERING,EXTERNAL AGENCIES AND BODIES,2103152729,1000073772
05.10.2020,CHILDREN AND FAMILIES,ASCENT FOSTERING AGENCY LTD,"4,482.90",FRIENDS & FAMILY FOSTERING,EXTERNAL AGENCIES AND BODIES,2103152751,1000074714
05.10.2020,CHILDREN AND FAMILIES,ASCENT FOSTERING AGENCY LTD,"5,678.70",FRIENDS & FAMILY FOSTERING,EXTERNAL AGENCIES AND BODIES,2103152698,1000074714
05.10.2020,CHILDREN AND FAMILIES,MOSAIC FOSTER CARE LTD,"6,428.40",FRIENDS & FAMILY FOSTERING,EXTERNAL AGENCIES AND BODIES,2103152705,1000076259
05.10.2020,CHILDREN AND FAMILIES,MOSAIC FOSTER CARE LTD,"6,750.00",FRIENDS & FAMILY FOSTERING,EXTERNAL AGENCIES AND BODIES,2103152715,1000076259
05.10.2020,CHILDREN AND FAMILIES,ORANGE GROVE FOSTERCARE LTD,"3,630.60",FRIENDS & FAMILY FOSTERING,EXTERNAL AGENCIES AND BODIES,2103152700,1000078716
05.10.2020,CHILDREN AND FAMILIES,PARENT AND CHILD FOSTERING ASSESSMENTS,"8,117.14",FRIENDS & FAMILY FOSTERING,EXTERNAL AGENCIES AND BODIES,2103152716,1000078962
05.10.2020,CHILDREN AND FAMILIES,SELECT FOSTERCARE SERVICES LTD,"3,535.50",FRIENDS & FAMILY FOSTERING,EXTERNAL AGENCIES AND BODIES,2103152717,1000079277
05.10.2020,CHILDREN AND FAMILIES,SELECT FOSTERCARE SERVICES LTD,"3,535.50",FRIENDS & FAMILY FOSTERING,EXTERNAL AGENCIES AND BODIES,2103152718,1000079277
05.10.2020,CHILDREN AND FAMILIES,SELECT FOSTERCARE SERVICES LTD,"3,535.50",FRIENDS & FAMILY FOSTERING,EXTERNAL AGENCIES AND BODIES,2103152732,1000079277
05.10.2020,CHILDREN AND FAMILIES,HELP ME GROW FOSTERING SERVICES LTD,"2,776.95",FRIENDS & FAMILY FOSTERING,EXTERNAL AGENCIES AND BODIES,2103152703,1000079302
05.10.2020,CHILDREN AND FAMILIES,HELP ME GROW FOSTERING SERVICES LTD,"2,776.95",FRIENDS & FAMILY FOSTERING,EXTERNAL AGENCIES AND BODIES,2103152739,1000079302
05.10.2020,CHILDREN AND FAMILIES,HELP ME GROW FOSTERING SERVICES LTD,"3,085.50",FRIENDS & FAMILY FOSTERING,EXTERNAL AGENCIES AND BODIES,2103152701,1000079302
05.10.2020,CHILDREN AND FAMILIES,HELP ME GROW FOSTERING SERVICES LTD,"3,085.50",FRIENDS & FAMILY FOSTERING,EXTERNAL AGENCIES AND BODIES,2103152727,1000079302
05.10.2020,CHILDREN AND FAMILIES,HELP ME GROW FOSTERING SERVICES LTD,"3,085.50",FRIENDS & FAMILY FOSTERING,EXTERNAL AGENCIES AND BODIES,2103152748,1000079302
05.10.2020,CHILDREN AND FAMILIES,HELP ME GROW FOSTERING SERVICES LTD,"4,500.00",FRIENDS & FAMILY FOSTERING,EXTERNAL AGENCIES AND BODIES,2103152707,1000079302
05.10.2020,CHILDREN AND FAMILIES,HELP ME GROW FOSTERING SERVICES LTD,"5,759.70",FRIENDS & FAMILY FOSTERING,EXTERNAL AGENCIES AND BODIES,2103152720,1000079302
05.10.2020,CHILDREN AND FAMILIES,CONNECT FOSTERING SERVICES LTD,"5,614.29",FRIENDS & FAMILY FOSTERING,EXTERNAL AGENCIES AND BODIES,2103152704,1000079969
05.10.2020,CHILDREN AND FAMILIES,SHARED CARE SERVICES LTD,"6,393.60",FRIENDS & FAMILY FOSTERING,EXTERNAL AGENCIES AND BODIES,2103152728,1000080308
05.10.2020,CHILDREN AND FAMILIES,COMPASS FOSTERING SOUTH EAST LTD,"4,132.50",FRIENDS & FAMILY FOSTERING,EXTERNAL AGENCIES AND BODIES,2103152737,1000081155
05.10.2020,CHILDREN AND FAMILIES,COMPASS FOSTERING SOUTH EAST LTD,"5,357.10",FRIENDS & FAMILY FOSTERING,EXTERNAL AGENCIES AND BODIES,2103152741,1000081155
05.10.2020,CHILDREN AND FAMILIES,HYTHE HOUSE SUPPORT LTD,"4,010.36",FRIENDS & FAMILY FOSTERING,EXTERNAL AGENCIES AND BODIES,2103152746,1000081618
05.10.2020,CHILDREN AND FAMILIES,FUSION FOSTERING LTD,"3,429.12",FRIENDS & FAMILY FOSTERING,EXTERNAL AGENCIES AND BODIES,2103152733,1000081674
05.10.2020,CHILDREN AND FAMILIES,FAMILY WORKS FOSTERING LTD,"5,442.90",FRIENDS & FAMILY FOSTERING,EXTERNAL AGENCIES AND BODIES,2103152723,1000082529
05.10.2020,CHILDREN AND FAMILIES,REDACTED PERSONAL DATA,-300.00,FRIENDS &FAMILY FOST,ADDITIONAL PAYMENTS TO AGENCIES/CARERS,REDACTED,REDACTED
05.10.2020,CHILDREN AND FAMILIES,REDACTED PERSONAL DATA,"1,749.29",FRIENDS &FAMILY FOST,PAYMENTS TO CARERS,REDACTED,REDACTED
05.10.2020,CHILDREN AND FAMILIES,REDACTED PERSONAL DATA,520.00,LEAVING CARE GRANT,OTHER PAYMENTS FOR CLIENTS,REDACTED,REDACTED
05.10.2020,CHILDREN AND FAMILIES,PURPLE PEBBLES(CHILD CARE) SERVICES,-516.52,SEMI-IND CARELEAVERS,COSTS RECOVERED,2103152902,1000070705
05.10.2020,CHILDREN AND FAMILIES,SILVER BIRCH CARE LTD,"3,750.00",SEMI-IND CARELEAVERS,EXTERNAL AGENCIES AND BODIES,2103152838,1000076525
05.10.2020,CHILDREN AND FAMILIES,IDEAL CARE SOLUTIONS LTD,257.14,SEMI-IND CARELEAVERS,OTHER PAYMENTS FOR CLIENTS,2103152841,1000080804
05.10.2020,CHILDREN AND FAMILIES,IASPIRE CARE SERVICES LTD,"1,810.71",SEMI-IND CARELEAVERS,EXTERNAL AGENCIES AND BODIES,2103152844,1000081500
05.10.2020,CHILDREN AND FAMILIES,TRANSFORMING LIVES COMPANY LTD,"3,619.27",SEMI-IND CARELEAVERS,EXTERNAL AGENCIES AND BODIES,2103152840,1000083352
05.10.2020,CHILDREN AND FAMILIES,LOVE YOUR HOME LIMITED,"2,145.00",SEMI-IND CARELEAVERS,OTHER PAYMENTS FOR CLIENTS,5902436143,1000085642
05.10.2020,CHILDREN AND FAMILIES,LOVE YOUR HOME LIMITED,"2,475.00",SEMI-IND CARELEAVERS,OTHER PAYMENTS FOR CLIENTS,5902436143,1000085642
05.10.2020,CHILDREN AND FAMILIES,SILVER BIRCH CARE LTD,"3,750.00",SEMI-IND LAC 16-17,EXTERNAL AGENCIES AND BODIES,2103152859,1000076525
05.10.2020,CHILDREN AND FAMILIES,SILVER BIRCH CARE LTD,"25,446.43",SEMI-IND LAC 16-17,EXTERNAL AGENCIES AND BODIES,2103152857,1000076525
05.10.2020,CHILDREN AND FAMILIES,SILVER BIRCH CARE LTD,300.00,SEMI-IND LAC 16-17,OTHER PAYMENTS FOR CLIENTS,2103152856,1000076525
05.10.2020,CHILDREN AND FAMILIES,SILVER BIRCH CARE LTD,552.50,SEMI-IND LAC 16-17,OTHER PAYMENTS FOR CLIENTS,2103152853,1000076525
05.10.2020,CHILDREN AND FAMILIES,PURPLE PEBBLES(CHILD CARE) SERVICES,"1,607.14",UASC CARELEAVERS,EXTERNAL AGENCIES AND BODIES,2103152843,1000070705
05.10.2020,CHILDREN AND FAMILIES,HEARTWOOD OUTREACH SERVICES LTD,280.00,UASC CARELEAVERS,OTHER PAYMENTS FOR CLIENTS,2103152845,1000075021
05.10.2020,CHILDREN AND FAMILIES,SILVER BIRCH CARE LTD,"3,750.00",UASC CARELEAVERS,EXTERNAL AGENCIES AND BODIES,2103152839,1000076525
05.10.2020,CHILDREN AND FAMILIES,IASPIRE CARE SERVICES LTD,875.00,UASC LAC 16-17,EXTERNAL AGENCIES AND BODIES,2103152851,1000081500
05.10.2020,CHILDREN AND FAMILIES,IASPIRE CARE SERVICES LTD,"3,750.00",UASC LAC 16-17,EXTERNAL AGENCIES AND BODIES,2103152847,1000081500
05.10.2020,CHILDREN AND FAMILIES,IASPIRE CARE SERVICES LTD,"3,750.00",UASC LAC 16-17,EXTERNAL AGENCIES AND BODIES,2103152849,1000081500
05.10.2020,CHILDREN AND FAMILIES,IASPIRE CARE SERVICES LTD,"3,750.00",UASC LAC 16-17,EXTERNAL AGENCIES AND BODIES,2103152854,1000081500
05.10.2020,CHILDREN AND FAMILIES,IASPIRE CARE SERVICES LTD,"3,750.00",UASC LAC 16-17,EXTERNAL AGENCIES AND BODIES,2103152855,1000081500
05.10.2020,CHILDREN AND FAMILIES,IASPIRE CARE SERVICES LTD,300.00,UASC LAC 16-17,OTHER PAYMENTS FOR CLIENTS,2103152846,1000081500
05.10.2020,CHILDREN AND FAMILIES,IASPIRE CARE SERVICES LTD,300.00,UASC LAC 16-17,OTHER PAYMENTS FOR CLIENTS,2103152852,1000081500
05.10.2020,CHILDREN AND FAMILIES,IASPIRE CARE SERVICES LTD,300.00,UASC LAC 16-17,OTHER PAYMENTS FOR CLIENTS,2103152858,1000081500
05.10.2020,CHILDREN'S SERVICES,FLEET TUTORS,855.00,PUPIL PREMIUM CURRENT YEAR,EXTERNAL AGENCIES AND BODIES,5902436063,1000044820
05.10.2020,CHILDREN'S SERVICES,FLEET TUTORS,"3,870.00",PUPIL PREMIUM CURRENT YEAR,EXTERNAL AGENCIES AND BODIES,5902436064,1000044820
05.10.2020,CHILDREN'S SERVICES,GOOSE GREEN PRIMARY AND NURSERY SCHOOL,"1,312.82",SEN - ACADEMY AND FREE SCHOOLS,STATEMENTED FEES,2103152917,1000070613
05.10.2020,CHILDREN'S SERVICES,GOOSE GREEN PRIMARY AND NURSERY SCHOOL,"1,517.95",SEN - ACADEMY AND FREE SCHOOLS,STATEMENTED FEES,2103152909,1000070613
05.10.2020,CHILDREN'S SERVICES,GOOSE GREEN PRIMARY AND NURSERY SCHOOL,"1,959.18",SEN - ACADEMY AND FREE SCHOOLS,STATEMENTED FEES,2103152916,1000070613
05.10.2020,CHILDREN'S SERVICES,GOOSE GREEN PRIMARY AND NURSERY SCHOOL,"2,625.64",SEN - ACADEMY AND FREE SCHOOLS,STATEMENTED FEES,2103152911,1000070613
05.10.2020,CHILDREN'S SERVICES,GOOSE GREEN PRIMARY AND NURSERY SCHOOL,"3,938.46",SEN - ACADEMY AND FREE SCHOOLS,STATEMENTED FEES,2103152913,1000070613
05.10.2020,CHILDREN'S SERVICES,GOOSE GREEN PRIMARY AND NURSERY SCHOOL,"4,173.13",SEN - ACADEMY AND FREE SCHOOLS,STATEMENTED FEES,2103152915,1000070613
05.10.2020,CHILDREN'S SERVICES,GOOSE GREEN PRIMARY AND NURSERY SCHOOL,"4,173.13",SEN - ACADEMY AND FREE SCHOOLS,STATEMENTED FEES,2103152919,1000070613
05.10.2020,CHILDREN'S SERVICES,GOOSE GREEN PRIMARY AND NURSERY SCHOOL,"4,224.49",SEN - ACADEMY AND FREE SCHOOLS,STATEMENTED FEES,2103152912,1000070613
05.10.2020,CHILDREN'S SERVICES,GOOSE GREEN PRIMARY AND NURSERY SCHOOL,"5,346.94",SEN - ACADEMY AND FREE SCHOOLS,STATEMENTED FEES,2103152910,1000070613
05.10.2020,CHILDREN'S SERVICES,GOOSE GREEN PRIMARY AND NURSERY SCHOOL,"8,498.29",SEN - ACADEMY AND FREE SCHOOLS,STATEMENTED FEES,2103152914,1000070613
05.10.2020,CHILDREN'S SERVICES,GOOSE GREEN PRIMARY AND NURSERY SCHOOL,"8,498.29",SEN - ACADEMY AND FREE SCHOOLS,STATEMENTED FEES,2103152918,1000070613
05.10.2020,CHILDREN'S SERVICES,SPA EDUCATION TRUST,300.00,SEN - ACADEMY AND FREE SCHOOLS,STATEMENTED FEES,2103152920,1000081600
05.10.2020,CHILDREN'S SERVICES,SPA EDUCATION TRUST,"1,125.00",SEN - ACADEMY AND FREE SCHOOLS,STATEMENTED FEES,2103152921,1000081600
05.10.2020,CHILDREN'S SERVICES,FLEET TUTORS,"1,818.00",SEN - AEP,STATEMENTED FEES,2103152925,1000044820
05.10.2020,CHILDREN'S SERVICES,FLEET TUTORS,"1,976.00",SEN - AEP,STATEMENTED FEES,2103152926,1000044820
05.10.2020,CHILDREN'S SERVICES,FLEET TUTORS,"1,976.00",SEN - AEP,STATEMENTED FEES,2103152930,1000044820
05.10.2020,CHILDREN'S SERVICES,FLEET TUTORS,"2,213.00",SEN - AEP,STATEMENTED FEES,2103152922,1000044820
05.10.2020,CHILDREN'S SERVICES,FLEET TUTORS,"2,397.00",SEN - AEP,STATEMENTED FEES,2103152924,1000044820
05.10.2020,CHILDREN'S SERVICES,FLEET TUTORS,"2,599.00",SEN - AEP,STATEMENTED FEES,2103152928,1000044820
05.10.2020,CHILDREN'S SERVICES,FLEET TUTORS,"2,840.00",SEN - AEP,STATEMENTED FEES,2103152931,1000044820
05.10.2020,CHILDREN'S SERVICES,FLEET TUTORS,"2,868.00",SEN - AEP,STATEMENTED FEES,2103152933,1000044820
05.10.2020,CHILDREN'S SERVICES,FLEET TUTORS,"3,317.00",SEN - AEP,STATEMENTED FEES,2103152927,1000044820
05.10.2020,CHILDREN'S SERVICES,FLEET TUTORS,"3,675.00",SEN - AEP,STATEMENTED FEES,2103152932,1000044820
05.10.2020,CHILDREN'S SERVICES,FLEET TUTORS,"3,790.00",SEN - AEP,STATEMENTED FEES,2103152929,1000044820
05.10.2020,CHILDREN'S SERVICES,FLEET TUTORS,"4,100.00",SEN - AEP,STATEMENTED FEES,2103152923,1000044820
05.10.2020,CHILDREN'S SERVICES,CARBONE CLINIC UK LTD,675.00,SEN - AEP,STATEMENTED FEES,2103152957,1000080937
05.10.2020,CHILDREN'S SERVICES,CARBONE CLINIC UK LTD,"1,350.00",SEN - AEP,STATEMENTED FEES,2103152959,1000080937
05.10.2020,CHILDREN'S SERVICES,CARBONE CLINIC UK LTD,"4,050.00",SEN - AEP,STATEMENTED FEES,2103152956,1000080937
05.10.2020,CHILDREN'S SERVICES,CARBONE CLINIC UK LTD,"9,000.00",SEN - AEP,STATEMENTED FEES,2103152958,1000080937
05.10.2020,CHILDREN'S SERVICES,FAIRLEY HOUSE SCHOOL,"11,200.00",SEN - INDEPENDENT,STATEMENTED FEES,2103152935,1000030807
05.10.2020,CHILDREN'S SERVICES,FAIRLEY HOUSE SCHOOL,"11,200.00",SEN - INDEPENDENT,STATEMENTED FEES,2103152936,1000030807
05.10.2020,CHILDREN'S SERVICES,FAIRLEY HOUSE SCHOOL,"11,200.00",SEN - INDEPENDENT,STATEMENTED FEES,2103152937,1000030807
05.10.2020,CHILDREN'S SERVICES,FAIRLEY HOUSE SCHOOL,"11,200.00",SEN - INDEPENDENT,STATEMENTED FEES,2103152938,1000030807
05.10.2020,CHILDREN'S SERVICES,FAIRLEY HOUSE SCHOOL,"11,200.00",SEN - INDEPENDENT,STATEMENTED FEES,2103152939,1000030807
05.10.2020,CHILDREN'S SERVICES,FAIRLEY HOUSE SCHOOL,"11,200.00",SEN - INDEPENDENT,STATEMENTED FEES,2103152940,1000030807
05.10.2020,CHILDREN'S SERVICES,FAIRLEY HOUSE SCHOOL,"11,200.00",SEN - INDEPENDENT,STATEMENTED FEES,2103152941,1000030807
05.10.2020,CHILDREN'S SERVICES,FAIRLEY HOUSE SCHOOL,"11,200.00",SEN - INDEPENDENT,STATEMENTED FEES,2103152942,1000030807
05.10.2020,CHILDREN'S SERVICES,FAIRLEY HOUSE SCHOOL,"11,200.00",SEN - INDEPENDENT,STATEMENTED FEES,2103152943,1000030807
05.10.2020,CHILDREN'S SERVICES,FAIRLEY HOUSE SCHOOL,"11,200.00",SEN - INDEPENDENT,STATEMENTED FEES,2103152944,1000030807
05.10.2020,CHILDREN'S SERVICES,ADVANCEMENTS ABA LTD,400.00,SEN - OTHER,STATEMENTED FEES,2103152945,1000081719
05.10.2020,CHILDREN'S SERVICES,TREASURE HOUSE (LONDON) CIC,"11,000.00",SEN- NON MAINTAINED SCHOOLS,STATEMENTED FEES,2103152946,1000061163
05.10.2020,CHILDREN'S SERVICES,TREASURE HOUSE (LONDON) CIC,"11,000.00",SEN- NON MAINTAINED SCHOOLS,STATEMENTED FEES,2103152947,1000061163
05.10.2020,CHILDREN'S SERVICES,TREASURE HOUSE (LONDON) CIC,11000,SEN- NON MAINTAINED SCHOOLS,STATEMENTED FEES,2103152948,1000061163
05.10.2020,CHILDREN'S SERVICES,TREASURE HOUSE (LONDON) CIC,"11,000.00",SEN- NON MAINTAINED SCHOOLS,STATEMENTED FEES,2103152949,1000061163
05.10.2020,CHILDREN'S SERVICES,TREASURE HOUSE (LONDON) CIC,"11,000.00",SEN- NON MAINTAINED SCHOOLS,STATEMENTED FEES,2103152950,1000061163
05.10.2020,CHILDREN'S SERVICES,TREASURE HOUSE (LONDON) CIC,"11,000.00",SEN- NON MAINTAINED SCHOOLS,STATEMENTED FEES,2103152951,1000061163
05.10.2020,CHILDREN'S SERVICES,TREASURE HOUSE (LONDON) CIC,"11,000.00",SEN- NON MAINTAINED SCHOOLS,STATEMENTED FEES,2103152952,1000061163
05.10.2020,CHILDREN'S SERVICES,TREASURE HOUSE (LONDON) CIC,"11,000.00",SEN- NON MAINTAINED SCHOOLS,STATEMENTED FEES,2103152953,1000061163
05.10.2020,CHILDREN'S SERVICES,TREASURE HOUSE (LONDON) CIC,"11,000.00",SEN- NON MAINTAINED SCHOOLS,STATEMENTED FEES,2103152954,1000061163
05.10.2020,CHILDREN'S SERVICES,TREASURE HOUSE (LONDON) CIC,"11,000.00",SEN- NON MAINTAINED SCHOOLS,STATEMENTED FEES,2103152955,1000061163
05.10.2020,CHILDREN'S SERVICES,CRESSEY OASIS EDUCATION LTD,"2,121.23",SEN- NON MAINTAINED SCHOOLS,STATEMENTED FEES,2103152934,1000068133
05.10.2020,CHILDREN'S SERVICES,THE CHELSEA GROUP OF CHILDREN LTD,"12,525.00",SEN- NON MAINTAINED SCHOOLS,STATEMENTED FEES,2103152960,1000074731
05.10.2020,COMMUNITIES,THAMES HOMECARE SERVICE LTD,286.18,NO RECOURSE TO PUBLIC FUNDS,HOMECARE - C&V,2103152773,1000079295
05.10.2020,COMMUNITIES,SPAM T&RA,"3,712.50",RESIDENTS PARTICIPATION FUND,GRANTS,5902436153,1000076714
05.10.2020,CUSTOMER EXPERIENCE,PREMIER BUSINESS AUDIO LTD,"29,025.00",HOUSING REPAIRS TEAM,SOFTWARE,5902435839,1000079807
05.10.2020,CUSTOMER EXPERIENCE HGF,CORONERS' COURTS SUPPORT SERVICE,"1,392.00",CORONER'S,PROFESSIONAL FEES,5902436130,1000077579
05.10.2020,CUSTOMER EXPERIENCE HGF,REST UP,"8,400.00",COVID-19 SUPPORT,EXTERNAL AGENCIES AND BODIES,5902435341,1000084299
05.10.2020,CUSTOMER EXPERIENCE HGF,REST UP,"39,900.00",COVID-19 SUPPORT,EXTERNAL AGENCIES AND BODIES,5902435342,1000084299
05.10.2020,CUSTOMER EXPERIENCE HGF,SEAN BARADARAN,"1,475.00",HOMELESS PROJECTS,GRANTS,5902436151,1000085603
05.10.2020,CUSTOMER EXPERIENCE HGF,GRACE MONCRIEFFE,"2,112.00",HOMELESS PROJECTS,GRANTS,5902436168,1000085608
05.10.2020,CUSTOMER EXPERIENCE HGF,SHELTER TRAINING LTD,333.00,HOUSING OPTIONS,TRAINING,5902435924,1000033177
05.10.2020,CUSTOMER EXPERIENCE HGF,RUTH APPLEBY ALIS,550.00,HOUSING OPTIONS,TRAINING,5902435916,1000084741
05.10.2020,CUSTOMER EXPERIENCE HGF,STONEWALL HOUSING ASSOCIATION,"8,000.00",HOUSING OPTIONS,TRAINING,5902436056,1000085373
05.10.2020,CUSTOMER EXPERIENCE HGF,NATIONWIDE ACCOMMODATION,603.50,NIGHTLY TA (NSC),EXTERNAL AGENCIES AND BODIES,5902436086,1000076112
05.10.2020,CUSTOMER EXPERIENCE HGF,NATIONWIDE ACCOMMODATION,"148,091.95",NIGHTLY TA (NSC),EXTERNAL AGENCIES AND BODIES,5902436085,1000076112
05.10.2020,CUSTOMER EXPERIENCE HGF,DICKSON AIBAMWENKHEN,"1,366.25",PRIVATE SECTOR LEASING,EXTERNAL AGENCIES AND BODIES,2103147247,1000081408
05.10.2020,CUSTOMER EXPERIENCE HGF,ITS DESIGNS LIMITED,369.60,SMART MOBILE RESPONSE TEAM,EQUIPMENT PURCHASE & REPAIR,5902435196,1000067887
05.10.2020,ENVIRONMENT AND LEISURE,CJS PLANTS,253.50,CAPITAL PS (LEISURE),CONST'N MAIN CONTRACT - NON CERTIFICATED,5902436087,1000025370
05.10.2020,ENVIRONMENT AND LEISURE,THE ROYAL BRITISH LEGION,"1,023.00",CAPITAL PS (LEISURE),CAPITAL GRANTS,5902436068,1000025640
05.10.2020,ENVIRONMENT AND LEISURE,APPLEYARD & TREW,"1,666.66",CAPITAL PS (LEISURE),CONSTRUCTION FEES  - EXTERNAL,5902436077,1000029065
05.10.2020,ENVIRONMENT AND LEISURE,INTO SERVICES LONDON LTD,"1,530.00",CAPITAL PS (LEISURE),CONSTRUCTION MAIN CONTRACT -CERTIFICATED,5902436074,1000059328
05.10.2020,ENVIRONMENT AND LEISURE,BLOOM PROCUREMENT SERVICES LTD,"10,340.35",CAPITAL PS (LEISURE),CONSTRUCTION FEES  - EXTERNAL,5902435335,1000082531
05.10.2020,ENVIRONMENT AND LEISURE,EDIBLE ROTHERHITHE CIC,"3,120.00",CAPITAL PS (LEISURE),CAPITAL GRANTS,5902436062,1000082775
05.10.2020,ENVIRONMENT DIRECTORATE,LEX AUTOLEASE,-856.04,CAR LEASING CTRL A/C,VEHICLE LEASING CHARGES,5902436129,1000069462
05.10.2020,ENVIRONMENT DIRECTORATE,LEX AUTOLEASE,-773.80,CAR LEASING CTRL A/C,VEHICLE LEASING CHARGES,5902433083,1000069462
05.10.2020,ENVIRONMENT DIRECTORATE,LEX AUTOLEASE,-412.32,CAR LEASING CTRL A/C,VEHICLE LEASING CHARGES,5902436134,1000069462
05.10.2020,ENVIRONMENT DIRECTORATE,LEX AUTOLEASE,-359.45,CAR LEASING CTRL A/C,VEHICLE LEASING CHARGES,5902436131,1000069462
05.10.2020,ENVIRONMENT DIRECTORATE,AUTOMOTIVE LEASING,"1,074.40",COMMERCIAL VEH CTRL A/C,HIRED VEHICLES,5902436059,11014756
05.10.2020,ENVIRONMENT DIRECTORATE,AUTOMOTIVE LEASING,"7,367.01",COMMERCIAL VEH CTRL A/C,HIRED VEHICLES,5902436057,11014756
05.10.2020,ENVIRONMENT DIRECTORATE,TRANSPORT FOR LONDON,"7,467.50",COMMERCIAL VEH CTRL A/C,CONGESTION CHARGE,5902436102,1000023986
05.10.2020,ENVIRONMENT DIRECTORATE,NORTHGATE VEHICLE HIRE (SOUTH EAST),435.96,COMMERCIAL VEH CTRL A/C,HIRED VEHICLES,5902436139,1000044807
05.10.2020,ENVIRONMENT DIRECTORATE,LEX AUTOLEASE,325.00,COMMERCIAL VEH CTRL A/C,HIRED VEHICLES,5902436120,1000069462
05.10.2020,ENVIRONMENT DIRECTORATE,LEX AUTOLEASE,"18,796.75",COMMERCIAL VEH CTRL A/C,HIRED VEHICLES,5902436126,1000069462
05.10.2020,ENVIRONMENT DIRECTORATE,UNIVERSAL TYRE & AUTOCENTRES,263.19,COMMERCIAL VEH CTRL A/C,OTHER VEHICLE RUNNING COSTS,5902436150,1000072475
05.10.2020,EXCHEQUER SERVICES,INSPIRE AT ST PETER'S LTD,"3,000.00",SESS,OTHER PAYMENTS FOR CLIENTS,5902435146,1000041565
05.10.2020,HOUSING,METRO DIGITAL TELEVISION LTD,"1,161.33",ENG CONTRACTS (NORTH),I-WORLD CONTRACTORS HOLDING ACCOUNT,5902436115,1000070713
05.10.2020,HOUSING HRA,CALFORD SEADEN LLP,"1,176.00",CAPITAL PS (HRA),CONSTRUCTION FEES  - EXTERNAL,5902435882,1061592
05.10.2020,HOUSING HRA,TRINITY CONSTRUCTION SERVICES LTD,"7,030.58",CAPITAL PS (HRA),CONST'N MAIN CONTRACT - NON CERTIFICATED,2103152904,3000001416
05.10.2020,HOUSING HRA,AJMADAPTIONS LTD,"7,755.00",CAPITAL PS (HRA),CONST'N MAIN CONTRACT - NON CERTIFICATED,2103150398,3000002056
05.10.2020,LEISURE DIRECTORATE,AGA GROUP ENVIRO-FIX LTD,"1,665.00",BURGESS AREA TEAM,OTHER R&M,5902435292,1000051355
05.10.2020,LEISURE DIRECTORATE,CASTLE WATER LTD,493.38,PECKHAM LIBRARY,WATER,5902436088,1000078867
05.10.2020,LEISURE DIRECTORATE,CASTLE WATER LTD,515.29,PECKHAM LIBRARY,WATER,5902436089,1000078867
05.10.2020,MODERNISATION HGF,VIRGIN MEDIA,"1,355.40",IT MANAGEMENT,DATA COMMUNICATIONS,5902435941,1000026457
05.10.2020,MODERNISATION HGF,EMS EVENTS LTD,429.00,TSFM CONTINGENCY,INTEGRATED FACILITIES MANAGEMENT CONTRACT,5902435863,1000057494
05.10.2020,MODERNISATION HGF,EMS EVENTS LTD,562.00,TSFM CONTINGENCY,INTEGRATED FACILITIES MANAGEMENT CONTRACT,5902435768,1000057494
05.10.2020,MODERNISATION HGF,EMS EVENTS LTD,"19,970.40",TSFM CONTINGENCY,INTEGRATED FACILITIES MANAGEMENT CONTRACT,5902435764,1000057494
05.10.2020,RESIDENT SERVICES,VALLEY PROVINCIAL GROUP LLP,"19,472.71",GREAT ESTATES,BUILDING R&M,2103152644,3000001895
06.10.2020,ADULT SOCIAL CARE,CORONA ENERGY RETAIL 4 LTD,555.36, LD MGMT & SUPPORT,ELECTRICITY,5902436191,1000020539
06.10.2020,ADULT SOCIAL CARE,CORONA ENERGY RETAIL 4 LTD,615.37, LD MGMT & SUPPORT,ELECTRICITY,5902436192,1000020539
06.10.2020,ADULT SOCIAL CARE,CORONA ENERGY RETAIL 4 LTD,"1,312.43", LD MGMT & SUPPORT,ELECTRICITY,5902436193,1000020539
06.10.2020,ADULT SOCIAL CARE,BEDE CAFE PROJECT,"1,680.00",DISCHARGE TO ACCESS,SUPPORTED LIVING,2103153079,1553877
06.10.2020,ADULT SOCIAL CARE,SERVESOUL LTD,265.04,PHY LTS 65+,HOMECARE - SPOT,2103153069,1000081503
06.10.2020,ADULT SOCIAL CARE,SERVESOUL LTD,292.08,PHY LTS 65+,HOMECARE - SPOT,2103153076,1000081503
06.10.2020,ADULT SOCIAL CARE,SERVESOUL LTD,346.32,PHY LTS 65+,HOMECARE - SPOT,2103153073,1000081503
06.10.2020,ADULT SOCIAL CARE,SERVESOUL LTD,425.60,PHY LTS 65+,HOMECARE - SPOT,2103153067,1000081503
06.10.2020,ADULT SOCIAL CARE,SERVESOUL LTD,525.74,PHY LTS 65+,HOMECARE - SPOT,2103153071,1000081503
06.10.2020,ADULT SOCIAL CARE,SERVESOUL LTD,588.32,PHY LTS 65+,HOMECARE - SPOT,2103153077,1000081503
06.10.2020,ADULT SOCIAL CARE,SERVESOUL LTD,650.91,PHY LTS 65+,HOMECARE - SPOT,2103153074,1000081503
06.10.2020,ADULT SOCIAL CARE,SERVESOUL LTD,671.77,PHY LTS 65+,HOMECARE - SPOT,2103153070,1000081503
06.10.2020,ADULT SOCIAL CARE,SERVESOUL LTD,709.33,PHY LTS 65+,HOMECARE - SPOT,2103153072,1000081503
06.10.2020,ADULT SOCIAL CARE,ROMEDICAL LTD,260.00,SAFEGUARDING & DOLS,OTHER CONTRACTORS,5902436290,1000076318
06.10.2020,ADULT SOCIAL CARE,KIDS,472.00,SPECIALIST CARE,SECTION 17 PAYMENTS TO AGENCIES/CARERS,2103152973,1000030036
06.10.2020,ADULT SOCIAL CARE,INTERSERVE HEALTHCARE,486.72,SPECIALIST CARE,SECTION 17 PAYMENTS TO AGENCIES/CARERS,2103152996,1000049612
06.10.2020,ADULT SOCIAL CARE,CONTACT PROFESSIONALS,380.00,SPECIALIST CARE,SECTION 17 PAYMENTS TO AGENCIES/CARERS,2103153035,1000057263
06.10.2020,ADULT SOCIAL CARE,CONTACT PROFESSIONALS,399.00,SPECIALIST CARE,SECTION 17 PAYMENTS TO AGENCIES/CARERS,2103152999,1000057263
06.10.2020,ADULT SOCIAL CARE,METRO HOMECARE LTD,346.50,SPECIALIST CARE,SECTION 17 PAYMENTS TO AGENCIES/CARERS,2103152982,1000070695
06.10.2020,ASSET MANAGEMENT,LONDON FIRE BRIGADE,346.00,ENG CONTRACTS (NORTH),LIFTS,5902436359,1000083629
06.10.2020,ASSET MANAGEMENT,LONDON FIRE BRIGADE,346.00,ENG CONTRACTS (NORTH),LIFTS,5902436363,1000083629
06.10.2020,ASSET MANAGEMENT,CHRIS DAVIS CONSULTANCY LTD,"11,624.72",REPAIRS OPERATIONS,PROFESSIONAL FEES,5902436383,1000084202
06.10.2020,CENTRAL FUNCTIONS,VEOLIA ES (UK)LTD,"153,538.98",HEATING ACCOUNT,GAS,5902436351,1824835
06.10.2020,CENTRAL FUNCTIONS,VEOLIA ES (UK)LTD,"155,614.29",HEATING ACCOUNT,GAS,5902436248,1824835
06.10.2020,CHIEF EXECUTIVE'S OFFICE,TREE SHEPHERD LTD,"9,043.00",BUSINESS SUPPORT,FREELANCE SPECIALISTS,5902436374,1000076895
06.10.2020,CHILDREN AND ADULT,SHARPE PRITCHARD LLP,"2,321.10",CAPITAL PS (EDUCATION),CONSTRUCTION FEES - LEGAL,5902436299,1790085
06.10.2020,CHILDREN AND ADULT,FAITHFUL & GOULD,"22,262.69",CAPITAL PS (EDUCATION),CONSTRUCTION FEES,5902436294,1000061390
06.10.2020,CHILDREN AND ADULT,IMAGO LTD,"27,819.00",YOUNG CARERS SERVICE,EXTERNAL AGENCIES AND BODIES,5902436277,1000076913
06.10.2020,CHILDREN AND FAMILIES,REDACTED PERSONAL DATA,360.00,ADOPTION SUPP FUND,PROFESSIONAL FEES,REDACTED,REDACTED
06.10.2020,CHILDREN AND FAMILIES,REDACTED PERSONAL DATA,875.00,CARELEAVER UNIV SUPP,OTHER PAYMENTS FOR CLIENTS,REDACTED,REDACTED
06.10.2020,CHILDREN AND FAMILIES,REDACTED PERSONAL DATA,800.00,CARELEAVER UNIV SUPP,OTHER PAYMENTS FOR CLIENTS,REDACTED,REDACTED
06.10.2020,CHILDREN AND FAMILIES,REDACTED PERSONAL DATA,875.00,CARELEAVER UNIV SUPP,OTHER PAYMENTS FOR CLIENTS,REDACTED,REDACTED
06.10.2020,CHILDREN AND FAMILIES,REDACTED PERSONAL DATA,300.00,CARELEAVER UNIV SUPP,CLIENT TRANSPORT,REDACTED,REDACTED
06.10.2020,CHILDREN AND FAMILIES,REDACTED PERSONAL DATA,800.00,CARELEAVER UNIV SUPP,OTHER PAYMENTS FOR CLIENTS,REDACTED,REDACTED
06.10.2020,CHILDREN AND FAMILIES,INTERPRETING DIRECT CO (UK) LTD,"3,754.80",CENTRAL SUPPORT,TRANSLATION SERVICES,5902436184,1000070133
06.10.2020,CHILDREN AND FAMILIES,REDACTED PERSONAL DATA,668.57,DISABILITY & HIV,OTHER PAYMENTS FOR CLIENTS,REDACTED,REDACTED
06.10.2020,CHILDREN AND FAMILIES,PURPLE PEBBLES(CHILD CARE) SERVICES,"1,821.43",EDGE OF CARE DECIS�S,OTHER PAYMENTS FOR CLIENTS,2103152969,1000070705
06.10.2020,CHILDREN AND FAMILIES,REDACTED PERSONAL DATA,300.00,FE SUPPORT,CLIENT TRANSPORT,REDACTED,REDACTED
06.10.2020,CHILDREN AND FAMILIES,REDACTED PERSONAL DATA,300.00,FE SUPPORT,CLIENT TRANSPORT,REDACTED,REDACTED
06.10.2020,CHILDREN AND FAMILIES,REDACTED PERSONAL DATA,300.00,FE SUPPORT,CLIENT TRANSPORT,REDACTED,REDACTED
06.10.2020,CHILDREN AND FAMILIES,REDACTED PERSONAL DATA,300.00,FE SUPPORT,CLIENT TRANSPORT,REDACTED,REDACTED
06.10.2020,CHILDREN AND FAMILIES,REDACTED PERSONAL DATA,300.00,FE SUPPORT,CLIENT TRANSPORT,REDACTED,REDACTED
06.10.2020,CHILDREN AND FAMILIES,REDACTED PERSONAL DATA,300.00,FE SUPPORT,CLIENT TRANSPORT,REDACTED,REDACTED
06.10.2020,CHILDREN AND FAMILIES,REDACTED PERSONAL DATA,300.00,FE SUPPORT,CLIENT TRANSPORT,REDACTED,REDACTED
06.10.2020,CHILDREN AND FAMILIES,REDACTED PERSONAL DATA,300.00,SEMI-IND CARELEAVERS,OTHER PAYMENTS FOR CLIENTS,REDACTED,REDACTED
06.10.2020,CHILDREN AND FAMILIES,YOUNG FUTURES,"2,811.42",SEMI-IND LAC 16-17,EXTERNAL AGENCIES AND BODIES,2103152965,1000059563
06.10.2020,CHILDREN'S SERVICES,THE COMPLETE WORKS INDEPENDENT SCHOOL,472.00,ALTERNATIVE PROVISION,EXTERNAL AGENCIES AND BODIES,5902436189,1000033256
06.10.2020,CHILDREN'S SERVICES,THE COMPLETE WORKS INDEPENDENT SCHOOL,"5,275.00",ALTERNATIVE PROVISION,EXTERNAL AGENCIES AND BODIES,5902436237,1000033256
06.10.2020,CHILDREN'S SERVICES,FLEET TUTORS,"-7,626.00",ALTERNATIVE PROVISION,EXTERNAL AGENCIES AND BODIES,5902436223,1000044820
06.10.2020,CHILDREN'S SERVICES,FLEET TUTORS,"9,878.00",ALTERNATIVE PROVISION,EXTERNAL AGENCIES AND BODIES,5902436222,1000044820
06.10.2020,CHILDREN'S SERVICES,FLEET TUTORS,"46,230.00",ALTERNATIVE PROVISION,EXTERNAL AGENCIES AND BODIES,5902436221,1000044820
06.10.2020,COMMISSIONING & CENTRAL,HEATHER HETHERINGTON,650.00,STRATEGIC DIRECTOR OF C&AS,TRAINING,5902436194,1000077031
06.10.2020,COMMUNITIES,SOUTHWARK CITIZENS ADVICE,"150,000.00",LEGAL GRANTS,EXTERNAL AGENCIES AND BODIES,5902436364,1874379
06.10.2020,COMMUNITIES,SOUTHWARK LAW CENTRE,"84,000.00",LEGAL GRANTS,EXTERNAL AGENCIES AND BODIES,5902436370,1981325
06.10.2020,COMMUNITIES,LINK AGE SOUTHWARK,"1,992.00",SOUTH,GRANTS,5902436183,1000034150
06.10.2020,COMMUNITIES,LINK AGE SOUTHWARK,"6,975.00",SOUTH,GRANTS,5902436183,1000034150
06.10.2020,COMMUNITIES,LINK AGE SOUTHWARK,"8,640.00",SOUTH,GRANTS,5902436183,1000034150
06.10.2020,CUSTOMER EXPERIENCE HGF,JAMES MARTIN MUGWANYA T/A JOHN SMITH REMOVALS,300.00,COVID-19 SUPPORT,REMOVAL EXPENSES,5902436302,1000078552
06.10.2020,CUSTOMER EXPERIENCE HGF,CRESSWOOD LIMITED,"2,900.00",HOMELESS PROJECTS,GRANTS,5902436339,1000085635
06.10.2020,CUSTOMER EXPERIENCE HGF,HELP2SUPPORT LIMITED,871.00,HOUSING OPTIONS,GRANTS,5902436355,1000084604
06.10.2020,CUSTOMER EXPERIENCE HGF,SOLACE WOMEN'S AID,"45,000.00",NIGHTLY TA (NSC),EXTERNAL AGENCIES AND BODIES,5902436262,1000057231
06.10.2020,ENVIRONMENT AND LEISURE,BANKSIDE OPEN SPACES TRUST,"4,140.64",CAPITAL PS (LEISURE),CAPITAL GRANTS,5902436283,1000018290
06.10.2020,ENVIRONMENT DIRECTORATE,AUTOMOTIVE LEASING,934.58,CAR LEASING CTRL A/C,VEHICLE LEASING CHARGES,5902436205,11014756
06.10.2020,ENVIRONMENT DIRECTORATE,AUTOMOTIVE LEASING,979.63,CAR LEASING CTRL A/C,VEHICLE LEASING CHARGES,5902436205,11014756
06.10.2020,ENVIRONMENT DIRECTORATE,ARNOLD CLARK VEHICLE MANAGEMENT,400.77,CAR LEASING CTRL A/C,CONGESTION CHARGE,5902436276,1000079116
06.10.2020,ENVIRONMENT DIRECTORATE,ARNOLD CLARK VEHICLE MANAGEMENT,445.82,CAR LEASING CTRL A/C,CONGESTION CHARGE,5902436276,1000079116
06.10.2020,ENVIRONMENT DIRECTORATE,ARNOLD CLARK VEHICLE MANAGEMENT,525.48,CAR LEASING CTRL A/C,CONGESTION CHARGE,5902436271,1000079116
06.10.2020,ENVIRONMENT DIRECTORATE,ARNOLD CLARK VEHICLE MANAGEMENT,-324.00,CAR LEASING CTRL A/C,VEHICLE LEASING CHARGES,5902434977,1000079116
06.10.2020,ENVIRONMENT DIRECTORATE,ARNOLD CLARK VEHICLE MANAGEMENT,265.74,CAR LEASING CTRL A/C,VEHICLE LEASING CHARGES,5902436217,1000079116
06.10.2020,ENVIRONMENT DIRECTORATE,ARNOLD CLARK VEHICLE MANAGEMENT,305.32,CAR LEASING CTRL A/C,VEHICLE LEASING CHARGES,5902436214,1000079116
06.10.2020,ENVIRONMENT DIRECTORATE,ARNOLD CLARK VEHICLE MANAGEMENT,319.05,CAR LEASING CTRL A/C,VEHICLE LEASING CHARGES,5902436217,1000079116
06.10.2020,ENVIRONMENT DIRECTORATE,ARNOLD CLARK VEHICLE MANAGEMENT,334.89,CAR LEASING CTRL A/C,VEHICLE LEASING CHARGES,5902436214,1000079116
06.10.2020,ENVIRONMENT DIRECTORATE,ARNOLD CLARK VEHICLE MANAGEMENT,359.07,CAR LEASING CTRL A/C,VEHICLE LEASING CHARGES,5902436267,1000079116
06.10.2020,ENVIRONMENT DIRECTORATE,ARNOLD CLARK VEHICLE MANAGEMENT,403.10,CAR LEASING CTRL A/C,VEHICLE LEASING CHARGES,5902436267,1000079116
06.10.2020,ENVIRONMENT DIRECTORATE,ARNOLD CLARK VEHICLE MANAGEMENT,523.05,CAR LEASING CTRL A/C,VEHICLE LEASING CHARGES,5902436212,1000079116
06.10.2020,ENVIRONMENT DIRECTORATE,ARNOLD CLARK VEHICLE MANAGEMENT,572.83,CAR LEASING CTRL A/C,VEHICLE LEASING CHARGES,5902436271,1000079116
06.10.2020,ENVIRONMENT DIRECTORATE,ARNOLD CLARK VEHICLE MANAGEMENT,574.80,CAR LEASING CTRL A/C,VEHICLE LEASING CHARGES,5902436212,1000079116
06.10.2020,ENVIRONMENT DIRECTORATE,ARNOLD CLARK VEHICLE MANAGEMENT,588.51,CAR LEASING CTRL A/C,VEHICLE LEASING CHARGES,5902436206,1000079116
06.10.2020,ENVIRONMENT DIRECTORATE,ARNOLD CLARK VEHICLE MANAGEMENT,651.91,CAR LEASING CTRL A/C,VEHICLE LEASING CHARGES,5902436218,1000079116
06.10.2020,ENVIRONMENT DIRECTORATE,ARNOLD CLARK VEHICLE MANAGEMENT,653.86,CAR LEASING CTRL A/C,VEHICLE LEASING CHARGES,5902436206,1000079116
06.10.2020,ENVIRONMENT DIRECTORATE,ARNOLD CLARK VEHICLE MANAGEMENT,682.05,CAR LEASING CTRL A/C,VEHICLE LEASING CHARGES,5902436215,1000079116
06.10.2020,ENVIRONMENT DIRECTORATE,ARNOLD CLARK VEHICLE MANAGEMENT,706.63,CAR LEASING CTRL A/C,VEHICLE LEASING CHARGES,5902436178,1000079116
06.10.2020,ENVIRONMENT DIRECTORATE,ARNOLD CLARK VEHICLE MANAGEMENT,727.04,CAR LEASING CTRL A/C,VEHICLE LEASING CHARGES,5902436215,1000079116
06.10.2020,ENVIRONMENT DIRECTORATE,ARNOLD CLARK VEHICLE MANAGEMENT,727.42,CAR LEASING CTRL A/C,VEHICLE LEASING CHARGES,5902436218,1000079116
06.10.2020,ENVIRONMENT DIRECTORATE,ARNOLD CLARK VEHICLE MANAGEMENT,799.78,CAR LEASING CTRL A/C,VEHICLE LEASING CHARGES,5902436178,1000079116
06.10.2020,ENVIRONMENT DIRECTORATE,ARNOLD CLARK VEHICLE MANAGEMENT,825.28,CAR LEASING CTRL A/C,VEHICLE LEASING CHARGES,5902436209,1000079116
06.10.2020,ENVIRONMENT DIRECTORATE,ARNOLD CLARK VEHICLE MANAGEMENT,828.82,CAR LEASING CTRL A/C,VEHICLE LEASING CHARGES,5902436209,1000079116
06.10.2020,ENVIRONMENT DIRECTORATE,ARNOLD CLARK VEHICLE MANAGEMENT,876.38,CAR LEASING CTRL A/C,VEHICLE LEASING CHARGES,5902436204,1000079116
06.10.2020,ENVIRONMENT DIRECTORATE,ARNOLD CLARK VEHICLE MANAGEMENT,936.17,CAR LEASING CTRL A/C,VEHICLE LEASING CHARGES,5902436204,1000079116
06.10.2020,ENVIRONMENT DIRECTORATE,ARNOLD CLARK VEHICLE MANAGEMENT,990.66,CAR LEASING CTRL A/C,VEHICLE LEASING CHARGES,5902436207,1000079116
06.10.2020,ENVIRONMENT DIRECTORATE,ARNOLD CLARK VEHICLE MANAGEMENT,"1,023.22",CAR LEASING CTRL A/C,VEHICLE LEASING CHARGES,5902436264,1000079116
06.10.2020,ENVIRONMENT DIRECTORATE,ARNOLD CLARK VEHICLE MANAGEMENT,"1,023.22",CAR LEASING CTRL A/C,VEHICLE LEASING CHARGES,5902436265,1000079116
06.10.2020,ENVIRONMENT DIRECTORATE,ARNOLD CLARK VEHICLE MANAGEMENT,"1,069.14",CAR LEASING CTRL A/C,VEHICLE LEASING CHARGES,5902436207,1000079116
06.10.2020,ENVIRONMENT DIRECTORATE,ARNOLD CLARK VEHICLE MANAGEMENT,"1,081.04",CAR LEASING CTRL A/C,VEHICLE LEASING CHARGES,5902436264,1000079116
06.10.2020,ENVIRONMENT DIRECTORATE,ARNOLD CLARK VEHICLE MANAGEMENT,"1,081.04",CAR LEASING CTRL A/C,VEHICLE LEASING CHARGES,5902436265,1000079116
06.10.2020,ENVIRONMENT DIRECTORATE,AUTOMOTIVE LEASING,"2,892.37",COMMERCIAL VEH CTRL A/C,HIRED VEHICLES,5902436205,11014756
06.10.2020,ENVIRONMENT DIRECTORATE,PURPOSE POWDER COATINGS LTD,255.00,ENGINEERING CRAFTS,MATERIALS,5902436378,1000059450
06.10.2020,ENVIRONMENT DIRECTORATE,PURPOSE POWDER COATINGS LTD,340.00,ENGINEERING CRAFTS,MATERIALS,5902436377,1000059450
06.10.2020,ENVIRONMENT DIRECTORATE,SPALDINGS (UK) LTD,"1,531.00",GROUNDS MAINTENANCE - GENERAL,MATERIALS,5902436305,1907384
06.10.2020,ENVIRONMENT DIRECTORATE,EDWARDES BROS (DULWICH) LTD,319.80,PUBLIC LIGHTING,MATERIALS,5902436342,1004945
06.10.2020,ENVIRONMENT DIRECTORATE,EDWARDES BROS (DULWICH) LTD,325.00,PUBLIC LIGHTING,MATERIALS,5902436336,1004945
06.10.2020,ENVIRONMENT DIRECTORATE,EDWARDES BROS (DULWICH) LTD,390.00,PUBLIC LIGHTING,MATERIALS,5902436328,1004945
06.10.2020,ENVIRONMENT DIRECTORATE,EDWARDES BROS (DULWICH) LTD,525.00,PUBLIC LIGHTING,MATERIALS,5902436338,1004945
06.10.2020,ENVIRONMENT DIRECTORATE,EDWARDES BROS (DULWICH) LTD,552.00,PUBLIC LIGHTING,MATERIALS,5902436342,1004945
06.10.2020,ENVIRONMENT DIRECTORATE,EDWARDES BROS (DULWICH) LTD,556.00,PUBLIC LIGHTING,MATERIALS,5902436342,1004945
06.10.2020,ENVIRONMENT DIRECTORATE,EDWARDES BROS (DULWICH) LTD,990.00,PUBLIC LIGHTING,MATERIALS,5902436342,1004945
06.10.2020,ENVIRONMENT DIRECTORATE,EDWARDES BROS (DULWICH) LTD,"1,019.50",PUBLIC LIGHTING,MATERIALS,5902436336,1004945
06.10.2020,ENVIRONMENT DIRECTORATE,EDWARDES BROS (DULWICH) LTD,"1,223.40",PUBLIC LIGHTING,MATERIALS,5902436328,1004945
06.10.2020,ENVIRONMENT DIRECTORATE,EDWARDES BROS (DULWICH) LTD,"1,250.00",PUBLIC LIGHTING,MATERIALS,5902436342,1004945
06.10.2020,ENVIRONMENT DIRECTORATE,EDWARDES BROS (DULWICH) LTD,"2,225.00",PUBLIC LIGHTING,MATERIALS,5902436336,1004945
06.10.2020,ENVIRONMENT DIRECTORATE,EDWARDES BROS (DULWICH) LTD,"2,670.00",PUBLIC LIGHTING,MATERIALS,5902436328,1004945
06.10.2020,ENVIRONMENT DIRECTORATE,EDMUNDSON ELECTRICAL LTD,651.40,PUBLIC LIGHTING,MATERIALS,5902436381,1000066568
06.10.2020,ENVIRONMENT DIRECTORATE,INSTARMAC GROUP PLC,627.20,PUBLIC LIGHTING,MATERIALS,5902436382,1000070786
06.10.2020,ENVIRONMENT DIRECTORATE,ASD LIGHTING PLC,"1,865.80",PUBLIC LIGHTING,MATERIALS,5902436384,1000079671
06.10.2020,ENVIRONMENT DIRECTORATE,PERFECT COLOURS LTD,675.50,SIGN SHOP,MATERIALS,5902436345,1000026164
06.10.2020,HOUSING GENERAL FUND,WHITELEYS OFFICE SUPPLIES LTD,"3,531.00",CAPITAL PS (REGEN),CONSTRUCTION MAIN CONTRACT,5902436292,1000083121
06.10.2020,HOUSING GENERAL FUND,TREND CONTROL SYSTEMS LTD,"5,182.52",CAPITAL PS (REGEN),CONSTRUCTION MAIN CONTRACT,5902436357,1000083165
06.10.2020,LEISURE DIRECTORATE,DURA COMPOSITES LTD,414.00,SDM BUDGET,MATERIALS,5902436369,1000073030
06.10.2020,MODERNISATION HGF,PIONEER PRODUCTS,"5,075.60",TSFM CONTINGENCY,INTEGRATED FACILITIES MANAGEMENT CONTRACT,5902436281,1000084131
06.10.2020,PH DIRECTORS TEAM,WHATEVER DESIGN LTD,672.00,COVID-19 RESPONSE,MARKETING & PUBLICITY SERVICES,5902436239,1000036500
06.10.2020,REGENERATION,STANBURY BUILDING SERVICES LTD,295.00,CPHA  MANAGED PROPERTIES,BUILDING R&M,5902436343,1000078207
06.10.2020,REGENERATION,PIPE SCAFFOLDING LTD,"1,844.00",MISC INDUSTRIAL PROPERTIES,BUILDING R&M,5902436380,1000083894
06.10.2020,RESIDENT SERVICES,CARLISLE SECURITY SERVICES LTD,"11,951.68",CAMBERWELL,SECURITY SERVICES,5902436308,11212342
06.10.2020,RESIDENT SERVICES,BRITISH GAS TRADING LTD,-275.19,OPERATIONS/OFFICES ACCOMMODATION,ELECTRICITY,5902436253,1000055977
06.10.2020,RESIDENT SERVICES,TAAKSVALE HOUSING LTD,"3,415.00",TA PLACEMENTS,EXTERNAL AGENCIES AND BODIES,5902436340,1000073665
06.10.2020,SOUTHWARK BUILDING SERVICES,EDWARDES BROS (DULWICH) LTD,590.00,STORES/LOGISTICS,CREDITORS -GR/IR CLEARING ACCOUNT,5902436333,1004945
06.10.2020,SOUTHWARK BUILDING SERVICES,EDWARDES BROS (DULWICH) LTD,590.00,STORES/LOGISTICS,CREDITORS -GR/IR CLEARING ACCOUNT,5902436333,1004945
06.10.2020,SOUTHWARK BUILDING SERVICES,EDWARDES BROS (DULWICH) LTD,"1,069.00",STORES/LOGISTICS,CREDITORS -GR/IR CLEARING ACCOUNT,5902436330,1004945
06.10.2020,SOUTHWARK BUILDING SERVICES,EDWARDES BROS (DULWICH) LTD,"1,875.00",STORES/LOGISTICS,CREDITORS -GR/IR CLEARING ACCOUNT,5902436335,1004945
06.10.2020,SOUTHWARK BUILDING SERVICES,EDWARDES BROS (DULWICH) LTD,"3,395.00",STORES/LOGISTICS,CREDITORS -GR/IR CLEARING ACCOUNT,5902436335,1004945
07.10.2020,ADULT SOCIAL CARE,SERVESOUL LTD,265.04,PHY LTS 65+,HOMECARE - SPOT,2103153779,1000081503
07.10.2020,ADULT SOCIAL CARE,SERVESOUL LTD,265.04,PHY LTS 65+,HOMECARE - SPOT,2103154062,1000081503
07.10.2020,ADULT SOCIAL CARE,SERVESOUL LTD,292.08,PHY LTS 65+,HOMECARE - SPOT,2103153777,1000081503
07.10.2020,ADULT SOCIAL CARE,SERVESOUL LTD,292.08,PHY LTS 65+,HOMECARE - SPOT,2103154065,1000081503
07.10.2020,ADULT SOCIAL CARE,SERVESOUL LTD,346.32,PHY LTS 65+,HOMECARE - SPOT,2103153783,1000081503
07.10.2020,ADULT SOCIAL CARE,SERVESOUL LTD,346.32,PHY LTS 65+,HOMECARE - SPOT,2103154050,1000081503
07.10.2020,ADULT SOCIAL CARE,SERVESOUL LTD,425.60,PHY LTS 65+,HOMECARE - SPOT,2103153774,1000081503
07.10.2020,ADULT SOCIAL CARE,SERVESOUL LTD,425.60,PHY LTS 65+,HOMECARE - SPOT,2103154054,1000081503
07.10.2020,ADULT SOCIAL CARE,SERVESOUL LTD,525.74,PHY LTS 65+,HOMECARE - SPOT,2103153784,1000081503
07.10.2020,ADULT SOCIAL CARE,SERVESOUL LTD,525.74,PHY LTS 65+,HOMECARE - SPOT,2103154055,1000081503
07.10.2020,ADULT SOCIAL CARE,SERVESOUL LTD,588.32,PHY LTS 65+,HOMECARE - SPOT,2103153778,1000081503
07.10.2020,ADULT SOCIAL CARE,SERVESOUL LTD,588.32,PHY LTS 65+,HOMECARE - SPOT,2103154052,1000081503
07.10.2020,ADULT SOCIAL CARE,SERVESOUL LTD,650.91,PHY LTS 65+,HOMECARE - SPOT,2103153785,1000081503
07.10.2020,ADULT SOCIAL CARE,SERVESOUL LTD,650.91,PHY LTS 65+,HOMECARE - SPOT,2103154058,1000081503
07.10.2020,ADULT SOCIAL CARE,SERVESOUL LTD,671.77,PHY LTS 65+,HOMECARE - SPOT,2103153790,1000081503
07.10.2020,ADULT SOCIAL CARE,SERVESOUL LTD,671.77,PHY LTS 65+,HOMECARE - SPOT,2103154061,1000081503
07.10.2020,ADULT SOCIAL CARE,SERVESOUL LTD,709.33,PHY LTS 65+,HOMECARE - SPOT,2103153788,1000081503
07.10.2020,ASSET MANAGEMENT,LONDON FIRE BRIGADE,346.00,ENG CONTRACTS (NORTH),LIFTS,5902436398,1000083629
07.10.2020,ASSET MANAGEMENT,LONDON FIRE BRIGADE,346.00,ENG CONTRACTS (NORTH),LIFTS,5902436399,1000083629
07.10.2020,ASSET MANAGEMENT,LONDON FIRE BRIGADE,346.00,ENG CONTRACTS (NORTH),LIFTS,5902436400,1000083629
07.10.2020,CENTRAL FUNCTIONS,CLEANOVATION,267.22,COMMERCIAL PROPERTIES,PREMISES CLEANING,5902436392,1000000539
07.10.2020,CENTRAL FUNCTIONS,CLEANOVATION,590.08,COMMERCIAL PROPERTIES,PREMISES CLEANING,5902436391,1000000539
07.10.2020,CENTRAL FUNCTIONS,BRITISH GAS TRADING LTD,344.78,LEDBURY ESTATE,GAS,5902436420,1000055977
07.10.2020,CHIEF EXECUTIVE,F M CONWAY LTD,"9,905.58",CAPITAL PS (REGEN),CONSTRUCTION FEES  - EXTERNAL,5902436417,1000002412
07.10.2020,CHIEF EXECUTIVE,F M CONWAY LTD,"30,000.00",CAPITAL PS (REGEN),CONSTRUCTION FEES  - EXTERNAL,5902436389,1000002412
07.10.2020,CHIEF EXECUTIVE,BAKER MALLETT LLP,"1,200.00",CAPITAL PS (REGEN),CONSTRUCTION FEES - QUANTITY SURVEYOR,5902436413,1000080547
07.10.2020,CHILDREN AND FAMILIES,REDACTED PERSONAL DATA,465.52,ADOPTION ALLOWANCES,PAYMENTS TO CARERS,REDACTED,REDACTED
07.10.2020,CHILDREN AND FAMILIES,REDACTED PERSONAL DATA,559.06,ADOPTION ALLOWANCES,PAYMENTS TO CARERS,REDACTED,REDACTED
07.10.2020,CHILDREN AND FAMILIES,REDACTED PERSONAL DATA,695.04,ADOPTION ALLOWANCES,PAYMENTS TO CARERS,REDACTED,REDACTED
07.10.2020,CHILDREN AND FAMILIES,REDACTED PERSONAL DATA,375.54,ADOPTION ALLOWANCES,PAYMENTS TO CARERS,REDACTED,REDACTED
07.10.2020,CHILDREN AND FAMILIES,REDACTED PERSONAL DATA,375.54,ADOPTION ALLOWANCES,PAYMENTS TO CARERS,REDACTED,REDACTED
07.10.2020,CHILDREN AND FAMILIES,REDACTED PERSONAL DATA,500.00,ADOPTION ALLOWANCES,PAYMENTS TO CARERS,REDACTED,REDACTED
07.10.2020,CHILDREN AND FAMILIES,REDACTED PERSONAL DATA,635.34,ADOPTION ALLOWANCES,PAYMENTS TO CARERS,REDACTED,REDACTED
07.10.2020,CHILDREN AND FAMILIES,REDACTED PERSONAL DATA,375.54,ADOPTION ALLOWANCES,PAYMENTS TO CARERS,REDACTED,REDACTED
07.10.2020,CHILDREN AND FAMILIES,REDACTED PERSONAL DATA,653.06,ADOPTION ALLOWANCES,PAYMENTS TO CARERS,REDACTED,REDACTED
07.10.2020,CHILDREN AND FAMILIES,REDACTED PERSONAL DATA,465.54,ADOPTION ALLOWANCES,PAYMENTS TO CARERS,REDACTED,REDACTED
07.10.2020,CHILDREN AND FAMILIES,REDACTED PERSONAL DATA,400.84,ADOPTION ALLOWANCES,PAYMENTS TO CARERS,REDACTED,REDACTED
07.10.2020,CHILDREN AND FAMILIES,REDACTED PERSONAL DATA,375.54,ADOPTION ALLOWANCES,PAYMENTS TO CARERS,REDACTED,REDACTED
07.10.2020,CHILDREN AND FAMILIES,REDACTED PERSONAL DATA,451.80,ADOPTION ALLOWANCES,PAYMENTS TO CARERS,REDACTED,REDACTED
07.10.2020,CHILDREN AND FAMILIES,REDACTED PERSONAL DATA,359.44,ADOPTION ALLOWANCES,PAYMENTS TO CARERS,REDACTED,REDACTED
07.10.2020,CHILDREN AND FAMILIES,REDACTED PERSONAL DATA,319.36,ADOPTION ALLOWANCES,PAYMENTS TO CARERS,REDACTED,REDACTED
07.10.2020,CHILDREN AND FAMILIES,REDACTED PERSONAL DATA,465.48,ADOPTION ALLOWANCES,PAYMENTS TO CARERS,REDACTED,REDACTED
07.10.2020,CHILDREN AND FAMILIES,REDACTED PERSONAL DATA,386.00,ADOPTION ALLOWANCES,PAYMENTS TO CARERS,REDACTED,REDACTED
07.10.2020,CHILDREN AND FAMILIES,REDACTED PERSONAL DATA,465.54,ADOPTION ALLOWANCES,PAYMENTS TO CARERS,REDACTED,REDACTED
07.10.2020,CHILDREN AND FAMILIES,REDACTED PERSONAL DATA,255.22,ADOPTION ALLOWANCES,PAYMENTS TO CARERS,REDACTED,REDACTED
07.10.2020,CHILDREN AND FAMILIES,REDACTED PERSONAL DATA,269.22,ADOPTION ALLOWANCES,PAYMENTS TO CARERS,REDACTED,REDACTED
07.10.2020,CHILDREN AND FAMILIES,REDACTED PERSONAL DATA,705.24,ADOPTION ALLOWANCES,PAYMENTS TO CARERS,REDACTED,REDACTED
07.10.2020,CHILDREN AND FAMILIES,REDACTED PERSONAL DATA,777.36,ADOPTION ALLOWANCES,PAYMENTS TO CARERS,REDACTED,REDACTED
07.10.2020,CHILDREN AND FAMILIES,REDACTED PERSONAL DATA,512.02,ADOPTION ALLOWANCES,PAYMENTS TO CARERS,REDACTED,REDACTED
07.10.2020,CHILDREN AND FAMILIES,REDACTED PERSONAL DATA,251.12,ADOPTION ALLOWANCES,PAYMENTS TO CARERS,REDACTED,REDACTED
07.10.2020,CHILDREN AND FAMILIES,REDACTED PERSONAL DATA,375.54,ADOPTION ALLOWANCES,PAYMENTS TO CARERS,REDACTED,REDACTED
07.10.2020,CHILDREN AND FAMILIES,REDACTED PERSONAL DATA,375.54,ADOPTION ALLOWANCES,PAYMENTS TO CARERS,REDACTED,REDACTED
07.10.2020,CHILDREN AND FAMILIES,REDACTED PERSONAL DATA,457.14,ADOPTION ALLOWANCES,PAYMENTS TO CARERS,REDACTED,REDACTED
07.10.2020,CHILDREN AND FAMILIES,REDACTED PERSONAL DATA,502.00,ADOPTION ALLOWANCES,PAYMENTS TO CARERS,REDACTED,REDACTED
07.10.2020,CHILDREN AND FAMILIES,REDACTED PERSONAL DATA,375.54,ADOPTION ALLOWANCES,PAYMENTS TO CARERS,REDACTED,REDACTED
07.10.2020,CHILDREN AND FAMILIES,REDACTED PERSONAL DATA,640.90,ADOPTION ALLOWANCES,PAYMENTS TO CARERS,REDACTED,REDACTED
07.10.2020,CHILDREN AND FAMILIES,REDACTED PERSONAL DATA,382.30,ADOPTION ALLOWANCES,PAYMENTS TO CARERS,REDACTED,REDACTED
07.10.2020,CHILDREN AND FAMILIES,REDACTED PERSONAL DATA,382.30,ADOPTION ALLOWANCES,PAYMENTS TO CARERS,REDACTED,REDACTED
07.10.2020,CHILDREN AND FAMILIES,REDACTED PERSONAL DATA,375.54,ADOPTION ALLOWANCES,PAYMENTS TO CARERS,REDACTED,REDACTED
07.10.2020,CHILDREN AND FAMILIES,REDACTED PERSONAL DATA,278.54,ADOPTION ALLOWANCES,PAYMENTS TO CARERS,REDACTED,REDACTED
07.10.2020,CHILDREN AND FAMILIES,REDACTED PERSONAL DATA,485.22,ADOPTION ALLOWANCES,PAYMENTS TO CARERS,REDACTED,REDACTED
07.10.2020,CHILDREN AND FAMILIES,REDACTED PERSONAL DATA,368.52,ADOPTION ALLOWANCES,PAYMENTS TO CARERS,REDACTED,REDACTED
07.10.2020,CHILDREN AND FAMILIES,REDACTED PERSONAL DATA,252.90,ADOPTION ALLOWANCES,PAYMENTS TO CARERS,REDACTED,REDACTED
07.10.2020,CHILDREN AND FAMILIES,REDACTED PERSONAL DATA,253.56,ADOPTION ALLOWANCES,PAYMENTS TO CARERS,REDACTED,REDACTED
07.10.2020,CHILDREN AND FAMILIES,REDACTED PERSONAL DATA,382.30,ADOPTION ALLOWANCES,PAYMENTS TO CARERS,REDACTED,REDACTED
07.10.2020,CHILDREN AND FAMILIES,REDACTED PERSONAL DATA,382.30,ADOPTION ALLOWANCES,PAYMENTS TO CARERS,REDACTED,REDACTED
07.10.2020,CHILDREN AND FAMILIES,REDACTED PERSONAL DATA,351.42,ADOPTION ALLOWANCES,PAYMENTS TO CARERS,REDACTED,REDACTED
07.10.2020,CHILDREN AND FAMILIES,REDACTED PERSONAL DATA,484.92,ADOPTION ALLOWANCES,PAYMENTS TO CARERS,REDACTED,REDACTED
07.10.2020,CHILDREN AND FAMILIES,REDACTED PERSONAL DATA,530.00,ADOPTION ALLOWANCES,PAYMENTS TO CARERS,REDACTED,REDACTED
07.10.2020,CHILDREN AND FAMILIES,REDACTED PERSONAL DATA,908.00,ADOPTION ALLOWANCES,PAYMENTS TO CARERS,REDACTED,REDACTED
07.10.2020,CHILDREN AND FAMILIES,REDACTED PERSONAL DATA,738.32,ADOPTION ALLOWANCES,PAYMENTS TO CARERS,REDACTED,REDACTED
07.10.2020,CHILDREN AND FAMILIES,REDACTED PERSONAL DATA,695.12,ADOPTION ALLOWANCES,PAYMENTS TO CARERS,REDACTED,REDACTED
07.10.2020,CHILDREN AND FAMILIES,REDACTED PERSONAL DATA,293.98,ADOPTION ALLOWANCES,PAYMENTS TO CARERS,REDACTED,REDACTED
07.10.2020,CHILDREN AND FAMILIES,REDACTED PERSONAL DATA,251.94,ADOPTION ALLOWANCES,PAYMENTS TO CARERS,REDACTED,REDACTED
07.10.2020,CHILDREN AND FAMILIES,REDACTED PERSONAL DATA,652.90,ADOPTION ALLOWANCES,PAYMENTS TO CARERS,REDACTED,REDACTED
07.10.2020,CHILDREN AND FAMILIES,REDACTED PERSONAL DATA,652.90,ADOPTION ALLOWANCES,PAYMENTS TO CARERS,REDACTED,REDACTED
07.10.2020,CHILDREN AND FAMILIES,REDACTED PERSONAL DATA,712.30,ADOPTION ALLOWANCES,PAYMENTS TO CARERS,REDACTED,REDACTED
07.10.2020,CHILDREN AND FAMILIES,REDACTED PERSONAL DATA,767.68,ADOPTION ALLOWANCES,PAYMENTS TO CARERS,REDACTED,REDACTED
07.10.2020,CHILDREN AND FAMILIES,REDACTED PERSONAL DATA,510.96,ADOPTION ALLOWANCES,PAYMENTS TO CARERS,REDACTED,REDACTED
07.10.2020,CHILDREN AND FAMILIES,REDACTED PERSONAL DATA,682.30,ADOPTION ALLOWANCES,PAYMENTS TO CARERS,REDACTED,REDACTED
07.10.2020,CHILDREN AND FAMILIES,REDACTED PERSONAL DATA,682.30,ADOPTION ALLOWANCES,PAYMENTS TO CARERS,REDACTED,REDACTED
07.10.2020,CHILDREN AND FAMILIES,REDACTED PERSONAL DATA,588.42,ADOPTION ALLOWANCES,PAYMENTS TO CARERS,REDACTED,REDACTED
07.10.2020,CHILDREN AND FAMILIES,REDACTED PERSONAL DATA,"1,053.20",ADOPTION ALLOWANCES,PAYMENTS TO CARERS,REDACTED,REDACTED
07.10.2020,CHILDREN AND FAMILIES,REDACTED PERSONAL DATA,"1,160.00",ADOPTION ALLOWANCES,PAYMENTS TO CARERS,REDACTED,REDACTED
07.10.2020,CHILDREN AND FAMILIES,REDACTED PERSONAL DATA,386.00,ADOPTION ALLOWANCES,PAYMENTS TO CARERS,REDACTED,REDACTED
07.10.2020,CHILDREN AND FAMILIES,REDACTED PERSONAL DATA,618.60,ADOPTION ALLOWANCES,PAYMENTS TO CARERS,REDACTED,REDACTED
07.10.2020,CHILDREN AND FAMILIES,REDACTED PERSONAL DATA,660.00,ADOPTION ALLOWANCES,PAYMENTS TO CARERS,REDACTED,REDACTED
07.10.2020,CHILDREN AND FAMILIES,REDACTED PERSONAL DATA,"3,531.43",ADOPTION ALLOWANCES,PAYMENTS TO CARERS,REDACTED,REDACTED
07.10.2020,CHILDREN AND FAMILIES,REDACTED PERSONAL DATA,756.00,DISABILITY & HIV,PAYMENTS TO CARERS,REDACTED,REDACTED
07.10.2020,CHILDREN AND FAMILIES,REDACTED PERSONAL DATA,-366.86,DISABILITY & HIV,PAYMENTS TO CARERS,REDACTED,REDACTED
07.10.2020,CHILDREN AND FAMILIES,REDACTED PERSONAL DATA,854.00,DISABILITY & HIV,PAYMENTS TO CARERS,REDACTED,REDACTED
07.10.2020,CHILDREN AND FAMILIES,REDACTED PERSONAL DATA,946.00,DISABILITY & HIV,PAYMENTS TO CARERS,REDACTED,REDACTED
07.10.2020,CHILDREN AND FAMILIES,REDACTED PERSONAL DATA,822.00,DISABILITY & HIV,PAYMENTS TO CARERS,REDACTED,REDACTED
07.10.2020,CHILDREN AND FAMILIES,REDACTED PERSONAL DATA,854.00,DISABILITY & HIV,PAYMENTS TO CARERS,REDACTED,REDACTED
07.10.2020,CHILDREN AND FAMILIES,REDACTED PERSONAL DATA,854.00,DISABILITY & HIV,PAYMENTS TO CARERS,REDACTED,REDACTED
07.10.2020,CHILDREN AND FAMILIES,REDACTED PERSONAL DATA,946.00,DISABILITY & HIV,PAYMENTS TO CARERS,REDACTED,REDACTED
07.10.2020,CHILDREN AND FAMILIES,REDACTED PERSONAL DATA,"1,054.00",DISABILITY & HIV,PAYMENTS TO CARERS,REDACTED,REDACTED
07.10.2020,CHILDREN AND FAMILIES,REDACTED PERSONAL DATA,856.00,DISABILITY & HIV,PAYMENTS TO CARERS,REDACTED,REDACTED
07.10.2020,CHILDREN AND FAMILIES,REDACTED PERSONAL DATA,856.00,DISABILITY & HIV,PAYMENTS TO CARERS,REDACTED,REDACTED
07.10.2020,CHILDREN AND FAMILIES,REDACTED PERSONAL DATA,888.00,DISABILITY & HIV,PAYMENTS TO CARERS,REDACTED,REDACTED
07.10.2020,CHILDREN AND FAMILIES,REDACTED PERSONAL DATA,"1,700.00",DISABILITY & HIV,PAYMENTS TO CARERS,REDACTED,REDACTED
07.10.2020,CHILDREN AND FAMILIES,REDACTED PERSONAL DATA,854.00,DISABILITY & HIV,PAYMENTS TO CARERS,REDACTED,REDACTED
07.10.2020,CHILDREN AND FAMILIES,REDACTED PERSONAL DATA,854.00,DISABILITY & HIV,PAYMENTS TO CARERS,REDACTED,REDACTED
07.10.2020,CHILDREN AND FAMILIES,REDACTED PERSONAL DATA,888.00,DISABILITY & HIV,PAYMENTS TO CARERS,REDACTED,REDACTED
07.10.2020,CHILDREN AND FAMILIES,REDACTED PERSONAL DATA,924.20,DISABILITY & HIV,PAYMENTS TO CARERS,REDACTED,REDACTED
07.10.2020,CHILDREN AND FAMILIES,REDACTED PERSONAL DATA,712.30,DISABILITY & HIV,PAYMENTS TO CARERS,REDACTED,REDACTED
07.10.2020,CHILDREN AND FAMILIES,REDACTED PERSONAL DATA,822.00,DISABILITY & HIV,PAYMENTS TO CARERS,REDACTED,REDACTED
07.10.2020,CHILDREN AND FAMILIES,REDACTED PERSONAL DATA,824.00,DISABILITY & HIV,PAYMENTS TO CARERS,REDACTED,REDACTED
07.10.2020,CHILDREN AND FAMILIES,REDACTED PERSONAL DATA,756.00,DISABILITY & HIV,PAYMENTS TO CARERS,REDACTED,REDACTED
07.10.2020,CHILDREN AND FAMILIES,REDACTED PERSONAL DATA,756.00,DISABILITY & HIV,PAYMENTS TO CARERS,REDACTED,REDACTED
07.10.2020,CHILDREN AND FAMILIES,REDACTED PERSONAL DATA,854.00,DISABILITY & HIV,PAYMENTS TO CARERS,REDACTED,REDACTED
07.10.2020,CHILDREN AND FAMILIES,REDACTED PERSONAL DATA,854.00,DISABILITY & HIV,PAYMENTS TO CARERS,REDACTED,REDACTED
07.10.2020,CHILDREN AND FAMILIES,REDACTED PERSONAL DATA,856.00,DISABILITY & HIV,PAYMENTS TO CARERS,REDACTED,REDACTED
07.10.2020,CHILDREN AND FAMILIES,REDACTED PERSONAL DATA,946.00,DISABILITY & HIV,PAYMENTS TO CARERS,REDACTED,REDACTED
07.10.2020,CHILDREN AND FAMILIES,REDACTED PERSONAL DATA,854.00,DISABILITY & HIV,PAYMENTS TO CARERS,REDACTED,REDACTED
07.10.2020,CHILDREN AND FAMILIES,REDACTED PERSONAL DATA,856.00,DISABILITY & HIV,PAYMENTS TO CARERS,REDACTED,REDACTED
07.10.2020,CHILDREN AND FAMILIES,REDACTED PERSONAL DATA,854.00,DISABILITY & HIV,PAYMENTS TO CARERS,REDACTED,REDACTED
07.10.2020,CHILDREN AND FAMILIES,REDACTED PERSONAL DATA,946.00,DISABILITY & HIV,PAYMENTS TO CARERS,REDACTED,REDACTED
07.10.2020,CHILDREN AND FAMILIES,REDACTED PERSONAL DATA,856.00,DISABILITY & HIV,PAYMENTS TO CARERS,REDACTED,REDACTED
07.10.2020,CHILDREN AND FAMILIES,REDACTED PERSONAL DATA,856.00,DISABILITY & HIV,PAYMENTS TO CARERS,REDACTED,REDACTED
07.10.2020,CHILDREN AND FAMILIES,REDACTED PERSONAL DATA,856.00,DISABILITY & HIV,PAYMENTS TO CARERS,REDACTED,REDACTED
07.10.2020,CHILDREN AND FAMILIES,REDACTED PERSONAL DATA,854.00,DISABILITY & HIV,PAYMENTS TO CARERS,REDACTED,REDACTED
07.10.2020,CHILDREN AND FAMILIES,REDACTED PERSONAL DATA,854.00,DISABILITY & HIV,PAYMENTS TO CARERS,REDACTED,REDACTED
07.10.2020,CHILDREN AND FAMILIES,REDACTED PERSONAL DATA,946.00,DISABILITY & HIV,PAYMENTS TO CARERS,REDACTED,REDACTED
07.10.2020,CHILDREN AND FAMILIES,REDACTED PERSONAL DATA,946.00,DISABILITY & HIV,PAYMENTS TO CARERS,REDACTED,REDACTED
07.10.2020,CHILDREN AND FAMILIES,REDACTED PERSONAL DATA,"1,024.00",DISABILITY & HIV,PAYMENTS TO CARERS,REDACTED,REDACTED
07.10.2020,CHILDREN AND FAMILIES,REDACTED PERSONAL DATA,856.00,DISABILITY & HIV,PAYMENTS TO CARERS,REDACTED,REDACTED
07.10.2020,CHILDREN AND FAMILIES,REDACTED PERSONAL DATA,"2,972.57",DISABILITY & HIV,PAYMENTS TO CARERS,REDACTED,REDACTED
07.10.2020,CHILDREN AND FAMILIES,REDACTED PERSONAL DATA,856.00,DISABILITY & HIV,PAYMENTS TO CARERS,REDACTED,REDACTED
07.10.2020,CHILDREN AND FAMILIES,REDACTED PERSONAL DATA,460.00,DISABILITY & HIV,PAYMENTS TO CARERS,REDACTED,REDACTED
07.10.2020,CHILDREN AND FAMILIES,REDACTED PERSONAL DATA,660.00,DISABILITY & HIV,PAYMENTS TO CARERS,REDACTED,REDACTED
07.10.2020,CHILDREN AND FAMILIES,REDACTED PERSONAL DATA,854.00,DISABILITY & HIV,PAYMENTS TO CARERS,REDACTED,REDACTED
07.10.2020,CHILDREN AND FAMILIES,REDACTED PERSONAL DATA,854.00,DISABILITY & HIV,PAYMENTS TO CARERS,REDACTED,REDACTED
07.10.2020,CHILDREN AND FAMILIES,REDACTED PERSONAL DATA,856.00,DISABILITY & HIV,PAYMENTS TO CARERS,REDACTED,REDACTED
07.10.2020,CHILDREN AND FAMILIES,REDACTED PERSONAL DATA,946.00,DISABILITY & HIV,PAYMENTS TO CARERS,REDACTED,REDACTED
07.10.2020,CHILDREN AND FAMILIES,REDACTED PERSONAL DATA,706.00,DISABILITY & HIV,PAYMENTS TO CARERS,REDACTED,REDACTED
07.10.2020,CHILDREN AND FAMILIES,REDACTED PERSONAL DATA,"1,632.00",DISABILITY & HIV,PAYMENTS TO CARERS,REDACTED,REDACTED
07.10.2020,CHILDREN AND FAMILIES,REDACTED PERSONAL DATA,"1,632.00",DISABILITY & HIV,PAYMENTS TO CARERS,REDACTED,REDACTED
07.10.2020,CHILDREN AND FAMILIES,REDACTED PERSONAL DATA,632.86,DISABILITY & HIV,PAYMENTS TO CARERS,REDACTED,REDACTED
07.10.2020,CHILDREN AND FAMILIES,REDACTED PERSONAL DATA,886.00,DISABILITY & HIV,PAYMENTS TO CARERS,REDACTED,REDACTED
07.10.2020,CHILDREN AND FAMILIES,REDACTED PERSONAL DATA,946.00,DISABILITY & HIV,PAYMENTS TO CARERS,REDACTED,REDACTED
07.10.2020,CHILDREN AND FAMILIES,REDACTED PERSONAL DATA,756.00,DISABILITY & HIV,PAYMENTS TO CARERS,REDACTED,REDACTED
07.10.2020,CHILDREN AND FAMILIES,REDACTED PERSONAL DATA,-424.89,DISABILITY & HIV,PAYMENTS TO CARERS,REDACTED,REDACTED
07.10.2020,CHILDREN AND FAMILIES,REDACTED PERSONAL DATA,435.42,DISABILITY & HIV,PAYMENTS TO CARERS,REDACTED,REDACTED
07.10.2020,CHILDREN AND FAMILIES,REDACTED PERSONAL DATA,"1,094.60",DISABILITY & HIV,PAYMENTS TO CARERS,REDACTED,REDACTED
07.10.2020,CHILDREN AND FAMILIES,REDACTED PERSONAL DATA,824.00,DISABILITY & HIV,PAYMENTS TO CARERS,REDACTED,REDACTED
07.10.2020,CHILDREN AND FAMILIES,REDACTED PERSONAL DATA,886.86,DISABILITY & HIV,PAYMENTS TO CARERS,REDACTED,REDACTED
07.10.2020,CHILDREN AND FAMILIES,REDACTED PERSONAL DATA,706.00,DISABILITY & HIV,PAYMENTS TO CARERS,REDACTED,REDACTED
07.10.2020,CHILDREN AND FAMILIES,REDACTED PERSONAL DATA,854.00,DISABILITY & HIV,PAYMENTS TO CARERS,REDACTED,REDACTED
07.10.2020,CHILDREN AND FAMILIES,REDACTED PERSONAL DATA,854.00,DISABILITY & HIV,PAYMENTS TO CARERS,REDACTED,REDACTED
07.10.2020,CHILDREN AND FAMILIES,REDACTED PERSONAL DATA,756.00,DISABILITY & HIV,PAYMENTS TO CARERS,REDACTED,REDACTED
07.10.2020,CHILDREN AND FAMILIES,REDACTED PERSONAL DATA,756.00,DISABILITY & HIV,PAYMENTS TO CARERS,REDACTED,REDACTED
07.10.2020,CHILDREN AND FAMILIES,REDACTED PERSONAL DATA,854.00,DISABILITY & HIV,PAYMENTS TO CARERS,REDACTED,REDACTED
07.10.2020,CHILDREN AND FAMILIES,REDACTED PERSONAL DATA,854.00,DISABILITY & HIV,PAYMENTS TO CARERS,REDACTED,REDACTED
07.10.2020,CHILDREN AND FAMILIES,REDACTED PERSONAL DATA,946.00,DISABILITY & HIV,PAYMENTS TO CARERS,REDACTED,REDACTED
07.10.2020,CHILDREN AND FAMILIES,REDACTED PERSONAL DATA,706.00,DISABILITY & HIV,PAYMENTS TO CARERS,REDACTED,REDACTED
07.10.2020,CHILDREN AND FAMILIES,REDACTED PERSONAL DATA,888.00,DISABILITY & HIV,PAYMENTS TO CARERS,REDACTED,REDACTED
07.10.2020,CHILDREN AND FAMILIES,REDACTED PERSONAL DATA,"1,632.00",DISABILITY & HIV,PAYMENTS TO CARERS,REDACTED,REDACTED
07.10.2020,CHILDREN AND FAMILIES,REDACTED PERSONAL DATA,854.00,DISABILITY & HIV,PAYMENTS TO CARERS,REDACTED,REDACTED
07.10.2020,CHILDREN AND FAMILIES,REDACTED PERSONAL DATA,854.00,DISABILITY & HIV,PAYMENTS TO CARERS,REDACTED,REDACTED
07.10.2020,CHILDREN AND FAMILIES,REDACTED PERSONAL DATA,946.00,DISABILITY & HIV,PAYMENTS TO CARERS,REDACTED,REDACTED
07.10.2020,CHILDREN AND FAMILIES,REDACTED PERSONAL DATA,854.00,DISABILITY & HIV,PAYMENTS TO CARERS,REDACTED,REDACTED
07.10.2020,CHILDREN AND FAMILIES,REDACTED PERSONAL DATA,856.00,DISABILITY & HIV,PAYMENTS TO CARERS,REDACTED,REDACTED
07.10.2020,CHILDREN AND FAMILIES,REDACTED PERSONAL DATA,856.00,DISABILITY & HIV,PAYMENTS TO CARERS,REDACTED,REDACTED
07.10.2020,CHILDREN AND FAMILIES,REDACTED PERSONAL DATA,706.00,DISABILITY & HIV,PAYMENTS TO CARERS,REDACTED,REDACTED
07.10.2020,CHILDREN AND FAMILIES,REDACTED PERSONAL DATA,854.00,DISABILITY & HIV,PAYMENTS TO CARERS,REDACTED,REDACTED
07.10.2020,CHILDREN AND FAMILIES,REDACTED PERSONAL DATA,854.00,DISABILITY & HIV,PAYMENTS TO CARERS,REDACTED,REDACTED
07.10.2020,CHILDREN AND FAMILIES,REDACTED PERSONAL DATA,854.00,DISABILITY & HIV,PAYMENTS TO CARERS,REDACTED,REDACTED
07.10.2020,CHILDREN AND FAMILIES,REDACTED PERSONAL DATA,706.00,DISABILITY & HIV,PAYMENTS TO CARERS,REDACTED,REDACTED
07.10.2020,CHILDREN AND FAMILIES,REDACTED PERSONAL DATA,854.00,DISABILITY & HIV,PAYMENTS TO CARERS,REDACTED,REDACTED
07.10.2020,CHILDREN AND FAMILIES,REDACTED PERSONAL DATA,854.00,DISABILITY & HIV,PAYMENTS TO CARERS,REDACTED,REDACTED
07.10.2020,CHILDREN AND FAMILIES,REDACTED PERSONAL DATA,854.00,DISABILITY & HIV,PAYMENTS TO CARERS,REDACTED,REDACTED
07.10.2020,CHILDREN AND FAMILIES,REDACTED PERSONAL DATA,856.00,DISABILITY & HIV,PAYMENTS TO CARERS,REDACTED,REDACTED
07.10.2020,CHILDREN AND FAMILIES,REDACTED PERSONAL DATA,854.00,DISABILITY & HIV,PAYMENTS TO CARERS,REDACTED,REDACTED
07.10.2020,CHILDREN AND FAMILIES,REDACTED PERSONAL DATA,856.00,DISABILITY & HIV,PAYMENTS TO CARERS,REDACTED,REDACTED
07.10.2020,CHILDREN AND FAMILIES,REDACTED PERSONAL DATA,856.00,DISABILITY & HIV,PAYMENTS TO CARERS,REDACTED,REDACTED
07.10.2020,CHILDREN AND FAMILIES,REDACTED PERSONAL DATA,854.00,DISABILITY & HIV,PAYMENTS TO CARERS,REDACTED,REDACTED
07.10.2020,CHILDREN AND FAMILIES,REDACTED PERSONAL DATA,856.00,DISABILITY & HIV,PAYMENTS TO CARERS,REDACTED,REDACTED
07.10.2020,CHILDREN AND FAMILIES,REDACTED PERSONAL DATA,706.00,DISABILITY & HIV,PAYMENTS TO CARERS,REDACTED,REDACTED
07.10.2020,CHILDREN AND FAMILIES,REDACTED PERSONAL DATA,706.00,DISABILITY & HIV,PAYMENTS TO CARERS,REDACTED,REDACTED
07.10.2020,CHILDREN AND FAMILIES,REDACTED PERSONAL DATA,824.00,DISABILITY & HIV,PAYMENTS TO CARERS,REDACTED,REDACTED
07.10.2020,CHILDREN AND FAMILIES,REDACTED PERSONAL DATA,854.00,DISABILITY & HIV,PAYMENTS TO CARERS,REDACTED,REDACTED
07.10.2020,CHILDREN AND FAMILIES,REDACTED PERSONAL DATA,854.00,DISABILITY & HIV,PAYMENTS TO CARERS,REDACTED,REDACTED
07.10.2020,CHILDREN AND FAMILIES,REDACTED PERSONAL DATA,856.00,DISABILITY & HIV,PAYMENTS TO CARERS,REDACTED,REDACTED
07.10.2020,CHILDREN AND FAMILIES,REDACTED PERSONAL DATA,300.00,DISABILITY & HIV,ADDITIONAL PAYMENTS TO AGENCIES/CARERS,REDACTED,REDACTED
07.10.2020,CHILDREN AND FAMILIES,REDACTED PERSONAL DATA,"-1,159.00",DISABILITY & HIV,PAYMENTS TO CARERS,REDACTED,REDACTED
07.10.2020,CHILDREN AND FAMILIES,REDACTED PERSONAL DATA,300.00,DISABILITY & HIV,PAYMENTS TO CARERS,REDACTED,REDACTED
07.10.2020,CHILDREN AND FAMILIES,REDACTED PERSONAL DATA,854.00,DISABILITY & HIV,PAYMENTS TO CARERS,REDACTED,REDACTED
07.10.2020,CHILDREN AND FAMILIES,REDACTED PERSONAL DATA,"2,484.00",DISABILITY & HIV,PAYMENTS TO CARERS,REDACTED,REDACTED
07.10.2020,CHILDREN AND FAMILIES,REDACTED PERSONAL DATA,"3,106.00",DISABILITY & HIV,PAYMENTS TO CARERS,REDACTED,REDACTED
07.10.2020,CHILDREN AND FAMILIES,REDACTED PERSONAL DATA,676.00,DISABILITY & HIV,PAYMENTS TO CARERS,REDACTED,REDACTED
07.10.2020,CHILDREN AND FAMILIES,REDACTED PERSONAL DATA,726.00,DISABILITY & HIV,PAYMENTS TO CARERS,REDACTED,REDACTED
07.10.2020,CHILDREN AND FAMILIES,REDACTED PERSONAL DATA,854.00,DISABILITY & HIV,PAYMENTS TO CARERS,REDACTED,REDACTED
07.10.2020,CHILDREN AND FAMILIES,REDACTED PERSONAL DATA,854.00,DISABILITY & HIV,PAYMENTS TO CARERS,REDACTED,REDACTED
07.10.2020,CHILDREN AND FAMILIES,REDACTED PERSONAL DATA,"1,454.00",DISABILITY & HIV,PAYMENTS TO CARERS,REDACTED,REDACTED
07.10.2020,CHILDREN AND FAMILIES,REDACTED PERSONAL DATA,822.00,DISABILITY & HIV,PAYMENTS TO CARERS,REDACTED,REDACTED
07.10.2020,CHILDREN AND FAMILIES,REDACTED PERSONAL DATA,854.00,DISABILITY & HIV,PAYMENTS TO CARERS,REDACTED,REDACTED
07.10.2020,CHILDREN AND FAMILIES,REDACTED PERSONAL DATA,-529.71,DISABILITY & HIV,PAYMENTS TO CARERS,REDACTED,REDACTED
07.10.2020,CHILDREN AND FAMILIES,REDACTED PERSONAL DATA,"1,412.57",DISABILITY & HIV,PAYMENTS TO CARERS,REDACTED,REDACTED
07.10.2020,CHILDREN AND FAMILIES,REDACTED PERSONAL DATA,706.00,DISABILITY & HIV,PAYMENTS TO CARERS,REDACTED,REDACTED
07.10.2020,CHILDREN AND FAMILIES,REDACTED PERSONAL DATA,756.00,DISABILITY & HIV,PAYMENTS TO CARERS,REDACTED,REDACTED
07.10.2020,CHILDREN AND FAMILIES,REDACTED PERSONAL DATA,854.00,DISABILITY & HIV,PAYMENTS TO CARERS,REDACTED,REDACTED
07.10.2020,CHILDREN AND FAMILIES,REDACTED PERSONAL DATA,706.00,DISABILITY & HIV,PAYMENTS TO CARERS,REDACTED,REDACTED
07.10.2020,CHILDREN AND FAMILIES,REDACTED PERSONAL DATA,854.00,DISABILITY & HIV,PAYMENTS TO CARERS,REDACTED,REDACTED
07.10.2020,CHILDREN AND FAMILIES,REDACTED PERSONAL DATA,854.00,DISABILITY & HIV,PAYMENTS TO CARERS,REDACTED,REDACTED
07.10.2020,CHILDREN AND FAMILIES,REDACTED PERSONAL DATA,824.00,DISABILITY & HIV,PAYMENTS TO CARERS,REDACTED,REDACTED
07.10.2020,CHILDREN AND FAMILIES,REDACTED PERSONAL DATA,756.00,DISABILITY & HIV,PAYMENTS TO CARERS,REDACTED,REDACTED
07.10.2020,CHILDREN AND FAMILIES,REDACTED PERSONAL DATA,854.00,DISABILITY & HIV,PAYMENTS TO CARERS,REDACTED,REDACTED
07.10.2020,CHILDREN AND FAMILIES,REDACTED PERSONAL DATA,854.00,DISABILITY & HIV,PAYMENTS TO CARERS,REDACTED,REDACTED
07.10.2020,CHILDREN AND FAMILIES,REDACTED PERSONAL DATA,824.00,DISABILITY & HIV,PAYMENTS TO CARERS,REDACTED,REDACTED
07.10.2020,CHILDREN AND FAMILIES,REDACTED PERSONAL DATA,824.00,DISABILITY & HIV,PAYMENTS TO CARERS,REDACTED,REDACTED
07.10.2020,CHILDREN AND FAMILIES,REDACTED PERSONAL DATA,824.00,DISABILITY & HIV,PAYMENTS TO CARERS,REDACTED,REDACTED
07.10.2020,CHILDREN AND FAMILIES,REDACTED PERSONAL DATA,726.00,DISABILITY & HIV,PAYMENTS TO CARERS,REDACTED,REDACTED
07.10.2020,CHILDREN AND FAMILIES,REDACTED PERSONAL DATA,-371.43,DISABILITY & HIV,PAYMENTS TO CARERS,REDACTED,REDACTED
07.10.2020,CHILDREN AND FAMILIES,REDACTED PERSONAL DATA,856.00,DISABILITY & HIV,PAYMENTS TO CARERS,REDACTED,REDACTED
07.10.2020,CHILDREN AND FAMILIES,REDACTED PERSONAL DATA,946.00,DISABILITY & HIV,PAYMENTS TO CARERS,REDACTED,REDACTED
07.10.2020,CHILDREN AND FAMILIES,REDACTED PERSONAL DATA,726.00,DISABILITY & HIV,PAYMENTS TO CARERS,REDACTED,REDACTED
07.10.2020,CHILDREN AND FAMILIES,REDACTED PERSONAL DATA,726.00,DISABILITY & HIV,PAYMENTS TO CARERS,REDACTED,REDACTED
07.10.2020,CHILDREN AND FAMILIES,REDACTED PERSONAL DATA,776.08,DISABILITY & HIV,PAYMENTS TO CARERS,REDACTED,REDACTED
07.10.2020,CHILDREN AND FAMILIES,REDACTED PERSONAL DATA,856.00,DISABILITY & HIV,PAYMENTS TO CARERS,REDACTED,REDACTED
07.10.2020,CHILDREN AND FAMILIES,REDACTED PERSONAL DATA,946.00,DISABILITY & HIV,PAYMENTS TO CARERS,REDACTED,REDACTED
07.10.2020,CHILDREN AND FAMILIES,REDACTED PERSONAL DATA,706.00,DISABILITY & HIV,PAYMENTS TO CARERS,REDACTED,REDACTED
07.10.2020,CHILDREN AND FAMILIES,REDACTED PERSONAL DATA,706.00,DISABILITY & HIV,PAYMENTS TO CARERS,REDACTED,REDACTED
07.10.2020,CHILDREN AND FAMILIES,REDACTED PERSONAL DATA,756.00,DISABILITY & HIV,PAYMENTS TO CARERS,REDACTED,REDACTED
07.10.2020,CHILDREN AND FAMILIES,REDACTED PERSONAL DATA,706.00,DISABILITY & HIV,PAYMENTS TO CARERS,REDACTED,REDACTED
07.10.2020,CHILDREN AND FAMILIES,REDACTED PERSONAL DATA,822.00,DISABILITY & HIV,PAYMENTS TO CARERS,REDACTED,REDACTED
07.10.2020,CHILDREN AND FAMILIES,REDACTED PERSONAL DATA,854.00,DISABILITY & HIV,PAYMENTS TO CARERS,REDACTED,REDACTED
07.10.2020,CHILDREN AND FAMILIES,REDACTED PERSONAL DATA,822.00,DISABILITY & HIV,PAYMENTS TO CARERS,REDACTED,REDACTED
07.10.2020,CHILDREN AND FAMILIES,REDACTED PERSONAL DATA,"1,016.00",DISABILITY & HIV,PAYMENTS TO CARERS,REDACTED,REDACTED
07.10.2020,CHILDREN AND FAMILIES,REDACTED PERSONAL DATA,-311.14,DISABILITY & HIV,PAYMENTS TO CARERS,REDACTED,REDACTED
07.10.2020,CHILDREN AND FAMILIES,REDACTED PERSONAL DATA,"1,600.00",DISABILITY & HIV,PAYMENTS TO CARERS,REDACTED,REDACTED
07.10.2020,CHILDREN AND FAMILIES,REDACTED PERSONAL DATA,856.00,DISABILITY & HIV,PAYMENTS TO CARERS,REDACTED,REDACTED
07.10.2020,CHILDREN AND FAMILIES,REDACTED PERSONAL DATA,756.00,DISABILITY & HIV,PAYMENTS TO CARERS,REDACTED,REDACTED
07.10.2020,CHILDREN AND FAMILIES,REDACTED PERSONAL DATA,756.00,DISABILITY & HIV,PAYMENTS TO CARERS,REDACTED,REDACTED
07.10.2020,CHILDREN AND FAMILIES,REDACTED PERSONAL DATA,"1,400.14",DISABILITY & HIV,PAYMENTS TO CARERS,REDACTED,REDACTED
07.10.2020,CHILDREN AND FAMILIES,REDACTED PERSONAL DATA,726.00,DISABILITY & HIV,PAYMENTS TO CARERS,REDACTED,REDACTED
07.10.2020,CHILDREN AND FAMILIES,REDACTED PERSONAL DATA,856.00,DISABILITY & HIV,PAYMENTS TO CARERS,REDACTED,REDACTED
07.10.2020,CHILDREN AND FAMILIES,REDACTED PERSONAL DATA,856.00,DISABILITY & HIV,PAYMENTS TO CARERS,REDACTED,REDACTED
07.10.2020,CHILDREN AND FAMILIES,REDACTED PERSONAL DATA,824.00,DISABILITY & HIV,PAYMENTS TO CARERS,REDACTED,REDACTED
07.10.2020,CHILDREN AND FAMILIES,REDACTED PERSONAL DATA,824.00,DISABILITY & HIV,PAYMENTS TO CARERS,REDACTED,REDACTED
07.10.2020,CHILDREN AND FAMILIES,REDACTED PERSONAL DATA,822.00,DISABILITY & HIV,PAYMENTS TO CARERS,REDACTED,REDACTED
07.10.2020,CHILDREN AND FAMILIES,REDACTED PERSONAL DATA,726.00,DISABILITY & HIV,PAYMENTS TO CARERS,REDACTED,REDACTED
07.10.2020,CHILDREN AND FAMILIES,REDACTED PERSONAL DATA,824.00,DISABILITY & HIV,PAYMENTS TO CARERS,REDACTED,REDACTED
07.10.2020,CHILDREN AND FAMILIES,REDACTED PERSONAL DATA,676.00,DISABILITY & HIV,PAYMENTS TO CARERS,REDACTED,REDACTED
07.10.2020,CHILDREN AND FAMILIES,REDACTED PERSONAL DATA,300.00,FE SUPPORT,CLIENT TRANSPORT,REDACTED,REDACTED
07.10.2020,CHILDREN AND FAMILIES,REDACTED PERSONAL DATA,300.00,FE SUPPORT,CLIENT TRANSPORT,REDACTED,REDACTED
07.10.2020,CHILDREN AND FAMILIES,REDACTED PERSONAL DATA,300.00,FE SUPPORT,CLIENT TRANSPORT,REDACTED,REDACTED
07.10.2020,CHILDREN AND FAMILIES,REDACTED PERSONAL DATA,300.00,FE SUPPORT,CLIENT TRANSPORT,REDACTED,REDACTED
07.10.2020,CHILDREN AND FAMILIES,REDACTED PERSONAL DATA,300.00,FE SUPPORT,CLIENT TRANSPORT,REDACTED,REDACTED
07.10.2020,CHILDREN AND FAMILIES,REDACTED PERSONAL DATA,912.00,FRIENDS &FAMILY FOST,PAYMENTS TO CARERS,REDACTED,REDACTED
07.10.2020,CHILDREN AND FAMILIES,REDACTED PERSONAL DATA,348.00,FRIENDS &FAMILY FOST,PAYMENTS TO CARERS,REDACTED,REDACTED
07.10.2020,CHILDREN AND FAMILIES,REDACTED PERSONAL DATA,394.00,FRIENDS &FAMILY FOST,PAYMENTS TO CARERS,REDACTED,REDACTED
07.10.2020,CHILDREN AND FAMILIES,REDACTED PERSONAL DATA,476.08,FRIENDS &FAMILY FOST,PAYMENTS TO CARERS,REDACTED,REDACTED
07.10.2020,CHILDREN AND FAMILIES,REDACTED PERSONAL DATA,366.00,FRIENDS &FAMILY FOST,PAYMENTS TO CARERS,REDACTED,REDACTED
07.10.2020,CHILDREN AND FAMILIES,REDACTED PERSONAL DATA,900.00,FRIENDS &FAMILY FOST,PAYMENTS TO CARERS,REDACTED,REDACTED
07.10.2020,CHILDREN AND FAMILIES,REDACTED PERSONAL DATA,824.00,FRIENDS &FAMILY FOST,PAYMENTS TO CARERS,REDACTED,REDACTED
07.10.2020,CHILDREN AND FAMILIES,REDACTED PERSONAL DATA,824.00,FRIENDS &FAMILY FOST,PAYMENTS TO CARERS,REDACTED,REDACTED
07.10.2020,CHILDREN AND FAMILIES,REDACTED PERSONAL DATA,822.00,FRIENDS &FAMILY FOST,PAYMENTS TO CARERS,REDACTED,REDACTED
07.10.2020,CHILDREN AND FAMILIES,REDACTED PERSONAL DATA,716.00,FRIENDS &FAMILY FOST,PAYMENTS TO CARERS,REDACTED,REDACTED
07.10.2020,CHILDREN AND FAMILIES,REDACTED PERSONAL DATA,824.00,FRIENDS &FAMILY FOST,PAYMENTS TO CARERS,REDACTED,REDACTED
07.10.2020,CHILDREN AND FAMILIES,REDACTED PERSONAL DATA,824.00,FRIENDS &FAMILY FOST,PAYMENTS TO CARERS,REDACTED,REDACTED
07.10.2020,CHILDREN AND FAMILIES,REDACTED PERSONAL DATA,824.00,FRIENDS &FAMILY FOST,PAYMENTS TO CARERS,REDACTED,REDACTED
07.10.2020,CHILDREN AND FAMILIES,REDACTED PERSONAL DATA,716.00,FRIENDS &FAMILY FOST,PAYMENTS TO CARERS,REDACTED,REDACTED
07.10.2020,CHILDREN AND FAMILIES,REDACTED PERSONAL DATA,824.00,FRIENDS &FAMILY FOST,PAYMENTS TO CARERS,REDACTED,REDACTED
07.10.2020,CHILDREN AND FAMILIES,REDACTED PERSONAL DATA,822.00,FRIENDS &FAMILY FOST,PAYMENTS TO CARERS,REDACTED,REDACTED
07.10.2020,CHILDREN AND FAMILIES,REDACTED PERSONAL DATA,854.00,FRIENDS &FAMILY FOST,PAYMENTS TO CARERS,REDACTED,REDACTED
07.10.2020,CHILDREN AND FAMILIES,REDACTED PERSONAL DATA,854.00,FRIENDS &FAMILY FOST,PAYMENTS TO CARERS,REDACTED,REDACTED
07.10.2020,CHILDREN AND FAMILIES,REDACTED PERSONAL DATA,726.00,FRIENDS &FAMILY FOST,PAYMENTS TO CARERS,REDACTED,REDACTED
07.10.2020,CHILDREN AND FAMILIES,REDACTED PERSONAL DATA,824.00,FRIENDS &FAMILY FOST,PAYMENTS TO CARERS,REDACTED,REDACTED
07.10.2020,CHILDREN AND FAMILIES,REDACTED PERSONAL DATA,394.00,FRIENDS &FAMILY FOST,PAYMENTS TO CARERS,REDACTED,REDACTED
07.10.2020,CHILDREN AND FAMILIES,REDACTED PERSONAL DATA,310.00,FRIENDS &FAMILY FOST,PAYMENTS TO CARERS,REDACTED,REDACTED
07.10.2020,CHILDREN AND FAMILIES,REDACTED PERSONAL DATA,394.00,FRIENDS &FAMILY FOST,PAYMENTS TO CARERS,REDACTED,REDACTED
07.10.2020,CHILDREN AND FAMILIES,REDACTED PERSONAL DATA,394.00,FRIENDS &FAMILY FOST,PAYMENTS TO CARERS,REDACTED,REDACTED
07.10.2020,CHILDREN AND FAMILIES,REDACTED PERSONAL DATA,462.00,FRIENDS &FAMILY FOST,PAYMENTS TO CARERS,REDACTED,REDACTED
07.10.2020,CHILDREN AND FAMILIES,REDACTED PERSONAL DATA,824.00,FRIENDS &FAMILY FOST,PAYMENTS TO CARERS,REDACTED,REDACTED
07.10.2020,CHILDREN AND FAMILIES,REDACTED PERSONAL DATA,726.00,FRIENDS &FAMILY FOST,PAYMENTS TO CARERS,REDACTED,REDACTED
07.10.2020,CHILDREN AND FAMILIES,REDACTED PERSONAL DATA,824.00,FRIENDS &FAMILY FOST,PAYMENTS TO CARERS,REDACTED,REDACTED
07.10.2020,CHILDREN AND FAMILIES,REDACTED PERSONAL DATA,726.00,FRIENDS &FAMILY FOST,PAYMENTS TO CARERS,REDACTED,REDACTED
07.10.2020,CHILDREN AND FAMILIES,REDACTED PERSONAL DATA,726.00,FRIENDS &FAMILY FOST,PAYMENTS TO CARERS,REDACTED,REDACTED
07.10.2020,CHILDREN AND FAMILIES,REDACTED PERSONAL DATA,824.00,FRIENDS &FAMILY FOST,PAYMENTS TO CARERS,REDACTED,REDACTED
07.10.2020,CHILDREN AND FAMILIES,REDACTED PERSONAL DATA,666.00,FRIENDS &FAMILY FOST,PAYMENTS TO CARERS,REDACTED,REDACTED
07.10.2020,CHILDREN AND FAMILIES,REDACTED PERSONAL DATA,462.00,FRIENDS &FAMILY FOST,PAYMENTS TO CARERS,REDACTED,REDACTED
07.10.2020,CHILDREN AND FAMILIES,REDACTED PERSONAL DATA,394.00,FRIENDS &FAMILY FOST,PAYMENTS TO CARERS,REDACTED,REDACTED
07.10.2020,CHILDREN AND FAMILIES,REDACTED PERSONAL DATA,912.00,FRIENDS &FAMILY FOST,PAYMENTS TO CARERS,REDACTED,REDACTED
07.10.2020,CHILDREN AND FAMILIES,REDACTED PERSONAL DATA,824.00,FRIENDS &FAMILY FOST,PAYMENTS TO CARERS,REDACTED,REDACTED
07.10.2020,CHILDREN AND FAMILIES,REDACTED PERSONAL DATA,824.00,FRIENDS &FAMILY FOST,PAYMENTS TO CARERS,REDACTED,REDACTED
07.10.2020,CHILDREN AND FAMILIES,REDACTED PERSONAL DATA,824.00,FRIENDS &FAMILY FOST,PAYMENTS TO CARERS,REDACTED,REDACTED
07.10.2020,CHILDREN AND FAMILIES,REDACTED PERSONAL DATA,726.00,FRIENDS &FAMILY FOST,PAYMENTS TO CARERS,REDACTED,REDACTED
07.10.2020,CHILDREN AND FAMILIES,REDACTED PERSONAL DATA,824.00,FRIENDS &FAMILY FOST,PAYMENTS TO CARERS,REDACTED,REDACTED
07.10.2020,CHILDREN AND FAMILIES,REDACTED PERSONAL DATA,676.00,FRIENDS &FAMILY FOST,PAYMENTS TO CARERS,REDACTED,REDACTED
07.10.2020,CHILDREN AND FAMILIES,REDACTED PERSONAL DATA,666.00,FRIENDS &FAMILY FOST,PAYMENTS TO CARERS,REDACTED,REDACTED
07.10.2020,CHILDREN AND FAMILIES,REDACTED PERSONAL DATA,-925.57,FRIENDS &FAMILY FOST,PAYMENTS TO CARERS,REDACTED,REDACTED
07.10.2020,CHILDREN AND FAMILIES,REDACTED PERSONAL DATA,"7,239.43",FRIENDS &FAMILY FOST,PAYMENTS TO CARERS,REDACTED,REDACTED
07.10.2020,CHILDREN AND FAMILIES,REDACTED PERSONAL DATA,"1,104.00",FRIENDS &FAMILY FOST,PAYMENTS TO CARERS,REDACTED,REDACTED
07.10.2020,CHILDREN AND FAMILIES,REDACTED PERSONAL DATA,"-1,143.43",FRIENDS &FAMILY FOST,PAYMENTS TO CARERS,REDACTED,REDACTED
07.10.2020,CHILDREN AND FAMILIES,REDACTED PERSONAL DATA,"-1,018.57",FRIENDS &FAMILY FOST,PAYMENTS TO CARERS,REDACTED,REDACTED
07.10.2020,CHILDREN AND FAMILIES,REDACTED PERSONAL DATA,"2,897.14",FRIENDS &FAMILY FOST,PAYMENTS TO CARERS,REDACTED,REDACTED
07.10.2020,CHILDREN AND FAMILIES,REDACTED PERSONAL DATA,"3,111.43",FRIENDS &FAMILY FOST,PAYMENTS TO CARERS,REDACTED,REDACTED
07.10.2020,CHILDREN AND FAMILIES,REDACTED PERSONAL DATA,394.00,FRIENDS &FAMILY FOST,PAYMENTS TO CARERS,REDACTED,REDACTED
07.10.2020,CHILDREN AND FAMILIES,REDACTED PERSONAL DATA,394.00,FRIENDS &FAMILY FOST,PAYMENTS TO CARERS,REDACTED,REDACTED
07.10.2020,CHILDREN AND FAMILIES,REDACTED PERSONAL DATA,394.00,FRIENDS &FAMILY FOST,PAYMENTS TO CARERS,REDACTED,REDACTED
07.10.2020,CHILDREN AND FAMILIES,REDACTED PERSONAL DATA,394.00,FRIENDS &FAMILY FOST,PAYMENTS TO CARERS,REDACTED,REDACTED
07.10.2020,CHILDREN AND FAMILIES,REDACTED PERSONAL DATA,304.00,FRIENDS &FAMILY FOST,PAYMENTS TO CARERS,REDACTED,REDACTED
07.10.2020,CHILDREN AND FAMILIES,REDACTED PERSONAL DATA,310.00,FRIENDS &FAMILY FOST,PAYMENTS TO CARERS,REDACTED,REDACTED
07.10.2020,CHILDREN AND FAMILIES,REDACTED PERSONAL DATA,462.00,FRIENDS &FAMILY FOST,PAYMENTS TO CARERS,REDACTED,REDACTED
07.10.2020,CHILDREN AND FAMILIES,REDACTED PERSONAL DATA,310.00,FRIENDS &FAMILY FOST,PAYMENTS TO CARERS,REDACTED,REDACTED
07.10.2020,CHILDREN AND FAMILIES,REDACTED PERSONAL DATA,310.00,FRIENDS &FAMILY FOST,PAYMENTS TO CARERS,REDACTED,REDACTED
07.10.2020,CHILDREN AND FAMILIES,REDACTED PERSONAL DATA,348.00,FRIENDS &FAMILY FOST,PAYMENTS TO CARERS,REDACTED,REDACTED
07.10.2020,CHILDREN AND FAMILIES,REDACTED PERSONAL DATA,348.00,FRIENDS &FAMILY FOST,PAYMENTS TO CARERS,REDACTED,REDACTED
07.10.2020,CHILDREN AND FAMILIES,REDACTED PERSONAL DATA,342.00,FRIENDS &FAMILY FOST,PAYMENTS TO CARERS,REDACTED,REDACTED
07.10.2020,CHILDREN AND FAMILIES,REDACTED PERSONAL DATA,394.00,FRIENDS &FAMILY FOST,PAYMENTS TO CARERS,REDACTED,REDACTED
07.10.2020,CHILDREN AND FAMILIES,REDACTED PERSONAL DATA,348.00,FRIENDS &FAMILY FOST,PAYMENTS TO CARERS,REDACTED,REDACTED
07.10.2020,CHILDREN AND FAMILIES,REDACTED PERSONAL DATA,348.00,FRIENDS &FAMILY FOST,PAYMENTS TO CARERS,REDACTED,REDACTED
07.10.2020,CHILDREN AND FAMILIES,REDACTED PERSONAL DATA,348.00,FRIENDS &FAMILY FOST,PAYMENTS TO CARERS,REDACTED,REDACTED
07.10.2020,CHILDREN AND FAMILIES,REDACTED PERSONAL DATA,310.00,FRIENDS &FAMILY FOST,PAYMENTS TO CARERS,REDACTED,REDACTED
07.10.2020,CHILDREN AND FAMILIES,CAROL NUDDS,375.00,P & R CARE TEAM,OTHER PAYMENTS FOR CLIENTS,5902436653,1000076989
07.10.2020,CHILDREN AND FAMILIES,GREATER LONDON FOSTERING,299.74,SEMI-IND CARELEAVERS,OTHER PAYMENTS FOR CLIENTS,2103153802,1000029184
07.10.2020,CHILDREN AND FAMILIES,YOUNG FUTURES,"3,257.10",SEMI-IND CARELEAVERS,EXTERNAL AGENCIES AND BODIES,2103154070,1000059563
07.10.2020,CHILDREN AND FAMILIES,YOUNG FUTURES,"12,479.04",SEMI-IND CARELEAVERS,EXTERNAL AGENCIES AND BODIES,2103154066,1000059563
07.10.2020,CHILDREN AND FAMILIES,FUTURE FOUNDATIONS LTD,309.71,SEMI-IND CARELEAVERS,EXTERNAL AGENCIES AND BODIES,2103154072,1000063272
07.10.2020,CHILDREN AND FAMILIES,FUTURE FOUNDATIONS LTD,"2,994.00",SEMI-IND CARELEAVERS,EXTERNAL AGENCIES AND BODIES,2103154077,1000063272
07.10.2020,CHILDREN AND FAMILIES,BARNARDOS SERVICES LTD,642.86,SEMI-IND CARELEAVERS,EXTERNAL AGENCIES AND BODIES,2103153814,1000063730
07.10.2020,CHILDREN AND FAMILIES,BARNARDOS SERVICES LTD,642.86,SEMI-IND CARELEAVERS,EXTERNAL AGENCIES AND BODIES,2103153820,1000063730
07.10.2020,CHILDREN AND FAMILIES,BARNARDOS SERVICES LTD,664.28,SEMI-IND CARELEAVERS,EXTERNAL AGENCIES AND BODIES,2103153822,1000063730
07.10.2020,CHILDREN AND FAMILIES,BARNARDOS SERVICES LTD,664.29,SEMI-IND CARELEAVERS,EXTERNAL AGENCIES AND BODIES,2103153810,1000063730
07.10.2020,CHILDREN AND FAMILIES,FINEFAIR LTD,"1,632.90",SEMI-IND CARELEAVERS,EXTERNAL AGENCIES AND BODIES,2103153800,1000075570
07.10.2020,CHILDREN AND FAMILIES,NETPEX LTD CORPORATE SERVICES,"-4,636.29",SEMI-IND CARELEAVERS,COSTS RECOVERED,2103144552,1000076073
07.10.2020,CHILDREN AND FAMILIES,NETPEX LTD CORPORATE SERVICES,"-2,567.92",SEMI-IND CARELEAVERS,COSTS RECOVERED,2103144550,1000076073
07.10.2020,CHILDREN AND FAMILIES,NETPEX LTD CORPORATE SERVICES,"-1,200.00",SEMI-IND CARELEAVERS,COSTS RECOVERED,2103144555,1000076073
07.10.2020,CHILDREN AND FAMILIES,NETPEX LTD CORPORATE SERVICES,"-1,150.01",SEMI-IND CARELEAVERS,COSTS RECOVERED,2103144553,1000076073
07.10.2020,CHILDREN AND FAMILIES,NETPEX LTD CORPORATE SERVICES,397.16,SEMI-IND CARELEAVERS,EXTERNAL AGENCIES AND BODIES,2103153793,1000076073
07.10.2020,CHILDREN AND FAMILIES,NETPEX LTD CORPORATE SERVICES,892.90,SEMI-IND CARELEAVERS,EXTERNAL AGENCIES AND BODIES,2103153792,1000076073
07.10.2020,CHILDREN AND FAMILIES,NETPEX LTD CORPORATE SERVICES,"2,357.10",SEMI-IND CARELEAVERS,EXTERNAL AGENCIES AND BODIES,2103153823,1000076073
07.10.2020,CHILDREN AND FAMILIES,NETPEX LTD CORPORATE SERVICES,"2,678.70",SEMI-IND CARELEAVERS,EXTERNAL AGENCIES AND BODIES,2103153817,1000076073
07.10.2020,CHILDREN AND FAMILIES,NETPEX LTD CORPORATE SERVICES,"2,957.10",SEMI-IND CARELEAVERS,EXTERNAL AGENCIES AND BODIES,2103153824,1000076073
07.10.2020,CHILDREN AND FAMILIES,NETPEX LTD CORPORATE SERVICES,"3,214.20",SEMI-IND CARELEAVERS,EXTERNAL AGENCIES AND BODIES,2103153791,1000076073
07.10.2020,CHILDREN AND FAMILIES,NETPEX LTD CORPORATE SERVICES,"4,071.60",SEMI-IND CARELEAVERS,EXTERNAL AGENCIES AND BODIES,2103153811,1000076073
07.10.2020,CHILDREN AND FAMILIES,ELLIOT LEIGH TLC LTD,321.30,SEMI-IND CARELEAVERS,EXTERNAL AGENCIES AND BODIES,2103153816,1000079022
07.10.2020,CHILDREN AND FAMILIES,ELLIOT LEIGH TLC LTD,"1,628.70",SEMI-IND CARELEAVERS,EXTERNAL AGENCIES AND BODIES,2103153815,1000079022
07.10.2020,CHILDREN AND FAMILIES,ELLIOT LEIGH TLC LTD,"1,671.30",SEMI-IND CARELEAVERS,EXTERNAL AGENCIES AND BODIES,2103153803,1000079022
07.10.2020,CHILDREN AND FAMILIES,ELLIOT LEIGH TLC LTD,"2,241.30",SEMI-IND CARELEAVERS,EXTERNAL AGENCIES AND BODIES,2103153804,1000079022
07.10.2020,CHILDREN AND FAMILIES,ELLIOT LEIGH TLC LTD,"2,421.30",SEMI-IND CARELEAVERS,EXTERNAL AGENCIES AND BODIES,2103153821,1000079022
07.10.2020,CHILDREN AND FAMILIES,ELLIOT LEIGH TLC LTD,"2,635.80",SEMI-IND CARELEAVERS,EXTERNAL AGENCIES AND BODIES,2103153806,1000079022
07.10.2020,CHILDREN AND FAMILIES,ELLIOT LEIGH TLC LTD,"2,808.30",SEMI-IND CARELEAVERS,EXTERNAL AGENCIES AND BODIES,2103153812,1000079022
07.10.2020,CHILDREN AND FAMILIES,ELLIOT LEIGH TLC LTD,"2,910.00",SEMI-IND CARELEAVERS,EXTERNAL AGENCIES AND BODIES,2103153797,1000079022
07.10.2020,CHILDREN AND FAMILIES,SYDNEY CARE LTD,"5,138.92",SEMI-IND CARELEAVERS,EXTERNAL AGENCIES AND BODIES,2103153799,1000081598
07.10.2020,CHILDREN AND FAMILIES,HOLISTIC SUPPORTED LIVING LTD,"4,700.00",SEMI-IND CARELEAVERS,EXTERNAL AGENCIES AND BODIES,2103153818,1000082130
07.10.2020,CHILDREN AND FAMILIES,NETPEX LTD CORPORATE SERVICES,"3,980.20",SEMI-IND LAC 16-17,EXTERNAL AGENCIES AND BODIES,2103154044,1000076073
07.10.2020,CHILDREN AND FAMILIES,SYDNEY CARE LTD,"3,835.72",SEMI-IND LAC 16-17,EXTERNAL AGENCIES AND BODIES,2103154048,1000081598
07.10.2020,CHILDREN AND FAMILIES,SYDNEY CARE LTD,300.00,SEMI-IND LAC 16-17,OTHER PAYMENTS FOR CLIENTS,2103154043,1000081598
07.10.2020,CHILDREN AND FAMILIES,TRANSITIONAL PLUS CARE CIC,"2,892.86",SEMI-IND LAC 16-17,EXTERNAL AGENCIES AND BODIES,2103154041,1000084188
07.10.2020,CHILDREN AND FAMILIES,REDACTED PERSONAL DATA,388.04,SPECIAL GUARDIANSHIP,PAYMENTS TO CARERS,REDACTED,REDACTED
07.10.2020,CHILDREN AND FAMILIES,REDACTED PERSONAL DATA,342.45,SPECIAL GUARDIANSHIP,PAYMENTS TO CARERS,REDACTED,REDACTED
07.10.2020,CHILDREN AND FAMILIES,REDACTED PERSONAL DATA,389.34,SPECIAL GUARDIANSHIP,PAYMENTS TO CARERS,REDACTED,REDACTED
07.10.2020,CHILDREN AND FAMILIES,REDACTED PERSONAL DATA,356.15,SPECIAL GUARDIANSHIP,PAYMENTS TO CARERS,REDACTED,REDACTED
07.10.2020,CHILDREN AND FAMILIES,REDACTED PERSONAL DATA,403.04,SPECIAL GUARDIANSHIP,PAYMENTS TO CARERS,REDACTED,REDACTED
07.10.2020,CHILDREN AND FAMILIES,REDACTED PERSONAL DATA,343.05,SPECIAL GUARDIANSHIP,PAYMENTS TO CARERS,REDACTED,REDACTED
07.10.2020,CHILDREN AND FAMILIES,REDACTED PERSONAL DATA,525.00,SPECIAL GUARDIANSHIP,PAYMENTS TO CARERS,REDACTED,REDACTED
07.10.2020,CHILDREN AND FAMILIES,REDACTED PERSONAL DATA,525.00,SPECIAL GUARDIANSHIP,PAYMENTS TO CARERS,REDACTED,REDACTED
07.10.2020,CHILDREN AND FAMILIES,REDACTED PERSONAL DATA,395.00,SPECIAL GUARDIANSHIP,PAYMENTS TO CARERS,REDACTED,REDACTED
07.10.2020,CHILDREN AND FAMILIES,REDACTED PERSONAL DATA,341.15,SPECIAL GUARDIANSHIP,PAYMENTS TO CARERS,REDACTED,REDACTED
07.10.2020,CHILDREN AND FAMILIES,TACT,"1,499.70",STAYPUT- FOST CARERS,EXTERNAL AGENCIES AND BODIES,2103154071,1000012941
07.10.2020,CHILDREN AND FAMILIES,GREATER LONDON FOSTERING,"2,142.86",STAYPUT- FOST CARERS,EXTERNAL AGENCIES AND BODIES,2103153801,1000029184
07.10.2020,CHILDREN AND FAMILIES,REDACTED PERSONAL DATA,500.00,STAYPUT- FOST CARERS,PAYMENTS TO CARERS,REDACTED,REDACTED
07.10.2020,CHILDREN AND FAMILIES,REDACTED PERSONAL DATA,500.00,STAYPUT- FOST CARERS,PAYMENTS TO CARERS,REDACTED,REDACTED
07.10.2020,CHILDREN AND FAMILIES,REDACTED PERSONAL DATA,714.29,STAYPUT- FOST CARERS,PAYMENTS TO CARERS,REDACTED,REDACTED
07.10.2020,CHILDREN AND FAMILIES,REDACTED PERSONAL DATA,500.00,STAYPUT- FOST CARERS,PAYMENTS TO CARERS,REDACTED,REDACTED
07.10.2020,CHILDREN AND FAMILIES,REDACTED PERSONAL DATA,500.00,STAYPUT- FOST CARERS,PAYMENTS TO CARERS,REDACTED,REDACTED
07.10.2020,CHILDREN AND FAMILIES,REDACTED PERSONAL DATA,500.00,STAYPUT- FOST CARERS,PAYMENTS TO CARERS,REDACTED,REDACTED
07.10.2020,CHILDREN AND FAMILIES,REDACTED PERSONAL DATA,500.00,STAYPUT- FOST CARERS,PAYMENTS TO CARERS,REDACTED,REDACTED
07.10.2020,CHILDREN AND FAMILIES,REDACTED PERSONAL DATA,832.00,STAYPUT- FOST CARERS,PAYMENTS TO CARERS,REDACTED,REDACTED
07.10.2020,CHILDREN AND FAMILIES,REDACTED PERSONAL DATA,500.00,STAYPUT- FOST CARERS,PAYMENTS TO CARERS,REDACTED,REDACTED
07.10.2020,CHILDREN AND FAMILIES,REDACTED PERSONAL DATA,500.00,STAYPUT- FOST CARERS,PAYMENTS TO CARERS,REDACTED,REDACTED
07.10.2020,CHILDREN AND FAMILIES,REDACTED PERSONAL DATA,500.00,STAYPUT- FOST CARERS,PAYMENTS TO CARERS,REDACTED,REDACTED
07.10.2020,CHILDREN AND FAMILIES,REDACTED PERSONAL DATA,500.00,STAYPUT- FOST CARERS,PAYMENTS TO CARERS,REDACTED,REDACTED
07.10.2020,CHILDREN AND FAMILIES,REDACTED PERSONAL DATA,500.00,STAYPUT- FOST CARERS,PAYMENTS TO CARERS,REDACTED,REDACTED
07.10.2020,CHILDREN AND FAMILIES,REDACTED PERSONAL DATA,500.00,STAYPUT- FOST CARERS,PAYMENTS TO CARERS,REDACTED,REDACTED
07.10.2020,CHILDREN AND FAMILIES,REDACTED PERSONAL DATA,500.00,STAYPUT- FOST CARERS,PAYMENTS TO CARERS,REDACTED,REDACTED
07.10.2020,CHILDREN AND FAMILIES,REDACTED PERSONAL DATA,500.00,STAYPUT- FOST CARERS,PAYMENTS TO CARERS,REDACTED,REDACTED
07.10.2020,CHILDREN AND FAMILIES,REDACTED PERSONAL DATA,500.00,STAYPUT- FOST CARERS,PAYMENTS TO CARERS,REDACTED,REDACTED
07.10.2020,CHILDREN AND FAMILIES,REDACTED PERSONAL DATA,500.00,STAYPUT- FOST CARERS,PAYMENTS TO CARERS,REDACTED,REDACTED
07.10.2020,CHILDREN AND FAMILIES,REDACTED PERSONAL DATA,500.00,STAYPUT- FOST CARERS,PAYMENTS TO CARERS,REDACTED,REDACTED
07.10.2020,CHILDREN AND FAMILIES,REDACTED PERSONAL DATA,500.00,STAYPUT- FOST CARERS,PAYMENTS TO CARERS,REDACTED,REDACTED
07.10.2020,CHILDREN AND FAMILIES,REDACTED PERSONAL DATA,700.00,STAYPUT- FOST CARERS,PAYMENTS TO CARERS,REDACTED,REDACTED
07.10.2020,CHILDREN AND FAMILIES,REDACTED PERSONAL DATA,500.00,STAYPUT- FOST CARERS,PAYMENTS TO CARERS,REDACTED,REDACTED
07.10.2020,CHILDREN AND FAMILIES,REDACTED PERSONAL DATA,500.00,STAYPUT- FOST CARERS,PAYMENTS TO CARERS,REDACTED,REDACTED
07.10.2020,CHILDREN AND FAMILIES,REDACTED PERSONAL DATA,500.00,STAYPUT- FOST CARERS,PAYMENTS TO CARERS,REDACTED,REDACTED
07.10.2020,CHILDREN AND FAMILIES,REDACTED PERSONAL DATA,852.00,STAYPUT- FOST CARERS,PAYMENTS TO CARERS,REDACTED,REDACTED
07.10.2020,CHILDREN AND FAMILIES,REDACTED PERSONAL DATA,500.00,STAYPUT- FOST CARERS,PAYMENTS TO CARERS,REDACTED,REDACTED
07.10.2020,CHILDREN AND FAMILIES,REDACTED PERSONAL DATA,500.00,STAYPUT- FOST CARERS,PAYMENTS TO CARERS,REDACTED,REDACTED
07.10.2020,CHILDREN AND FAMILIES,REDACTED PERSONAL DATA,"2,428.58",STAYPUT- FOST CARERS,PAYMENTS TO CARERS,REDACTED,REDACTED
07.10.2020,CHILDREN AND FAMILIES,REDACTED PERSONAL DATA,500.00,STAYPUT- FOST CARERS,PAYMENTS TO CARERS,REDACTED,REDACTED
07.10.2020,CHILDREN AND FAMILIES,REDACTED PERSONAL DATA,322.27,STAYPUT- FOST CARERS,PAYMENTS TO CARERS,REDACTED,REDACTED
07.10.2020,CHILDREN AND FAMILIES,REDACTED PERSONAL DATA,500.00,STAYPUT- FOST CARERS,PAYMENTS TO CARERS,REDACTED,REDACTED
07.10.2020,CHILDREN AND FAMILIES,REDACTED PERSONAL DATA,500.00,STAYPUT- FOST CARERS,PAYMENTS TO CARERS,REDACTED,REDACTED
07.10.2020,CHILDREN AND FAMILIES,REDACTED PERSONAL DATA,832.00,STAYPUT- FOST CARERS,PAYMENTS TO CARERS,REDACTED,REDACTED
07.10.2020,CHILDREN AND FAMILIES,REDACTED PERSONAL DATA,784.00,STAYPUT- FOST CARERS,PAYMENTS TO CARERS,REDACTED,REDACTED
07.10.2020,CHILDREN AND FAMILIES,REDACTED PERSONAL DATA,430.00,STAYPUT- FOST CARERS,PAYMENTS TO CARERS,REDACTED,REDACTED
07.10.2020,CHILDREN AND FAMILIES,REDACTED PERSONAL DATA,-475.43,STAYPUT- FOST CARERS,PAYMENTS TO CARERS,REDACTED,REDACTED
07.10.2020,CHILDREN AND FAMILIES,REDACTED PERSONAL DATA,500.00,STAYPUT- FOST CARERS,PAYMENTS TO CARERS,REDACTED,REDACTED
07.10.2020,CHILDREN AND FAMILIES,REDACTED PERSONAL DATA,700.00,STAYPUT- FOST CARERS,PAYMENTS TO CARERS,REDACTED,REDACTED
07.10.2020,CHILDREN AND FAMILIES,REDACTED PERSONAL DATA,500.00,STAYPUT- FOST CARERS,PAYMENTS TO CARERS,REDACTED,REDACTED
07.10.2020,CHILDREN AND FAMILIES,REDACTED PERSONAL DATA,"1,000.00",STAYPUT- FOST CARERS,PAYMENTS TO CARERS,REDACTED,REDACTED
07.10.2020,CHILDREN AND FAMILIES,KINDLY PROPERTIES LTD,810.00,UASC CARELEAVERS,EXTERNAL AGENCIES AND BODIES,2103154068,1000060734
07.10.2020,CHILDREN AND FAMILIES,KINDLY PROPERTIES LTD,810.00,UASC CARELEAVERS,EXTERNAL AGENCIES AND BODIES,2103154073,1000060734
07.10.2020,CHILDREN AND FAMILIES,KINDLY PROPERTIES LTD,810.00,UASC CARELEAVERS,EXTERNAL AGENCIES AND BODIES,2103154074,1000060734
07.10.2020,CHILDREN AND FAMILIES,KINDLY PROPERTIES LTD,837.00,UASC CARELEAVERS,EXTERNAL AGENCIES AND BODIES,2103154067,1000060734
07.10.2020,CHILDREN AND FAMILIES,KINDLY PROPERTIES LTD,837.00,UASC CARELEAVERS,EXTERNAL AGENCIES AND BODIES,2103154069,1000060734
07.10.2020,CHILDREN AND FAMILIES,KINDLY PROPERTIES LTD,837.00,UASC CARELEAVERS,EXTERNAL AGENCIES AND BODIES,2103154075,1000060734
07.10.2020,CHILDREN AND FAMILIES,KINDLY PROPERTIES LTD,837.00,UASC CARELEAVERS,EXTERNAL AGENCIES AND BODIES,2103154076,1000060734
07.10.2020,CHILDREN AND FAMILIES,NETPEX LTD CORPORATE SERVICES,"3,685.85",UASC CARELEAVERS,EXTERNAL AGENCIES AND BODIES,2103153819,1000076073
07.10.2020,CHILDREN AND FAMILIES,NETPEX LTD CORPORATE SERVICES,"4,071.60",UASC CARELEAVERS,EXTERNAL AGENCIES AND BODIES,2103153825,1000076073
07.10.2020,CHILDREN AND FAMILIES,ELLIOT LEIGH TLC LTD,"1,658.40",UASC CARELEAVERS,EXTERNAL AGENCIES AND BODIES,2103153805,1000079022
07.10.2020,CHILDREN AND FAMILIES,ELLIOT LEIGH TLC LTD,"1,671.30",UASC CARELEAVERS,EXTERNAL AGENCIES AND BODIES,2103153809,1000079022
07.10.2020,CHILDREN AND FAMILIES,ELLIOT LEIGH TLC LTD,"2,314.20",UASC CARELEAVERS,EXTERNAL AGENCIES AND BODIES,2103153796,1000079022
07.10.2020,CHILDREN AND FAMILIES,ELLIOT LEIGH TLC LTD,"2,347.80",UASC CARELEAVERS,EXTERNAL AGENCIES AND BODIES,2103153808,1000079022
07.10.2020,CHILDREN AND FAMILIES,PURPLE PEBBLES(CHILD CARE) SERVICES,280.00,UASC LAC 16-17,OTHER PAYMENTS FOR CLIENTS,2103154078,1000070705
07.10.2020,CHILDREN AND FAMILIES,NETPEX LTD CORPORATE SERVICES,"4,264.20",UASC LAC 16-17,EXTERNAL AGENCIES AND BODIES,2103154042,1000076073
07.10.2020,CHILDREN AND FAMILIES,NETPEX LTD CORPORATE SERVICES,280.00,UASC LAC 16-17,OTHER PAYMENTS FOR CLIENTS,2103154047,1000076073
07.10.2020,CHILDREN AND FAMILIES,IASPIRE CARE SERVICES LTD,300.00,UASC LAC 16-17,OTHER PAYMENTS FOR CLIENTS,2103154080,1000081500
07.10.2020,CHILDREN AND FAMILIES,EPIC CARE HOME LTD,"3,642.85",UASC LAC 16-17,EXTERNAL AGENCIES AND BODIES,2103154045,1000084192
07.10.2020,CHILDREN AND FAMILIES,EPIC CARE HOME LTD,421.44,UASC LAC 16-17,OTHER PAYMENTS FOR CLIENTS,2103154046,1000084192
07.10.2020,CHILDREN'S SERVICES,ACHIEVING FOR CHILDREN,"7,494.90",SCH TRANS - CONTRACT COST,RECOUPMENT,5902436440,1000077253
07.10.2020,CHILDREN'S SERVICES,COMPASS SCHOOLS TRUST,328.21,SEN - ACADEMY AND FREE SCHOOLS,STATEMENTED FEES,2103154128,1000076195
07.10.2020,CHILDREN'S SERVICES,COMPASS SCHOOLS TRUST,800.00,SEN - ACADEMY AND FREE SCHOOLS,STATEMENTED FEES,2103154133,1000076195
07.10.2020,CHILDREN'S SERVICES,COMPASS SCHOOLS TRUST,"1,312.82",SEN - ACADEMY AND FREE SCHOOLS,STATEMENTED FEES,2103154123,1000076195
07.10.2020,CHILDREN'S SERVICES,COMPASS SCHOOLS TRUST,"1,312.82",SEN - ACADEMY AND FREE SCHOOLS,STATEMENTED FEES,2103154125,1000076195
07.10.2020,CHILDREN'S SERVICES,COMPASS SCHOOLS TRUST,"1,312.82",SEN - ACADEMY AND FREE SCHOOLS,STATEMENTED FEES,2103154129,1000076195
07.10.2020,CHILDREN'S SERVICES,COMPASS SCHOOLS TRUST,"1,312.82",SEN - ACADEMY AND FREE SCHOOLS,STATEMENTED FEES,2103154132,1000076195
07.10.2020,CHILDREN'S SERVICES,COMPASS SCHOOLS TRUST,"2,625.64",SEN - ACADEMY AND FREE SCHOOLS,STATEMENTED FEES,2103154124,1000076195
07.10.2020,CHILDREN'S SERVICES,COMPASS SCHOOLS TRUST,"2,625.64",SEN - ACADEMY AND FREE SCHOOLS,STATEMENTED FEES,2103154127,1000076195
07.10.2020,CHILDREN'S SERVICES,COMPASS SCHOOLS TRUST,"3,979.59",SEN - ACADEMY AND FREE SCHOOLS,STATEMENTED FEES,2103154134,1000076195
07.10.2020,CHILDREN'S SERVICES,COMPASS SCHOOLS TRUST,"4,173.13",SEN - ACADEMY AND FREE SCHOOLS,STATEMENTED FEES,2103154126,1000076195
07.10.2020,CHILDREN'S SERVICES,COMPASS SCHOOLS TRUST,"4,173.13",SEN - ACADEMY AND FREE SCHOOLS,STATEMENTED FEES,2103154130,1000076195
07.10.2020,CHILDREN'S SERVICES,COMPASS SCHOOLS TRUST,"4,173.13",SEN - ACADEMY AND FREE SCHOOLS,STATEMENTED FEES,2103154131,1000076195
07.10.2020,CHILDREN'S SERVICES,COMPASS SCHOOLS TRUST,"6,963.02",SEN - ACADEMY AND FREE SCHOOLS,STATEMENTED FEES,2103154135,1000076195
07.10.2020,CHILDREN'S SERVICES,COMPASS SCHOOLS TRUST,"8,715.00",SEN - ACADEMY AND FREE SCHOOLS,STATEMENTED FEES,2103154136,1000076195
07.10.2020,CHILDREN'S SERVICES,CAVENDISH SCHOOL,"9,000.00",SEN - INDEPENDENT,STATEMENTED FEES,2103154122,1000024278
07.10.2020,CHILDREN'S SERVICES,BRUNSWICK PARK PRIMARY SCHOOL,"3,575.00",SEN - OTHER SCHOOLS,STATEMENTED FEES,2103154121,5001000013
07.10.2020,CHILDREN'S SERVICES,BRUNSWICK PARK PRIMARY SCHOOL,"5,687.50",SEN - OTHER SCHOOLS,STATEMENTED FEES,2103154120,5001000013
07.10.2020,CHILDREN'S SERVICES,MOAT SCHOOL LTD,"10,000.00",SEN - OTHER SPECIAL,STATEMENTED FEES,2103154144,1000010219
07.10.2020,CHILDREN'S SERVICES,MOAT SCHOOL LTD,"10,000.00",SEN - OTHER SPECIAL,STATEMENTED FEES,2103154145,1000010219
07.10.2020,CHILDREN'S SERVICES,MOAT SCHOOL LTD,"10,000.00",SEN - OTHER SPECIAL,STATEMENTED FEES,2103154146,1000010219
07.10.2020,CHILDREN'S SERVICES,MOAT SCHOOL LTD,"10,000.00",SEN - OTHER SPECIAL,STATEMENTED FEES,2103154147,1000010219
07.10.2020,CHILDREN'S SERVICES,HILLCREST AUTISM SERVICES LTD,"14,989.58",SEN - OTHER SPECIAL,STATEMENTED FEES,2103154141,1000073628
07.10.2020,CHILDREN'S SERVICES,HILLCREST AUTISM SERVICES LTD,"15,289.33",SEN - OTHER SPECIAL,STATEMENTED FEES,2103154137,1000073628
07.10.2020,CHILDREN'S SERVICES,HILLCREST AUTISM SERVICES LTD,"15,289.33",SEN - OTHER SPECIAL,STATEMENTED FEES,2103154138,1000073628
07.10.2020,CHILDREN'S SERVICES,HILLCREST AUTISM SERVICES LTD,"15,289.33",SEN - OTHER SPECIAL,STATEMENTED FEES,2103154139,1000073628
07.10.2020,CHILDREN'S SERVICES,HILLCREST AUTISM SERVICES LTD,"15,766.67",SEN - OTHER SPECIAL,STATEMENTED FEES,2103154142,1000073628
07.10.2020,CHILDREN'S SERVICES,HILLCREST AUTISM SERVICES LTD,"15,766.67",SEN - OTHER SPECIAL,STATEMENTED FEES,2103154143,1000073628
07.10.2020,CHILDREN'S SERVICES,HILLCREST AUTISM SERVICES LTD,"23,642.65",SEN - OTHER SPECIAL,STATEMENTED FEES,2103154140,1000073628
07.10.2020,CHILDREN'S SERVICES,BEYONDAUTISM,"21,424.74",SEN - OTHER SPECIAL,STATEMENTED FEES,2103154115,1000080312
07.10.2020,CHILDREN'S SERVICES,BEYONDAUTISM,"21,424.74",SEN - OTHER SPECIAL,STATEMENTED FEES,2103154116,1000080312
07.10.2020,CHILDREN'S SERVICES,BEYONDAUTISM,"21,501.82",SEN - OTHER SPECIAL,STATEMENTED FEES,2103154111,1000080312
07.10.2020,CHILDREN'S SERVICES,BEYONDAUTISM,"21,501.82",SEN - OTHER SPECIAL,STATEMENTED FEES,2103154112,1000080312
07.10.2020,CHILDREN'S SERVICES,BEYONDAUTISM,"21,501.82",SEN - OTHER SPECIAL,STATEMENTED FEES,2103154113,1000080312
07.10.2020,CHILDREN'S SERVICES,BEYONDAUTISM,"21,501.82",SEN - OTHER SPECIAL,STATEMENTED FEES,2103154114,1000080312
07.10.2020,CHILDREN'S SERVICES,BEYONDAUTISM,"21,501.83",SEN - OTHER SPECIAL,STATEMENTED FEES,2103154117,1000080312
07.10.2020,CHILDREN'S SERVICES,BEYONDAUTISM,"21,501.83",SEN - OTHER SPECIAL,STATEMENTED FEES,2103154118,1000080312
07.10.2020,CHILDREN'S SERVICES,BEYONDAUTISM,"21,501.83",SEN - OTHER SPECIAL,STATEMENTED FEES,2103154119,1000080312
07.10.2020,CHILDREN'S SERVICES,BARNARDOS SERVICES LTD,"15,834.00",SEN- NON MAINTAINED SCHOOLS,STATEMENTED FEES,2103154110,1000063730
07.10.2020,COMMUNITIES,LONDON COUNCILS,"59,371.00",LONDON COUNCILS,OTHER LOCAL AUTHORITIES,5902436477,11237079
07.10.2020,COMMUNITIES,POHWER,"6,144.14",NHS COMPLAINTS ADVOCACY,EXTERNAL AGENCIES AND BODIES,5902436473,1000070508
07.10.2020,COMMUNITIES,TURNING POINT,"1,378.08",NO RECOURSE TO PUBLIC FUNDS,ACCOMMODATION CHARGES,5902436546,11321523
07.10.2020,COMMUNITIES,DINARDO SUPPORTS LTD,"1,520.00",NO RECOURSE TO PUBLIC FUNDS,ACCOMMODATION CHARGES,5902436599,1000063093
07.10.2020,COMMUNITIES,BLACKFRIARS SETTLEMENT,"4,000.00",NORTH WEST,GRANTS,5902436627,1000071456
07.10.2020,COMMUNITIES,LINDLEY T&RA,"1,683.00",RESIDENTS PARTICIPATION FUND,GRANTS,5902436609,1000051454
07.10.2020,CUSTOMER EXPERIENCE HGF,MR & MRS NAGAKISHORE/ CHAITANYA  GONUGUNTLA,"5,140.36",HOMELESS PROJECTS,GRANTS,5902436181,1000085630
07.10.2020,CUSTOMER EXPERIENCE HGF,NOWMEDICAL LTD,"4,529.00",HOUSING OPTIONS,PROFESSIONAL FEES,5902436614,1000068185
07.10.2020,ENVIRONMENT AND LEISURE,F M CONWAY LTD,"85,996.14",CAPITAL PS (LEISURE),CONSTRUCTION FEES  - EXTERNAL,5902436421,1000002412
07.10.2020,ENVIRONMENT AND LEISURE,DOCKLAND SETTLEMENT COMMUNITY,"3,360.00",CAPITAL PS (LEISURE),CAPITAL GRANTS,5902436449,1000075662
07.10.2020,ENVIRONMENT AND LEISURE,CYB ENVIRONMENTAL LTD,950.00,CAPITAL PS (LEISURE),CONSTRUCTION FEES  - EXTERNAL,5902436648,1000079812
07.10.2020,ENVIRONMENT AND LEISURE,GEOTECHNICS LTD,"5,959.50",CAPITAL PS (LEISURE),CONSTR'N SUB CONTRACT - NON CERTIFICATED,5902436512,1000084098
07.10.2020,ENVIRONMENT DIRECTORATE,LONDON TOOLS LIMITED,"1,867.50",ENGINEERING CRAFTS,MATERIALS,5902436507,1000003017
07.10.2020,ENVIRONMENT DIRECTORATE,PERFORMANCE CHEMICALS LTD,733.20,ESTATE CLEANING-GENERAL,MATERIALS,5902436532,1000037129
07.10.2020,ENVIRONMENT DIRECTORATE,PERFORMANCE CHEMICALS LTD,768.00,ESTATE CLEANING-GENERAL,MATERIALS,5902436528,1000037129
07.10.2020,ENVIRONMENT DIRECTORATE,PERFORMANCE CHEMICALS LTD,"2,028.00",ESTATE CLEANING-GENERAL,MATERIALS,5902436531,1000037129
07.10.2020,HOUSING,OCO LIMITED,"726,629.96",PAYMENTS CONTROL ACCOUNT - OCO,I-WORLD CONTRACTORS HOLDING ACCOUNT,5902436521,1006066
07.10.2020,HOUSING,PRB ESTATES LTD,"22,051.96",PRBE,I-WORLD CONTRACTORS HOLDING ACCOUNT,2103154149,3000001691
07.10.2020,HOUSING,PRB ESTATES LTD,"24,989.03",PRBE,I-WORLD CONTRACTORS HOLDING ACCOUNT,2103154148,3000001691
07.10.2020,HOUSING HRA,CALFORD SEADEN LLP,1529,CAPITAL PS (HRA),CONSTRUCTION FEES  - EXTERNAL,5902436654,1061592
07.10.2020,HOUSING HRA,ENGIE REGENERATION (APOLLO) LTD,"603,612.66",CAPITAL PS (HRA),CONSTRUCTION MAIN CONTRACT -CERTIFICATED,2103154150,4000449
07.10.2020,HOUSING HRA,STANBURY BUILDING SERVICES LTD,"1,150.00",CAPITAL PS (HRA),CONSTRUCTION FEES  - EXTERNAL,5902436462,1000078207
07.10.2020,LEISURE DIRECTORATE,WESTMINSTER WASTE,876.00,CEMETERIES,OTHER CONTRACTORS,5902435918,1000080933
07.10.2020,MODERNISATION HGF,CASTLE WATER LTD,"13,486.18",160 TOOLEY ST.,WATER,5902436481,1000078867
07.10.2020,PLANNING AND TRANSPORT,ORACLE CORPORATION UK LTD,"2,276.37",DEVELOPMENT CONTROL ADMINSTRATION,COMPUTER MAINTENANCE,5902436390,1000005079
07.10.2020,PLANNING AND TRANSPORT,SOUTHWARK NEWSPAPER LTD,300.00,PLANNING POLICY TEAM,COMMS & COMPUTING CONTRACT CHARGES,5902436496,1556957
07.10.2020,PLANNING AND TRANSPORT,SOUTHWARK NEWSPAPER LTD,300.00,PLANNING POLICY TEAM,COMMS & COMPUTING CONTRACT CHARGES,5902436497,1556957
07.10.2020,PLANNING AND TRANSPORT,SOUTHWARK NEWSPAPER LTD,336.00,PLANNING POLICY TEAM,COMMS & COMPUTING CONTRACT CHARGES,5902436504,1556957
07.10.2020,PLANNING AND TRANSPORT,SOUTHWARK NEWSPAPER LTD,348.00,PLANNING POLICY TEAM,COMMS & COMPUTING CONTRACT CHARGES,5902436491,1556957
07.10.2020,PLANNING AND TRANSPORT,SOUTHWARK NEWSPAPER LTD,348.00,PLANNING POLICY TEAM,COMMS & COMPUTING CONTRACT CHARGES,5902436500,1556957
07.10.2020,PLANNING AND TRANSPORT,SOUTHWARK NEWSPAPER LTD,360.00,PLANNING POLICY TEAM,COMMS & COMPUTING CONTRACT CHARGES,5902436495,1556957
07.10.2020,PLANNING AND TRANSPORT,SOUTHWARK NEWSPAPER LTD,360.00,PLANNING POLICY TEAM,COMMS & COMPUTING CONTRACT CHARGES,5902436502,1556957
07.10.2020,PLANNING AND TRANSPORT,ANTHESIS (UK) LTD,"4,950.00",PLANNING POLICY TEAM,CONSULTANTS SERVICES,5902436643,1000084124
07.10.2020,REGENERATION,STANBURY BUILDING SERVICES LTD,"4,800.00",MISC INDUSTRIAL PROPERTIES,BUILDING R&M,5902436468,1000078207
07.10.2020,RESIDENT SERVICES,LONDON TOOLS LIMITED,308.00,NORTHCOTT HOUSE,MATERIALS,5902436574,1000003017
07.10.2020,RESIDENT SERVICES,LONDON TOOLS LIMITED,369.00,NORTHCOTT HOUSE,MATERIALS,5902436574,1000003017
07.10.2020,RESIDENT SERVICES,LONDON TOOLS LIMITED,396.00,NORTHCOTT HOUSE,MATERIALS,5902436574,1000003017
07.10.2020,RESIDENT SERVICES,LONDON TOOLS LIMITED,420.00,NORTHCOTT HOUSE,MATERIALS,5902436542,1000003017
07.10.2020,RESIDENT SERVICES,LONDON TOOLS LIMITED,450.00,NORTHCOTT HOUSE,MATERIALS,5902436574,1000003017
07.10.2020,RESIDENT SERVICES,LONDON TOOLS LIMITED,572.50,NORTHCOTT HOUSE,MATERIALS,5902436569,1000003017
07.10.2020,RESIDENT SERVICES,TFL TELESALES / OYSTER FULFILMENT,"1,510.00",OPERATIONS/OFFICES ACCOMMODATION,PUBLIC TRANSPORT,5902436397,1000059727
07.10.2020,RESIDENT SERVICES,NATIONAL CRIME AGENCY,401.00,SPECIAL INVESTIGATIONS,PROFESSIONAL FEES,5902436393,1000057139
07.10.2020,RESIDENT SERVICES,LONDON TOOLS LIMITED,267.50,TA HOSTELS,MATERIALS,5902436637,1000003017
07.10.2020,RESIDENT SERVICES,SILK & MACKMAN SERVICES LTD,498.00,TA HOSTELS,SECURITY SERVICES,5902436633,1000035282
07.10.2020,RESIDENT SERVICES,SILK & MACKMAN SERVICES LTD,"6,635.00",TA HOSTELS,SECURITY SERVICES,5902436629,1000035282
07.10.2020,RESIDENT SERVICES,EDEN ESTATES LONDON LTD,"2,400.00",TA PLACEMENTS,EXTERNAL AGENCIES AND BODIES,5902436484,1000061217
07.10.2020,RESIDENT SERVICES,SOUTH OF THE RIVER INVESTMENTS LTD,"4,830.00",TA PLACEMENTS,EXTERNAL AGENCIES AND BODIES,5902436429,1000073638
07.10.2020,RESIDENT SERVICES,NORBURY PROPERTY SERVICES (LONDON) LTD,"6,517.50",TA PLACEMENTS,EXTERNAL AGENCIES AND BODIES,5902436435,1000075566
07.10.2020,SBS OPERATIONS,AKW MEDI-CARE LTD,632.83,SBS AIDS AND ADAPTATIONS,MATERIALS,5902436607,1000047103
07.10.2020,SBS OPERATIONS,LONDON TOOLS LIMITED,260.00,SBS IN-HOUR EMERGENCIES,MATERIALS,5902436525,1000003017
07.10.2020,SBS OPERATIONS,LONDON TOOLS LIMITED,740.00,SBS IN-HOUR EMERGENCIES,MATERIALS,5902436525,1000003017
07.10.2020,SBS SUPPORT,LONDON TOOLS LIMITED,304.85,DEPOT COSTS,MATERIALS,5902436645,1000003017
07.10.2020,SBS SUPPORT,ABTAC LTD,378.00,DEPOT COSTS,"CLOTHING, UNIFORMS & LAUNDRY",5902436576,1000074360
07.10.2020,SBS SUPPORT,LONDON TOOLS LIMITED,279.50,R & M OVERHEADS,MATERIALS,5902436605,1000003017
07.10.2020,SBS SUPPORT,LONDON TOOLS LIMITED,385.00,R & M OVERHEADS,MATERIALS,5902436602,1000003017
07.10.2020,SBS SUPPORT,LONDON TOOLS LIMITED,700.00,R & M OVERHEADS,MATERIALS,5902436537,1000003017
07.10.2020,SBS SUPPORT,LONDON TOOLS LIMITED,640.00,STORES / LOGISTICS,EQUIPMENT PURCHASE & REPAIR,5902436499,1000003017
07.10.2020,SBS SUPPORT,LONDON TOOLS LIMITED,650.00,STORES / LOGISTICS,EQUIPMENT PURCHASE & REPAIR,5902436499,1000003017
07.10.2020,SBS SUPPORT,LONDON TOOLS LIMITED,750.00,STORES / LOGISTICS,EQUIPMENT PURCHASE & REPAIR,5902436503,1000003017
07.10.2020,SBS SUPPORT,LONDON TOOLS LIMITED,760.00,STORES / LOGISTICS,EQUIPMENT PURCHASE & REPAIR,5902436499,1000003017
07.10.2020,SBS SUPPORT,LONDON TOOLS LIMITED,880.00,STORES / LOGISTICS,EQUIPMENT PURCHASE & REPAIR,5902436503,1000003017
07.10.2020,SBS SUPPORT,LONDON TOOLS LIMITED,760.00,STORES / LOGISTICS,MATERIALS,5902436503,1000003017
07.10.2020,SBS SUPPORT,ACCLAIM HANDLING PLC,346.66,STORES / LOGISTICS,OP LEASE/HIRE CHARGES:PLANT/EQUIP/FURNIT,5902436589,1000008515
07.10.2020,SBS SUPPORT,LONDON TOOLS LIMITED,290.00,VOIDS OVERHEADS,MATERIALS,5902436573,1000003017
07.10.2020,SBS SUPPORT,LONDON TOOLS LIMITED,290.00,VOIDS OVERHEADS,MATERIALS,5902436577,1000003017
07.10.2020,SOUTHWARK BUILDING SERVICES,"BROWNING, JONES & MORRIS LTD",394.50,STORES/LOGISTICS,CREDITORS -GR/IR CLEARING ACCOUNT,5902436557,1027429
07.10.2020,SOUTHWARK BUILDING SERVICES,"BROWNING, JONES & MORRIS LTD",688.00,STORES/LOGISTICS,CREDITORS -GR/IR CLEARING ACCOUNT,5902436561,1027429
07.10.2020,SOUTHWARK BUILDING SERVICES,"BROWNING, JONES & MORRIS LTD",688.00,STORES/LOGISTICS,CREDITORS -GR/IR CLEARING ACCOUNT,5902436561,1027429
07.10.2020,SOUTHWARK BUILDING SERVICES,LONDON TOOLS LIMITED,280.00,STORES/LOGISTICS,CREDITORS -GR/IR CLEARING ACCOUNT,5902436601,1000003017
07.10.2020,SOUTHWARK BUILDING SERVICES,LONDON TOOLS LIMITED,390.00,STORES/LOGISTICS,CREDITORS -GR/IR CLEARING ACCOUNT,5902436602,1000003017
07.10.2020,SOUTHWARK BUILDING SERVICES,LONDON TOOLS LIMITED,"1,035.00",STORES/LOGISTICS,CREDITORS -GR/IR CLEARING ACCOUNT,5902436649,1000003017
07.10.2020,SOUTHWARK BUILDING SERVICES,LONDON TOOLS LIMITED,"2,400.00",STORES/LOGISTICS,CREDITORS -GR/IR CLEARING ACCOUNT,5902436651,1000003017
07.10.2020,SOUTHWARK BUILDING SERVICES,LONDON TOOLS LIMITED,"2,524.80",STORES/LOGISTICS,CREDITORS -GR/IR CLEARING ACCOUNT,5902436649,1000003017
07.10.2020,SOUTHWARK BUILDING SERVICES,LONDON TOOLS LIMITED,"4,425.00",STORES/LOGISTICS,CREDITORS -GR/IR CLEARING ACCOUNT,5902436656,1000003017
07.10.2020,SOUTHWARK BUILDING SERVICES,LONDON TOOLS LIMITED,"5,900.00",STORES/LOGISTICS,CREDITORS -GR/IR CLEARING ACCOUNT,5902436655,1000003017
07.10.2020,SOUTHWARK BUILDING SERVICES,KEMICO LIMITED,"7,670.40",STORES/LOGISTICS,CREDITORS -GR/IR CLEARING ACCOUNT,5902436613,1000030226
07.10.2020,SOUTHWARK BUILDING SERVICES,KEMICO LIMITED,"9,594.00",STORES/LOGISTICS,CREDITORS -GR/IR CLEARING ACCOUNT,5902436611,1000030226
08.10.2020,ADULT SOCIAL CARE,3 SPIRIT ENTERPRISE UK LTD,350.00,ADULTS MULTI-AGENCY SAFEGUARDING TRNG,TRAINING,5902436732,1000085339
08.10.2020,ADULT SOCIAL CARE,3 SPIRIT ENTERPRISE UK LTD,640.00,ADULTS MULTI-AGENCY SAFEGUARDING TRNG,TRAINING,5902436733,1000085339
08.10.2020,ADULT SOCIAL CARE,REDACTED PERSONAL DATA,500.00,APPOINTEESHIPS,OTHER PAYMENTS FOR CLIENTS,REDACTED,REDACTED
08.10.2020,ADULT SOCIAL CARE,BY THE BRIDGE LTD,"5,571.43",DISABILITIES LAC,EXTERNAL AGENCIES AND BODIES,2103154343,1000043961
08.10.2020,ADULT SOCIAL CARE,BY THE BRIDGE LTD,"6,030.00",DISABILITIES LAC,EXTERNAL AGENCIES AND BODIES,2103154341,1000043961
08.10.2020,ADULT SOCIAL CARE,FOSTERING SUPPORT GROUP LTD,"5,999.70",DISABILITIES LAC,EXTERNAL AGENCIES AND BODIES,2103154353,1000065830
08.10.2020,ADULT SOCIAL CARE,ELEANOR NURSING AND SOCIAL CARE LTD,"23,095.50",DISCHARGE TO ACCESS,HOMECARE - SPOT,2103154193,1000081695
08.10.2020,ADULT SOCIAL CARE,MEDACS HOMECARE,844.80,LD LTS 18-64,HOMECARE - C&V,2103154257,11287415
08.10.2020,ADULT SOCIAL CARE,MEDACS HOMECARE,"1,690.65",LD LTS 18-64,HOMECARE - C&V,2103154255,11287415
08.10.2020,ADULT SOCIAL CARE,MEDACS HOMECARE,346.80,LD LTS 18-64,SUPPORTED LIVING,2103154233,11287415
08.10.2020,ADULT SOCIAL CARE,MEDACS HOMECARE,404.60,LD LTS 18-64,SUPPORTED LIVING,2103154237,11287415
08.10.2020,ADULT SOCIAL CARE,MEDACS HOMECARE,740.16,LD LTS 18-64,SUPPORTED LIVING,2103154245,11287415
08.10.2020,ADULT SOCIAL CARE,SURREY DOCKS FARM PROVIDENT SOCIETY,480.00,LD LTS 18-64,DAYCARE,2103154249,1000000958
08.10.2020,ADULT SOCIAL CARE,SURREY DOCKS FARM PROVIDENT SOCIETY,487.50,LD LTS 18-64,DAYCARE,2103154253,1000000958
08.10.2020,ADULT SOCIAL CARE,SURREY DOCKS FARM PROVIDENT SOCIETY,720.00,LD LTS 18-64,DAYCARE,2103154247,1000000958
08.10.2020,ADULT SOCIAL CARE,ELEANOR NURSING AND SOCIAL CARE LTD,"1,003.40",LD LTS 18-64,HOMECARE - SPOT,2103154187,1000081695
08.10.2020,ADULT SOCIAL CARE,MEDACS HOMECARE,361.25,PHY LTS 18-64,SUPPORTED LIVING,2103154235,11287415
08.10.2020,ADULT SOCIAL CARE,ELEANOR NURSING AND SOCIAL CARE LTD,796.08,PHY LTS 18-64,HOMECARE - C&V,2103154171,1000081695
08.10.2020,ADULT SOCIAL CARE,ELEANOR NURSING AND SOCIAL CARE LTD,865.00,PHY LTS 18-64,HOMECARE - SPOT,2103154191,1000081695
08.10.2020,ADULT SOCIAL CARE,ELEANOR NURSING AND SOCIAL CARE LTD,"2,145.48",PHY LTS 18-64,HOMECARE - SPOT,2103154195,1000081695
08.10.2020,ADULT SOCIAL CARE,ELEANOR NURSING AND SOCIAL CARE LTD,"3,564.36",PHY LTS 18-64,HOMECARE - SPOT,2103154169,1000081695
08.10.2020,ADULT SOCIAL CARE,SERVESOUL LTD,-425.60,PHY LTS 65+,HOMECARE - SPOT,2103154416,1000081503
08.10.2020,ADULT SOCIAL CARE,SERVESOUL LTD,265.04,PHY LTS 65+,HOMECARE - SPOT,2103154215,1000081503
08.10.2020,ADULT SOCIAL CARE,SERVESOUL LTD,292.08,PHY LTS 65+,HOMECARE - SPOT,2103154205,1000081503
08.10.2020,ADULT SOCIAL CARE,SERVESOUL LTD,346.32,PHY LTS 65+,HOMECARE - SPOT,2103154201,1000081503
08.10.2020,ADULT SOCIAL CARE,SERVESOUL LTD,425.60,PHY LTS 65+,HOMECARE - SPOT,2103154225,1000081503
08.10.2020,ADULT SOCIAL CARE,SERVESOUL LTD,457.78,PHY LTS 65+,HOMECARE - SPOT,2103154415,1000081503
08.10.2020,ADULT SOCIAL CARE,SERVESOUL LTD,525.74,PHY LTS 65+,HOMECARE - SPOT,2103154221,1000081503
08.10.2020,ADULT SOCIAL CARE,SERVESOUL LTD,588.32,PHY LTS 65+,HOMECARE - SPOT,2103154213,1000081503
08.10.2020,ADULT SOCIAL CARE,SERVESOUL LTD,629.45,PHY LTS 65+,HOMECARE - SPOT,2103154410,1000081503
08.10.2020,ADULT SOCIAL CARE,SERVESOUL LTD,650.91,PHY LTS 65+,HOMECARE - SPOT,2103154219,1000081503
08.10.2020,ADULT SOCIAL CARE,SERVESOUL LTD,650.91,PHY LTS 65+,HOMECARE - SPOT,2103154223,1000081503
08.10.2020,ADULT SOCIAL CARE,SERVESOUL LTD,671.77,PHY LTS 65+,HOMECARE - SPOT,2103154211,1000081503
08.10.2020,ADULT SOCIAL CARE,SERVESOUL LTD,"4,798.25",PHY LTS 65+,HOMECARE - SPOT,2103154411,1000081503
08.10.2020,ADULT SOCIAL CARE,ELEANOR NURSING AND SOCIAL CARE LTD,769.92,PHY LTS 65+,HOMECARE - SPOT,2103154174,1000081695
08.10.2020,ADULT SOCIAL CARE,ELEANOR NURSING AND SOCIAL CARE LTD,804.57,PHY LTS 65+,HOMECARE - SPOT,2103154178,1000081695
08.10.2020,ADULT SOCIAL CARE,ELEANOR NURSING AND SOCIAL CARE LTD,847.84,PHY LTS 65+,HOMECARE - SPOT,2103154189,1000081695
08.10.2020,ADULT SOCIAL CARE,ELEANOR NURSING AND SOCIAL CARE LTD,"1,211.14",PHY LTS 65+,HOMECARE - SPOT,2103154185,1000081695
08.10.2020,ADULT SOCIAL CARE,ELEANOR NURSING AND SOCIAL CARE LTD,"1,470.77",PHY LTS 65+,HOMECARE - SPOT,2103154168,1000081695
08.10.2020,ADULT SOCIAL CARE,THAMES HOMECARE SERVICE LTD,"27,300.00",REABLEMENT CONTRACT,HOMECARE - C&V,5902436174,1000079295
08.10.2020,ADULT SOCIAL CARE,ELEANOR NURSING AND SOCIAL CARE LTD,917.04,SEN LTS 65+,HOMECARE - SPOT,2103154176,1000081695
08.10.2020,ADULT SOCIAL CARE,SURREY DOCKS FARM PROVIDENT SOCIETY,500.00,SOCIAL ISOLATION,DAYCARE,2103154251,1000000958
08.10.2020,ADULT SOCIAL CARE,FOCUSED HEALTHCARE LTD,366.24,SPECIALIST CARE,SECTION 17 PAYMENTS TO AGENCIES/CARERS,2103154389,1000069262
08.10.2020,ADULT SOCIAL CARE,FOCUSED HEALTHCARE LTD,503.58,SPECIALIST CARE,SECTION 17 PAYMENTS TO AGENCIES/CARERS,2103154391,1000069262
08.10.2020,ADULT SOCIAL CARE,FOCUSED HEALTHCARE LTD,"1,236.00",SPECIALIST CARE,SECTION 17 PAYMENTS TO AGENCIES/CARERS,2103154395,1000069262
08.10.2020,ADULT SOCIAL CARE,FOCUSED HEALTHCARE LTD,"3,114.72",SPECIALIST CARE,SECTION 17 PAYMENTS TO AGENCIES/CARERS,2103154396,1000069262
08.10.2020,ADULT SOCIAL CARE,FOCUSED HEALTHCARE LTD,"6,004.68",SPECIALIST CARE,SECTION 17 PAYMENTS TO AGENCIES/CARERS,2103154393,1000069262
08.10.2020,ASSET MANAGEMENT,ASHFORDS LLP OFFICE ACCOUNT,425.00,DISREPAIR,PAYMENTS FOR LEGAL SERVICES,5902436268,1000082695
08.10.2020,ASSET MANAGEMENT,ASHFORDS LLP OFFICE ACCOUNT,425.00,DISREPAIR,PAYMENTS FOR LEGAL SERVICES,5902436270,1000082695
08.10.2020,ASSET MANAGEMENT,ASHFORDS LLP OFFICE ACCOUNT,425.00,DISREPAIR,PAYMENTS FOR LEGAL SERVICES,5902436279,1000082695
08.10.2020,ASSET MANAGEMENT,ASHFORDS LLP OFFICE ACCOUNT,425.00,DISREPAIR,PAYMENTS FOR LEGAL SERVICES,5902436285,1000082695
08.10.2020,ASSET MANAGEMENT,ASHFORDS LLP OFFICE ACCOUNT,425.00,DISREPAIR,PAYMENTS FOR LEGAL SERVICES,5902436293,1000082695
08.10.2020,ASSET MANAGEMENT,ASHFORDS LLP OFFICE ACCOUNT,425.00,DISREPAIR,PAYMENTS FOR LEGAL SERVICES,5902436298,1000082695
08.10.2020,ASSET MANAGEMENT,ASHFORDS LLP OFFICE ACCOUNT,425.00,DISREPAIR,PAYMENTS FOR LEGAL SERVICES,5902436310,1000082695
08.10.2020,ASSET MANAGEMENT,ASHFORDS LLP OFFICE ACCOUNT,425.00,DISREPAIR,PAYMENTS FOR LEGAL SERVICES,5902436311,1000082695
08.10.2020,ASSET MANAGEMENT,ASHFORDS LLP OFFICE ACCOUNT,425.00,DISREPAIR,PAYMENTS FOR LEGAL SERVICES,5902436314,1000082695
08.10.2020,ASSET MANAGEMENT,ASHFORDS LLP OFFICE ACCOUNT,425.00,DISREPAIR,PAYMENTS FOR LEGAL SERVICES,5902436315,1000082695
08.10.2020,ASSET MANAGEMENT,ASHFORDS LLP OFFICE ACCOUNT,425.00,DISREPAIR,PAYMENTS FOR LEGAL SERVICES,5902436316,1000082695
08.10.2020,ASSET MANAGEMENT,ASHFORDS LLP OFFICE ACCOUNT,425.00,DISREPAIR,PAYMENTS FOR LEGAL SERVICES,5902436321,1000082695
08.10.2020,ASSET MANAGEMENT,ASHFORDS LLP OFFICE ACCOUNT,425.00,DISREPAIR,PAYMENTS FOR LEGAL SERVICES,5902436323,1000082695
08.10.2020,ASSET MANAGEMENT,ASHFORDS LLP OFFICE ACCOUNT,425.00,DISREPAIR,PAYMENTS FOR LEGAL SERVICES,5902436325,1000082695
08.10.2020,ASSET MANAGEMENT,ASHFORDS LLP OFFICE ACCOUNT,425.00,DISREPAIR,PAYMENTS FOR LEGAL SERVICES,5902436326,1000082695
08.10.2020,ASSET MANAGEMENT,ASHFORDS LLP OFFICE ACCOUNT,"1,325.00",DISREPAIR,PAYMENTS FOR LEGAL SERVICES,5902436301,1000082695
08.10.2020,ASSET MANAGEMENT,ASHFORDS LLP OFFICE ACCOUNT,"1,750.00",DISREPAIR,PAYMENTS FOR LEGAL SERVICES,5902436300,1000082695
08.10.2020,ASSET MANAGEMENT,ASHFORDS LLP OFFICE ACCOUNT,"1,750.00",DISREPAIR,PAYMENTS FOR LEGAL SERVICES,5902436307,1000082695
08.10.2020,ASSET MANAGEMENT,RELIANCE HIGH-TECH LTD,743.00,REPAIRS OPERATIONS,OFFICE EXPENSES,5902436716,1000079374
08.10.2020,CENTRAL FUNCTIONS,STANBURY BUILDING SERVICES LTD,495.00,COMMERCIAL PROPERTIES,BUILDING R&M,2103154152,3000001967
08.10.2020,CENTRAL FUNCTIONS,STANBURY BUILDING SERVICES LTD,495.00,COMMERCIAL PROPERTIES,BUILDING R&M,2103154427,3000001967
08.10.2020,CENTRAL FUNCTIONS,STANBURY BUILDING SERVICES LTD,"1,950.00",COMMERCIAL PROPERTIES,BUILDING R&M,2103154428,3000001967
08.10.2020,CENTRAL FUNCTIONS,CAPITA BUSINESS SERVICES LTD,"26,257.43",EXCHEQUER RENTS,OTHER CONTRACTORS,5902436742,1000006291
08.10.2020,CENTRAL FUNCTIONS,EDF ENERGY PLC,251.32,HEATING ACCOUNT,ELECTRICITY,5902436663,1008746
08.10.2020,CENTRAL FUNCTIONS,EDF ENERGY PLC,324.06,HEATING ACCOUNT,ELECTRICITY,5902436665,1008746
08.10.2020,CENTRAL FUNCTIONS,EDF ENERGY PLC,396.56,HEATING ACCOUNT,ELECTRICITY,5902436764,1008746
08.10.2020,CENTRAL FUNCTIONS,MFD COMMUNICATION INFRASTRUCTURE LTD,790.00,TECHNICAL SUPPORT,PROFESSIONAL FEES,5902436782,1000080277
08.10.2020,CENTRAL FUNCTIONS,MFD COMMUNICATION INFRASTRUCTURE LTD,790.00,TECHNICAL SUPPORT,PROFESSIONAL FEES,5902436801,1000080277
08.10.2020,CHIEF EXECUTIVE,HAYATSU ARCHITECTS LTD,"16,933.00",CAPITAL PS (REGEN),CONSTRUCTION FEES,5902436001,1000082843
08.10.2020,CHIEF EXECUTIVE'S OFFICE,WALWORTH GARDEN FARM,"4,000.13",YOUTH FUND EMPLOYMENT,GRANTS,2103154418,1000042204
08.10.2020,CHILDREN AND ADULT,MITIE PROPERTY SERVICES (UK) LTD,"46,101.51",CAPITAL PS (EDUCATION),CONST'N MAIN CONTRACT - NON CERTIFICATED,2103154430,4010766
08.10.2020,CHILDREN AND FAMILIES,THE YOUNG LIVES FOUNDATION,263.65,16 PLUS TEAM,OTHER PAYMENTS FOR CLIENTS,5902436719,1000085553
08.10.2020,CHILDREN AND FAMILIES,LOUIS SYDNEY,540.00,ADOPT LONDON SOUTH,PROFESSIONAL FEES,5902436808,1000084535
08.10.2020,CHILDREN AND FAMILIES,LOUIS SYDNEY,540.00,ADOPT LONDON SOUTH,PROFESSIONAL FEES,5902436810,1000084535
08.10.2020,CHILDREN AND FAMILIES,SOUTH LONDON & MAUDSLEY HOSPITAL,"2,500.00",ADOPTION SUPP FUND,EXTERNAL AGENCIES AND BODIES,5902436805,1000013096
08.10.2020,CHILDREN AND FAMILIES,LOUIS SYDNEY,"4,800.00",ADOPTION SUPP FUND,PROFESSIONAL FEES,5902436807,1000084535
08.10.2020,CHILDREN AND FAMILIES,REDACTED PERSONAL DATA,325.00,ADOPTION SUPP FUND,PROFESSIONAL FEES,REDACTED,REDACTED
08.10.2020,CHILDREN AND FAMILIES,REDACTED PERSONAL DATA,504.98,ADOPTION SUPP FUND,PROFESSIONAL FEES,REDACTED,REDACTED
08.10.2020,CHILDREN AND FAMILIES,REDACTED PERSONAL DATA,"2,250.00",ADOPTION SUPP FUND,PROFESSIONAL FEES,REDACTED,REDACTED
08.10.2020,CHILDREN AND FAMILIES,REDACTED PERSONAL DATA,434.25,ADOPTION SUPP FUND,PROFESSIONAL FEES,REDACTED,REDACTED
08.10.2020,CHILDREN AND FAMILIES,REDACTED PERSONAL DATA,"1,216.50",ADOPTION SUPP FUND,PROFESSIONAL FEES,REDACTED,REDACTED
08.10.2020,CHILDREN AND FAMILIES,REDACTED PERSONAL DATA,260.00,ADOPTION SUPP FUND,PROFESSIONAL FEES,REDACTED,REDACTED
08.10.2020,CHILDREN AND FAMILIES,REDACTED PERSONAL DATA,390.00,ADOPTION SUPP FUND,PROFESSIONAL FEES,REDACTED,REDACTED
08.10.2020,CHILDREN AND FAMILIES,REDACTED PERSONAL DATA,390.00,ADOPTION SUPP FUND,PROFESSIONAL FEES,REDACTED,REDACTED
08.10.2020,CHILDREN AND FAMILIES,ST FRANCIS' CHILDREN SOCIETY,"51,714.00",ALS INTER AGENCY,EXTERNAL AGENCIES AND BODIES,5902436661,1000041815
08.10.2020,CHILDREN AND FAMILIES,REDACTED PERSONAL DATA,300.00,CARELEAVER UNIV SUPP,CLIENT TRANSPORT,REDACTED,REDACTED
08.10.2020,CHILDREN AND FAMILIES,REDACTED PERSONAL DATA,800.00,CARELEAVER UNIV SUPP,OTHER PAYMENTS FOR CLIENTS,REDACTED,REDACTED
08.10.2020,CHILDREN AND FAMILIES,REDACTED PERSONAL DATA,300.00,CARELEAVER UNIV SUPP,CLIENT TRANSPORT,REDACTED,REDACTED
08.10.2020,CHILDREN AND FAMILIES,REDACTED PERSONAL DATA,800.00,CARELEAVER UNIV SUPP,OTHER PAYMENTS FOR CLIENTS,REDACTED,REDACTED
08.10.2020,CHILDREN AND FAMILIES,THE CENTRE FOR OUTCOMES OF CARE,"1,400.00",DIRECTOR OF C&F,PROFESSIONAL FEES,5902436693,1000083363
08.10.2020,CHILDREN AND FAMILIES,OPTIMUM FOCUS COMPANY LTD,608.83,FAMILY GROUP CONF�S,PROFESSIONAL FEES,5902436662,1000081322
08.10.2020,CHILDREN AND FAMILIES,OPTIMUM FOCUS COMPANY LTD,708.50,FAMILY GROUP CONF�S,PROFESSIONAL FEES,5902436669,1000081322
08.10.2020,CHILDREN AND FAMILIES,OPTIMUM FOCUS COMPANY LTD,873.17,FAMILY GROUP CONF�S,PROFESSIONAL FEES,5902436667,1000081322
